account_party,address,code,date,document_number,expense_code_name,expense_code_name_short,id,party_cell,party_cell_code,party_cell_geoobject,purpose,source_bank_account_number,source_bank_account_type,sum,target_legal_personality,target_legal_personality_code,target_type
Самопоміч,"Київ, вулиця Михайла Грушевського, 1Д",70,2017-07-04,0704ЬЗЕУХХ,Банківські послуги,Інші витрати,379930,Тернопільська обласна організація,39915272,Тернопільська область,"Комісія за викон. Платежу 58 від 04.07.2016, 1339.00 в нац. валюті в післяопераційний час, згідно з відкритою офертою банку № б/н від 21.08.2015 та тарифів банку, без пдв",26001055118006,current,2.68,"ПАТ КБ ""Приватбанк""",14360570,юридична особа
Самопоміч,"Вінницька область, Барський район, Бар",70,2016-12-30,114145910,Банківські послуги,Інші витрати,379968,Тростянецька районна організація,39919738,Вінницька область,Комісія за розрахункове обслу говування рахунку26001300325699 з 01-12-2016 по 31-12-2016 без НДС,26001300325699,current,10.00,"Вінницька обласна філія АТ ""Ощадбанк""",09302607,юридична особа
Самопоміч,"Київ, вулиця Ковпака, 28",70,2016-12-30,1359055991,Банківські послуги,Інші витрати,379704,Київська обласна організація,39922721,Київська область,Комісія за РКО. Договір № 26009011670892 від 18.08.2015р.,26009011670892,current,49.00,"ПАТ ""Укрсоцбанк""",00039019,юридична особа
Самопоміч,"Київ, вулиця Ковпака, 28",70,2016-12-30,1418066888,Банківські послуги,Інші витрати,379618,Київська міська організація,39842314,Київ,Погашення абонплати за грудень 2016 року. Договір №26007011663072 від 07.08.2015 Без ПДВ,26007011663072,current,150.00,"ПАТ ""Укрсоцбанк""",00039019,юридична особа
Самопоміч,"Київ, вулиця Андріївська, 2/12",70,2016-12-30,30272289,Банківські послуги,Інші витрати,377655,Центральний офіс,38558365,Україна,Списання комісії по рахунку 26006530146200 UAH за ведення поточного рахунку за період 30.1.1.2016 по 31.12.2016 Дог. №03530146201 від 17.09.2014 без ПДВ,26006530146200,current,179.00,"АТ ""Укрсиббанк""",09807750,юридична особа
Самопоміч,"Дніпропетровська область, Дніпро́, вулиця Курсантська, 24",70,2016-12-29,393708,Банківські послуги,Інші витрати,379845,Одеська міська організація,39923299,Одеська область,За розрахункове обслуговування (без наявності оборотів на рахунку) зг.дог.№26/80475/980 від 18.09.2015 згідно Тарифів (банка без ПДВ),26007010353673,current,20.00,"ПАТ ""Банк Восток""",26237202,юридична особа
Самопоміч,"Київ, вулиця Миколи Лєскова, 9",70,2016-12-29,Ьп,Банківські послуги,Інші витрати,379388,Івано-Франківська обласна організація,39927768,Івано-Франківська область,"Комісія за користування пакетом послуг з 29.11.16 по 28.12.16 по рах №26000492575(IIАН), без ПДВ",26000492575,current,90.00,"АТ ""Райффайзен банк Аваль""",14305909,юридична особа
Самопоміч,"Київ, вулиця Андріївська, 2/12",70,2016-12-29,29202187,Банківські послуги,Інші витрати,379315,Житомирська обласна організація,39964204,Житомирська область,"Списання комісії по рахунку 26005577029400 UAH за ведення поточ.рах. за період з 31.10.2016 по 30.11.2016 зг. Дог. №03577029401 від 14.09.2015, без ПДВ",26007300964334,current,159.00,"АТ ""Укрсиббанк""",09807750,юридична особа
Самопоміч,"Полтавська область, Кременчук, проспект Лесі Українки, 74, 135",48,2016-12-28,83,Публікування матеріалів у мережі Інтернет,Реклама в інтернеті,379758,Кременчуцька міська організація,39953260,Полтавська область,"Рекламні послуги на сайті ""Кременчуцька газета"", зг.рах.№100 від 26.12.2016р. Без ПДВ",26007011696726,current,100.00,"ПП ""Кременчуцька газета""",39679241,юридична особа
Самопоміч,"Полтавська область, Кременчук, вулиця Шевченка, 32",74,2016-12-28,82,"Придбання канцтоварів, паперу, інших предметів і матеріалів, а також госп товари",Придбання канцтоварів та госп. товарів,379757,Кременчуцька міська організація,39953260,Полтавська область,"За концелярські товари зг. рах. №6292 від 03.08.2016р. та№ 9753 від 22.11.2016р. у т.ч. ПДВ 20.00 % -38,77 гри",26007011696726,current,232.60,"ПП ""Фірма ""Принцип""",22522420,юридична особа
Самопоміч,"Закарпатська область, Тячівський район, Тячів, вулиця Голлоші, 42",79,2016-12-28,біт,"Оренда будинків і приміщень та експлуатаційні витрати (прибирання, страхування орендованих будинків, охорона, сигналізація, ремонт, вивіз сміття, тощо)",Оренда нерухомості,378046,Центральний офіс,38558365,Україна,"Орендна нлата за листопад 2016р., згідно рахунку Л* 1 від 30.11.ібр Ла 5169330507939719",26008924418040,state,2800.00,Садовніков Олександр Олександрович,,фізична особа
Самопоміч,"Закарпатська область, Тячівський район, Тячів, вулиця Голлоші, 42",64,2016-12-28,618_ СБОЗ 7/75,Повернення платежів партії,Повернення,378045,Центральний офіс,38558365,Україна,ПОВЕРН ЕП 28-12-2016 N 618 з причини ВІДСІЛИ ості даних для уточнення належного отримувача ( невірний номер кяртки/відсутнш номер кяртки(ІПП)),26008924418040,state,2800.00,Садовніков Олександр Олександрович,,фізична особа
Самопоміч,"Київ, вулиця Жилянська, 23",62,2016-12-27,453,Сплата ЄСВ,Податкові платежі,379636,Київська міська організація,39842314,Київ,"*;201;39842314; Відрахування ЄСВ 22%-1971,80 грн, із зарплати за 2 пол. грудня 2016 р;",26007011663072,current,3687.92,ДПІ у Голосїївському районі ГУ ДФС у м. Києві,38745056,юридична особа
Самопоміч,"Київ, вулиця Володимирська, 69",63,2016-12-27,455,Податок на доходи,Податкові платежі,379630,Київська міська організація,39842314,Київ,*;11011000;39842314: Податок з доходів фізичних осіб із зарплати за 2 пол грудня 2016 року;,26007011663072,current,3026.48,УДКСУ у Голосіївському районі м. Києва,38039757,юридична особа
Самопоміч,"Київ, вулиця Володимирська, 69",61,2016-12-27,454,Військовий збір,Податкові платежі,379629,Київська міська організація,39842314,Київ,*;11011000;39842314: Військовий збір із зарплати за 2 пол грудня 2016 року;,26007011663072,current,235.55,УДКСУ у Голосіївському районі м. Києва,38039757,юридична особа
Самопоміч,"Київ, вулиця Ковпака, 28",70,2016-12-27,452,Банківські послуги,Інші витрати,379617,Київська міська організація,39842314,Київ,"Сплата комісії за перерахування грошових коштів на СКР для виплати ""Зарплата за 2 пол 12.2016, згідно договору № ЗО 1.5-002/3086 від.20.01.2016 р.; Без ПДВ",26007011663072,current,56.17,"ПАТ ""Укрсоцбанк""",00039019,юридична особа
Самопоміч,Київ,84,2016-12-27,451,"Заробітна плата, премії","Заробітна плата, лікарняні, вагітності, відрядження, компенсації",379500,Київська міська організація,39842314,Київ,Заробітна плата,26007011663072,current,538.00,Форос Анастасія Василівна,,фізична особа
Самопоміч,Київ,84,2016-12-27,451,"Заробітна плата, премії","Заробітна плата, лікарняні, вагітності, відрядження, компенсації",379499,Київська міська організація,39842314,Київ,Заробітна плата,26007011663072,current,2941.27,Трунов Максим Миколайович,,фізична особа
Самопоміч,"Івано-Франківська область, Івано-Франківськ",84,2016-12-27,451,"Заробітна плата, премії","Заробітна плата, лікарняні, вагітності, відрядження, компенсації",379498,Київська міська організація,39842314,Київ,Заробітна плата,26007011663072,current,3865.03,Томин Марʼяна Миколаївна,,фізична особа
Самопоміч,Київ,84,2016-12-27,451,"Заробітна плата, премії","Заробітна плата, лікарняні, вагітності, відрядження, компенсації",379497,Київська міська організація,39842314,Київ,Заробітна плата,26007011663072,current,633.93,Зубер Світлана Олександрівна,,фізична особа
Самопоміч,Київ,84,2016-12-27,451,"Заробітна плата, премії","Заробітна плата, лікарняні, вагітності, відрядження, компенсації",379496,Київська міська організація,39842314,Київ,Заробітна плата,26007011663072,current,3255.74,Олішевець Євген Олександрович,,фізична особа
Самопоміч,"Київ, вулиця Михайла Грушевського, 1Д",70,2016-12-27,ТНР9Б00049,Банківські послуги,Інші витрати,379001,Баранівська районна організація,39915995,Житомирська область,Погашення заборгованості за розрахунково-касове обслуговування згідно угоди РКО № б/н від 28.09.2015,26003055805103,current,68.80,"ПАТ КБ ""Приватбанк""",14360570,юридична особа
Самопоміч,"Вінницька область, Вінниця, вулиця Зодчих, 36, 113",53,2016-12-26,113286928,Витрати на розміщення зовнішньої реклами,Зовнішня реклама,379967,Тростянецька районна організація,39919738,Вінницька область,За друк постерів згідно рахунка-фактури //1283 від 22грудня 2016 р. у т.ч. ПДВ - 60 грн,26001300325699,current,360.00,"ПП РА ""Бастіон""",33552934,юридична особа
Самопоміч,"Хмельницька область, Віньковецький район, Женишківці, вул. Ортинського, 36",56,2016-12-26,655,Виготовлення (оренда) агітаційних наметів,Виготовлення (оренда) агітаційних наметів,378044,Центральний офіс,38558365,Україна,"Оплата за намет брендовип, згідно акту №172 від 21.12.16р.",26008924418040,state,36000.00,Матущак Юлія Сергіївна,,фізична особа
Самопоміч,"Хмельницька область, Віньковецький район, Женишківці, вул. Ортинського, 36",64,2016-12-26,6298 653_ сцо 06/84 5,Повернення платежів партії,Повернення,378043,Центральний офіс,38558365,Україна,Повернення подок.№ 424 від 22.12.2016 : Не вірний код отримувача -Оплата за виготовлення брендоваян.х наметів згідно Акту №172 від 21.12.2016р.,26008924418040,state,36000.00,Матущак Юлія Сергіївна,,фізична особа
Самопоміч,"Дніпропетровська область, Дніпро́, вулиця Січових Стрільців, 94",70,2016-12-23,TR.47961.79U 7,Банківські послуги,Інші витрати,379121,Дніпровська міська організація,39959985,Дніпропетровська область,Абоненське обслуговування по системе КБ за грудень 2016 по угоді N N40.10.000189 від 11/09/2015.Без ПДВ,26004000128001,current,100.00,ПАТ АКБ “Конкорд”,34514392,юридична особа
Самопоміч,"Донецька область, Слов'янськ, вулиця Добровольського, 1",51,2016-12-23,641,Оплата ефірного часу на ТБ,Телереклама,378996,Центральний офіс,38558365,Україна,"Оплата за інформаційні послуги, згідпо рахунку .N*-000000127 від 22 грудпя 2016р, в тому числі ПДВ 1071,20 грн",26008924418040,state,6427.20,"ТОВ Телерадіокомпанія ""САТ-плюс""",31477505,юридична особа
Самопоміч,"Донецька область, Слов'янськ, вулиця Добровольського, 1",51,2016-12-23,638,Оплата ефірного часу на ТБ,Телереклама,378995,Центральний офіс,38558365,Україна,"Оплата за інформаційні послуги, згідно рахунку Дії -000000124 від 22 грудня 2016р, в тому числі ПДВ 1221,60 грн",26008924418040,state,7329.60,"ТОВ Телерадіокомпанія ""САТ-плюс""",31477505,юридична особа
Самопоміч,"Донецька область, Слов'янськ, вулиця Добровольського, 1",51,2016-12-23,639,Оплата ефірного часу на ТБ,Телереклама,378994,Центральний офіс,38558365,Україна,"Оплата за інформаційні послуги, згідно рахунку ЛЇ-000000125 від 22 грудня 201бр, в тому числі ПДВ 1020,80 гри",26008924418040,state,6124.80,"ТОВ Телерадіокомпанія ""САТ-плюс""",31477505,юридична особа
Самопоміч,"Тернопільська область, Тернопіль, бульвар Тараса Шевченка, 1",58,2016-12-23,624,"Виготовлення друкованих матеріалів (плакатів, листівок, буклетів та інших агітаційних матеріалів)",Друкована агітація,378993,Центральний офіс,38558365,Україна,"Оплата за друк газети ""Обсднання Самопоміч"" в кількості 62,93 тис. шт, згідно рахунку № 537 від 23 грудня 2016р. в т.ч. ПДВ 6000 грн.",26008924418040,state,36000.00,"ТОВ ""ДІМ""",22605152,юридична особа
Самопоміч,"Донецька область, Слов'янськ, вулиця Добровольського, 1",51,2016-12-23,640,Оплата ефірного часу на ТБ,Телереклама,378992,Центральний офіс,38558365,Україна,"Оплата за інформаційні послуги, згідно рахунку №-000000126 від 22 грудня 2016р, в тому числі ПДВ 1038,40 гри",26008924418040,state,6230.40,"ТОВ Телерадіокомпанія ""САТ-плюс""",31477505,юридична особа
Самопоміч,"Львівська область, Львів, вулиця Героїв УПА, 73",79,2016-12-23,631,"Оренда будинків і приміщень та експлуатаційні витрати (прибирання, страхування орендованих будинків, охорона, сигналізація, ремонт, вивіз сміття, тощо)",Оренда нерухомості,378991,Центральний офіс,38558365,Україна,"Оплата за питну воду і серветки, згідно накладної №3000192767 від 06.12.16р., в тому числі ПДВ 141,82 грн",26008924418040,state,850.90,"ПрАТ ""ІДС Аква Сервіс""",25242750,юридична особа
Самопоміч,"Львівська область, Львів, вулиця Героїв УПА, 73",79,2016-12-23,653,"Оренда будинків і приміщень та експлуатаційні витрати (прибирання, страхування орендованих будинків, охорона, сигналізація, ремонт, вивіз сміття, тощо)",Оренда нерухомості,378990,Центральний офіс,38558365,Україна,"Оплата за нодУʼСтакаїш і серветки, згідно пакланої на відвантаження № 3000190428 від 2.12.1бр., в тому числі ПДВ 22,50 грн",26008924418040,state,135.00,"ПрАТ ""ІДС Аква Сервіс""",25242750,юридична особа
Самопоміч,"Сумська область, Суми, проспект Михайла Лушпи, 7",57,2016-12-23,652,Виготовлення брендованої продукції,"Виготовлення брендованої продукції (футболки, кепки, парасольки)",378989,Центральний офіс,38558365,Україна,"Оплата за виготовлення продукції з зображенням замовника, зг. рах № 391 нід 20 грудня 2016 р.",26008924418040,state,4638.00,ТОВ ’Рекламна агенція ’Апельсин-Суми’,37655260,юридична особа
Самопоміч,"Тернопільська область, Тернопіль, вулиця Текстильна, 28",58,2016-12-23,645,"Виготовлення друкованих матеріалів (плакатів, листівок, буклетів та інших агітаційних матеріалів)",Друкована агітація,378988,Центральний офіс,38558365,Україна,"Оплата за друк газети ʼСамопомічʼ І0 тне.шт., згідно з рахунком №941 від 22.12.2016 р., в т.ч. ПДВ (20%) 953,34 грн",26008924418040,state,5720.04,"ТОВ ""ПОДІЛЛЯ-ТЕР""",36829762,юридична особа
Самопоміч,"Івано-Франківська область, Тисменицький район, Тисмениця, вулиця Галицька, 15",61,2016-12-23,553,Військовий збір,Податкові платежі,378987,Центральний офіс,38558365,Україна,^; 101 ;2623011089; військовий збір згідно Договору оренди БАС Х.М. ІПН 2623011089,26008924418040,state,124.19,УК у Тисменицькому районі 11010400,38026444,юридична особа
Самопоміч,"Івано-Франківська область, Тисменицький район, Тисмениця, вулиця Галицька, 15",63,2016-12-23,554,Податок на доходи,Податкові платежі,378986,Центральний офіс,38558365,Україна,*; 101 ;2623011089; ПДФО відмінний від зарплати згідпо договору оренди БАС Х.М. ІПН 2623011089,26008924418040,state,1490.28,УК у Тисменицькому районі 11010400,38026444,юридична особа
Самопоміч,"Київська обл., Васильків, Північний провулок, 4А",58,2016-12-23,644,"Виготовлення друкованих матеріалів (плакатів, листівок, буклетів та інших агітаційних матеріалів)",Друкована агітація,378985,Центральний офіс,38558365,Україна,"Оплата за листівки 10 комплектів но 15000 шт,, згідно рахунку №727 від 14.12.16р., в тому числі ПДВ 8243,33 гри",26008924418040,state,49460.00,"ТОВ ""ІКСА""",33664381,юридична особа
Самопоміч,"Львівська область, Львів, вулиця Героїв УПА, 73",79,2016-12-23,642,"Оренда будинків і приміщень та експлуатаційні витрати (прибирання, страхування орендованих будинків, охорона, сигналізація, ремонт, вивіз сміття, тощо)",Оренда нерухомості,378984,Центральний офіс,38558365,Україна,"Оплата за воду.бутиль і серветки, згідно пякланої на відвантажений № 3000172857 від 4.11.16р., втому числі ПДВ 69,33 гри",26008924418040,state,416.00,"ПрАТ ""ІДС Аква Сервіс""",25242750,юридична особа
Самопоміч,"Хмельницька область, Хмельницький, вулиця Прибузька, 2",49,2016-12-23,634,Публікування матеріалів у друкованих ЗМІ,Реклама в друкованих ЗМІ,378983,Центральний офіс,38558365,Україна,"Оплата за інформаційні послуги в газеті від 22.12.16р., згідно акту № 404 від 22..12.16р., в тому числі ПДВ 1356,60 гри.",26008924418040,state,8139.60,"ТОВ ""Газета ""Проскурів""",14175341,юридична особа
Самопоміч,"Тернопільська область, Тернопіль, вулиця Текстильна, 28",58,2016-12-23,633,"Виготовлення друкованих матеріалів (плакатів, листівок, буклетів та інших агітаційних матеріалів)",Друкована агітація,378982,Центральний офіс,38558365,Україна,"Оплата за друк газетп ’Самопомічʼ в ЗО тне.шт., згідно з рахунком №940 від 22.12.2016 р., в т.ч. ПДВ (20%) 1 960,02 грн",26008924418040,state,11760.12,"ТОВ ""ПОДІЛЛЯ-ТЕР""",36829762,юридична особа
Самопоміч,"Київ, вулиця Кирило-Мефодіївська, 2/14",72,2016-12-23,632,"Придбання, ремонт офісної техніки та програмного забезпечення (Бухгалтерські програми, Ліга.закон, домени)",Придбання офісної техніки та програмного забезпечення,378981,Центральний офіс,38558365,Україна,"Оплата за накопнчувач 290шт, згідно рахунку №6909690 від 16.12.016р. в т.ч. ПДВ 60201,10 грн.",26008924418040,state,361206.60,"ТОВ ""Навігатор Корпорейшн""",39396481,юридична особа
Самопоміч,"Київ, проспект Перемоги, 67, 306",57,2016-12-23,629,Виготовлення брендованої продукції,"Виготовлення брендованої продукції (футболки, кепки, парасольки)",378980,Центральний офіс,38558365,Україна,"Оплата за продукцію з рекламним зображенням згідно рахунку №1209Т2І1с01 під 09.12.2016р. в т.ч. ПДВ 31754,83 грн.",26008924418040,state,190528.98,"ТОВ ’Торговий Дім ""Еней""",38205868,юридична особа
Самопоміч,"Житомирська область, Житомир, вулиця Трипільська, 13",74,2016-12-23,627,"Придбання канцтоварів, паперу, інших предметів і матеріалів, а також госп товари",Придбання канцтоварів та госп. товарів,378979,Центральний офіс,38558365,Україна,"Оплата за канцтовари згідно з рахунку №98 від 20,12.16р. в тому числі ПДВ 1000 грн",26008924418040,state,6000.00,"ТОВ ""Культурний центр ""Темп"" шахової асоціації незрячих України",24702729,юридична особа
Самопоміч,"Дніпропетровська область, Томаківський район, Томаківка",53,2016-12-23,625,Витрати на розміщення зовнішньої реклами,Зовнішня реклама,378978,Центральний офіс,38558365,Україна,"Оплата за оренду проведений рекламної компанії, згідно рахунку Аг СФ-0000032 від 19.12.16р., в тому числі ПДВ 500 грн.",26008924418040,state,3000.00,"ТОВ ТД ""Січеслав""",36730158,юридична особа
Самопоміч,"Одеська область, Одеса",58,2016-12-23,620,"Виготовлення друкованих матеріалів (плакатів, листівок, буклетів та інших агітаційних матеріалів)",Друкована агітація,378977,Центральний офіс,38558365,Україна,"Оплата за календарі, наклейки та ін., згідно рахунку №3597 бід 08.12.16р., п тому числі ПДВ 8296,01 гри",26008924418040,state,49776.06,"ПП ""Студія ""Печать""",37477343,юридична особа
Самопоміч,"Київ, вулиця Шота Руставелі, 19",69,2016-12-23,619,Організація заходів та інші організаційні послуги,Організація заходів та інші організаційні послуги,378976,Центральний офіс,38558365,Україна,"Оплата за оренду приміщення для проведения зяходу, згідно ряхумку №334 від 22.12.16р., в тому числі ПДВ 2500 гри",26008924418040,state,15000.00,"ТОВ ""Кінопанорама""",26267108,юридична особа
Самопоміч,"Житомирська область, Житомир, вулиця Чуднівська, 106",49,2016-12-23,614,Публікування матеріалів у друкованих ЗМІ,Реклама в друкованих ЗМІ,378975,Центральний офіс,38558365,Україна,"Оплата за публікацію звітів про діяльність за 2016 рік в газеті ""Єхо"" №51, згідно рахунку № 1137 від 19.12.16р., в тому числі ПДВ 2000 грн.",26008924418040,state,12000.00,"ТОВ ""Видавництво та телерадіокомпанія ""Редакція газети ""Эхо""",13568663,юридична особа
Самопоміч,"Київ, вулиця Панаса Мирного, 17, 140",69,2016-12-23,611,Організація заходів та інші організаційні послуги,Організація заходів та інші організаційні послуги,378974,Центральний офіс,38558365,Україна,"Оплата за проведений навчань у грудні 2016 року, згідно акту1 пядапнх послуг від 22.12.16р.",26008924418040,state,250000.00,"Громадська організація 'Українська політична школа""",39833614,юридична особа
Самопоміч,"Київська обл., Києво-Святошинський район, Вишневе, вулиця Київська, 2А",74,2016-12-23,533,"Придбання канцтоварів, паперу, інших предметів і матеріалів, а також госп товари",Придбання канцтоварів та госп. товарів,378973,Центральний офіс,38558365,Україна,"Оплата за канцтовари, згідно накладної№5-00001258 від 21.12.16р., в тому числі ПДВ 536,55 грн",26008924418040,state,3219.32,"ТОВ ""Папірус""",37757144,юридична особа
Самопоміч,"Київська обл., Києво-Святошинський район, Вишневе, вулиця Київська, 2А",74,2016-12-23,525,"Придбання канцтоварів, паперу, інших предметів і матеріалів, а також госп товари",Придбання канцтоварів та госп. товарів,378972,Центральний офіс,38558365,Україна,"Оплата за дошку магиітпо-маркерпу, згідно накладної №5-00001233 від 15.12.16р., в тому числі ПДВ 319,05 гри",26008924418040,state,1914.30,"ТОВ ""Папірус""",37757144,юридична особа
Самопоміч,"Київська обл., Києво-Святошинський район, Вишневе, вулиця Київська, 2А",74,2016-12-23,524,"Придбання канцтоварів, паперу, інших предметів і матеріалів, а також госп товари",Придбання канцтоварів та госп. товарів,378971,Центральний офіс,38558365,Україна,"Оплата за біндер, згідно накладної№5-00001262 під 22.12.16р, в тому числі ПДВ 208,50 гри",26008924418040,state,1251.00,"ТОВ ""Папірус""",37757144,юридична особа
Самопоміч,"Київська обл., Васильків, Північний провулок, 4А",58,2016-12-23,521,"Виготовлення друкованих матеріалів (плакатів, листівок, буклетів та інших агітаційних матеріалів)",Друкована агітація,378970,Центральний офіс,38558365,Україна,"Оплата за листівки по 15000 шт., згідно рахунку №721 від 14.12.16р., в тому числі ПДВ 8243,33 грп",26008924418040,state,49460.00,"ТОВ ""ІКСА""",33664381,юридична особа
Самопоміч,"Хмельницька область, Хмельницький, вулиця І. Франка, 8",53,2016-12-23,505,Витрати на розміщення зовнішньої реклами,Зовнішня реклама,378969,Центральний офіс,38558365,Україна,"Оплата за виготовлення банера, рекламного павука і баперпої рамкп, згідно акту № 478 від 16.12.1брч в тому числі ПДВ 5143,33 гри",26008924418040,state,30860.00,"ПП ""Рекламна агенція ""Простір""",39389469,юридична особа
Самопоміч,"Львівська область, Львів, вулиця Стрийська, 6, 10",74,2016-12-23,538,"Придбання канцтоварів, паперу, інших предметів і матеріалів, а також госп товари",Придбання канцтоварів та госп. товарів,378968,Центральний офіс,38558365,Україна,Оплата за канцтовари згідно рахунку № СФ-7214 під 21 грудна 2016р. в т.ч. ПДВ 4557.71 грп.,26008924418040,state,27346.28,"ТОВ ""Орбіта-плюс""",23973751,юридична особа
Самопоміч,"Львівська область, Львів",50,2016-12-23,576,Оплата ефірного часу на радіо,Реклама на радіо,378967,Центральний офіс,38558365,Україна,"Оплата за розміщення інформаційних матеріалів, згідпо з Договором №05/16 від 01.07.2016 р.(186,5 хв за жовтеиь 2016), згідно з рах. №36 від ЗО листопада 2016 р.",26008924418040,state,20142.00,"ПП ""ТРК ""Західна Столиця""",31804544,юридична особа
Самопоміч,"Львівська область, Львів, вулиця Юрія Липи, 45",50,2016-12-23,575,Оплата ефірного часу на радіо,Реклама на радіо,378966,Центральний офіс,38558365,Україна,"Оплата за розміщеппя іпформяціііпях матеріалів, згідно з Договором №05/16 від 01.07.2016 р.(277,5 хв за жовтень 2016), згідпо з рах. №32 від 31 жовтня 2016 р.",26008924418040,state,29970.00,"ПП ""ТРК ""Західна Столиця""",31804544,юридична особа
Самопоміч,"Полтавська область, Полтава, вулиця Кагамлика, 72",57,2016-12-23,413,Виготовлення брендованої продукції,"Виготовлення брендованої продукції (футболки, кепки, парасольки)",378965,Центральний офіс,38558365,Україна,"Оплата за блокноти, стіксрн, папки А4, калсидарнкн, мобільні стендн,згідно пикладпої №448 від 20 грудня 2016 року в т.ч. ПДВ 3350.84 грп.",26008924418040,state,20105.04,"ТОВ ""ІМІДЖ-М""",38973417,юридична особа
Самопоміч,"Івано-Франківська область, Івано-Франківськ, вулиця Теодора Цьоклера, 9А",69,2016-12-23,480,Організація заходів та інші організаційні послуги,Організація заходів та інші організаційні послуги,378964,Центральний офіс,38558365,Україна,Оплата за оренду конференц-залу у грудні 2016р. згідно акту наданім послуг від 15 грудня 2016р.,26008924418040,state,593.19,Івано- Франківська Торгово- Промислова Палата,02944857,юридична особа
Самопоміч,"Львівська область, Львів",50,2016-12-23,573,Оплата ефірного часу на радіо,Реклама на радіо,378963,Центральний офіс,38558365,Україна,"Оплата за розміщення інформаційних матеріалів, згідно з Договором №05/16 від 01.07.2016 р.(277,5 хв за вересень 2016), згідно з рах. №29 від ЗО вересня 2016 р.",26008924418040,state,29970.00,"ПП ""ТРК ""Західна Столиця""",31804544,юридична особа
Самопоміч,"Хмельницька область, Хмельницький, вулиця Володимирська, 92",51,2016-12-23,520,Оплата ефірного часу на ТБ,Телереклама,378962,Центральний офіс,38558365,Україна,Оплата за трансляцію іміджевої телепрограми 40 xd. згідно рахунку № СФ-0645 від 19 грудня 2016 р. в т.ч. ПДВ 800.00 гри.,26008924418040,state,4800.00,"Філія ПАТ ""НСТУ ""Хмельницька регіональна дирекція ""Поділля центр""",40020703,юридична особа
Самопоміч,"Івано-Франківська область, Івано-Франківськ, вулиця Теодора Цьоклера, 9",69,2016-12-23,479,Організація заходів та інші організаційні послуги,Організація заходів та інші організаційні послуги,378961,Центральний офіс,38558365,Україна,Оплата за оренду конференц-залу у листопаді 2016р. згідно акту наданих послуг від ЗО листопада 2016р.,26008924418040,state,1285.24,Івано- Франківська Торгово- Промислова Палата,02944857,юридична особа
Самопоміч,"Київ, проспект Перемоги, 67, 306",57,2016-12-23,582,Виготовлення брендованої продукції,"Виготовлення брендованої продукції (футболки, кепки, парасольки)",378960,Центральний офіс,38558365,Україна,"Оплата за мянішкн з нанесенням логотипу, згідно з видатковою накладкою №751 від 23 грудня 2016 р. в т.ч. ПДВ 11760.00 грн.",26008924418040,state,70560.00,"ТОВ ’Торговий Дім ""Еней""",38205868,юридична особа
Самопоміч,"Чернігівська область, Чернігів",57,2016-12-23,606,Виготовлення брендованої продукції,"Виготовлення брендованої продукції (футболки, кепки, парасольки)",378959,Центральний офіс,38558365,Україна,Оплата за пакет типу банан 2600шт. згідно рахупку № СФ-0350 від 19 грудня 2016р. в т.ч. ПДВ 1929.20 грн.,26008924418040,state,11575.20,"ТОВ ""Компанія ""Чернігів Пекедж""",37418450,юридична особа
Самопоміч,"Івано-Франківська область, Івано-Франківськ, вулиця Сорохтея, 37",49,2016-12-23,596,Публікування матеріалів у друкованих ЗМІ,Реклама в друкованих ЗМІ,378958,Центральний офіс,38558365,Україна,"Оплата за інформаційні публікації в газеті ТІС №50 від 15.12.2016 р. стор.2, згідно з рах. №СФ-00159 від 13 грудпя 2016 р.",26008924418040,state,3040.00,"ДП ""Галицький кореспондент""",35276475,юридична особа
Самопоміч,"Сумська область, Суми, вулиця Харківська, 4",51,2016-12-23,540,Оплата ефірного часу на ТБ,Телереклама,378957,Центральний офіс,38558365,Україна,Оплата за послуги по виготовленню та трансляції у власному телеефірі телепродукції згідно рахунку № 275 від 21 грудня 2016р.,26008924418040,state,40000.00,"ТОВ ""Телерадіокомпанія ""Академ TV""",32185841,юридична особа
Самопоміч,"Полтавська область, Полтава, вулиця Кагамлика, 72",57,2016-12-23,412,Виготовлення брендованої продукції,"Виготовлення брендованої продукції (футболки, кепки, парасольки)",378956,Центральний офіс,38558365,Україна,"Оплата за прапорці, прапори 1,5м. кв., иямстп, згідно накладної №442 від 19 грудня 2016 року в т.ч. ПДВ 8655.00 гри.",26008924418040,state,51930.00,"ТОВ ""ІМІДЖ-М""",38973417,юридична особа
Самопоміч,"Київ, бульвар Лесі Українки, 26",79,2016-12-23,586,"Оренда будинків і приміщень та експлуатаційні витрати (прибирання, страхування орендованих будинків, охорона, сигналізація, ремонт, вивіз сміття, тощо)",Оренда нерухомості,378955,Центральний офіс,38558365,Україна,Оплата за оренду нежптлового приміщення за листопад 2016р. згідно акту надаипя послуг № 2823 від 30 листопада 2016р. в т.ч. ПДВ 9609.30 грп.,26008924418040,state,57655.80,"ПАТ ""Український зональний науково-дослідний і проектний інститут по цивільному будівництву""",01422826,юридична особа
Самопоміч,"Київ, вулиця Марка Вовчка, 18А",72,2016-12-23,427,"Придбання, ремонт офісної техніки та програмного забезпечення (Бухгалтерські програми, Ліга.закон, домени)",Придбання офісної техніки та програмного забезпечення,378954,Центральний офіс,38558365,Україна,Оплата за центральний процесор Intel Core згідно накладпої №61/3676035 від 15 грудня 2016р. в т.ч. ПДВ 165868.40 гри.,26008924418040,state,995210.40,"Іноземне підприємство ""Логін""",38204178,юридична особа
Самопоміч,"Івано-Франківська область, Івано-Франківськ, вулиця Теодора Цьоклера, 9",69,2016-12-23,478,Організація заходів та інші організаційні послуги,Організація заходів та інші організаційні послуги,378953,Центральний офіс,38558365,Україна,Оплата за оренду нерухомого майна у листопаді 2016р. згідно акту надапих послуг від ЗО листопада 2016р.,26008924418040,state,1400.58,Івано- Франківська Торгово- Промислова Палата,02944857,юридична особа
Самопоміч,"Харківська область, Харків, вулиця Саратовська, 51",58,2016-12-23,580,"Виготовлення друкованих матеріалів (плакатів, листівок, буклетів та інших агітаційних матеріалів)",Друкована агітація,378952,Центральний офіс,38558365,Україна,"Оплата за газету ʼОбʼєднання ʼСамопомічʼ(51 000 піт.), згідно товарної накладної № 14536-Р бід 23 грудня 2016р. в т.ч. ПДВ 10098.00 гри.",26008924418040,state,60588.00,"ТОВ ""Фактор-друк""",20030635,юридична особа
Самопоміч,"Львівська область, Львів, вулиця Юрія Липи, 45",58,2016-12-23,572,"Виготовлення друкованих матеріалів (плакатів, листівок, буклетів та інших агітаційних матеріалів)",Друкована агітація,378951,Центральний офіс,38558365,Україна,"Оплата за розміщенпя інформаційних матеріалів, згідпо з Договором №05/16 від 01.07.2016 р.(277,5 хв за серпень 2016), згідно з рах. №26 від 31 серпня 2016 р.",26008924418040,state,29970.00,"ПП ""ТРК ""Західна Столиця""",31804544,юридична особа
Самопоміч,"Львівська область, Львів",73,2016-12-23,382,Придбання меблів,Придбання меблів,378950,Центральний офіс,38558365,Україна,Оплата за офіспі меблі згідно рахупку №2336 під 21.12.2016р. в т.ч. ПДВ 2771.00 грл.,26008924418040,state,16626.00,"ПП ""Бʼюро-Стиль""",32053645,юридична особа
Самопоміч,"Київ, вулиця Миколи Пимоненка, 13Ж",48,2016-12-23,436,Публікування матеріалів у мережі Інтернет,Реклама в інтернеті,378949,Центральний офіс,38558365,Україна,"Оплата за розміщення реклами в мережі інтерпет, період 12.12-22.12.201бр.згщно Акту №1216-220 від 22.12.2016р. о т.ч. ПДВ 35033.12 гри.",26008924418040,state,210198.74,"ТОВ ""АДМІКСЕР.ЮА""",39560553,юридична особа
Самопоміч,"Київ, вулиця Миколи Пимоненка, 13Ж",48,2016-12-23,435,Публікування матеріалів у мережі Інтернет,Реклама в інтернеті,378948,Центральний офіс,38558365,Україна,"Оплат за розміщення реклами в мережі інтернет, період 12.12-22.12.201бр. згідно Акту №1216-223 від 22.12.2016р. в т.ч. ПДВ 19489.65 гри.",26008924418040,state,116937.91,"ТОВ ""АДМІКСЕР.ЮА""",39560553,юридична особа
Самопоміч,"Черкаська область, Черкаси, вулиця Небесної Сотні, 105",69,2016-12-23,495,Організація заходів та інші організаційні послуги,Організація заходів та інші організаційні послуги,378947,Центральний офіс,38558365,Україна,Оплата за надання конференц-послуг у грудні 2016р. згідно рахунку Лі ВВ-0519 від 16 грудня 2016р. н т.ч. ПДВ 163.33 грн.,26008924418040,state,980.00,Черкаська торгово-промислова палата,02944946,юридична особа
Самопоміч,"Черкаська область, Черкаси, вулиця Небесної Сотні, 105",69,2016-12-23,494,Організація заходів та інші організаційні послуги,Організація заходів та інші організаційні послуги,378946,Центральний офіс,38558365,Україна,Оплата за надання конферепц-послуг у грудня 2016р. згідно рахунку Лі ВВ-0520 від 20 грудня 2016р. в т.ч. ПДВ 140.00 гри.,26008924418040,state,840.00,Черкаська торгово-промислова палата,02944946,юридична особа
Самопоміч,"Львівська область, Львів, вулиця Героїв УПА, 73",79,2016-12-23,417,"Оренда будинків і приміщень та експлуатаційні витрати (прибирання, страхування орендованих будинків, охорона, сигналізація, ремонт, вивіз сміття, тощо)",Оренда нерухомості,378945,Центральний офіс,38558365,Україна,"Оплата за товари, згідно з рахунком ЛІ3000201916 від 20 грудпя 2016 р. в т.ч. ПДВ 49.00 грн.",26008924418040,state,294.00,"ПрАТ ""ІДС Аква Сервіс""",25242750,юридична особа
Самопоміч,"Львівська область, Львів, вулиця Героїв УПА, 73",79,2016-12-23,416,"Оренда будинків і приміщень та експлуатаційні витрати (прибирання, страхування орендованих будинків, охорона, сигналізація, ремонт, вивіз сміття, тощо)",Оренда нерухомості,378944,Центральний офіс,38558365,Україна,"Оплата за товари, згідно з рахунком ЛІ3000197308 від 13 грудня 2016р. в т.ч. ПДВ 28.50 гри.",26008924418040,state,171.00,"ПрАТ ""ІДС Аква Сервіс""",25242750,юридична особа
Самопоміч,"Черкаська область, Черкаси, вулиця Байди Вишневецького, 36",51,2016-12-23,454,Оплата ефірного часу на ТБ,Телереклама,378943,Центральний офіс,38558365,Україна,Оплата за створення і трансляцію сюжет)’ згідно рахунку А® 125 від 15.12.2016р.,26008924418040,state,3114.72,"Філія ПАТ ""НСТУ ""Черкаська регіональна дирекція""",40020719,юридична особа
Самопоміч,"Хмельницька область, Хмельницький, вулиця Володимирська, 92",51,2016-12-23,523,Оплата ефірного часу на ТБ,Телереклама,378942,Центральний офіс,38558365,Україна,Оплата за трансляцію іміджевої телепрограми 96хв. згідно рахупку Лі СФ-0639 від 19 грудня 2016 р. в т.ч. ПДВ 1920.00 грн.,26008924418040,state,11520.00,"Філія ПАТ ""НСТУ ""Хмельницька регіональна дирекція ""Поділля центр""",40020703,юридична особа
Самопоміч,"Івано-Франківська область, Івано-Франківськ, вулиця Січових стрільців, 30А",51,2016-12-23,437,Оплата ефірного часу на ТБ,Телереклама,378941,Центральний офіс,38558365,Україна,"Оплата за падання послуг з розміщення ""етеріалів замовника, зідно Акту наданих послуг Аі 58 вщ 15.10.2016 р.",26008924418040,state,1022.40,"Філія ПАТ ""НСТУ"" ""Івано-Франківська регіональна дирекція ""Карпати""",40020572,юридична особа
Самопоміч,"Львівська область, Львів, вулиця Конотопська, 6",63,2016-12-23,531,Податок на доходи,Податкові платежі,378940,Центральний офіс,38558365,Україна,*;101;38558365; сплата ПДФО за грудепь 2016 р.;;;,26008924418040,state,108991.88,УДКСУ у Франківському районі м. Львова,37965138,юридична особа
Самопоміч,"Львівська область, Львів, вулиця Конотопська, 6",61,2016-12-23,530,Військовий збір,Податкові платежі,378939,Центральний офіс,38558365,Україна,*;10І;38558365; сплата військового збору із заробітної плати працівників за грудень2016 р.;;;,26008924418040,state,9082.73,УДКСУ у Франківському районі м. Львова,37965138,юридична особа
Самопоміч,"Чернігівська область, Чернігів",51,2016-12-23,475,Оплата ефірного часу на ТБ,Телереклама,378938,Центральний офіс,38558365,Україна,"Оплата за розміщення телепрограми на обласній тслемережі згідпо рахунку А"" 180 від 21 грудня 2016р. в т.ч. ПДВ 8640.00 гри",26008924418040,state,51840.00,"КП ""Телерадіоагенство ""Новий Чернігів"" Чернігівської міської ради",21397527,юридична особа
Самопоміч,"Тернопільська область, Тернопіль, бульвар Тараса Шевченка, 1",75,2016-12-23,434,Поштові послуги та поширення друкованих матеріалів,Поштові послуги та поширення друкованих матеріалів,378937,Центральний офіс,38558365,Україна,"Оплата за розповсюдження газети згідно рахунку Аі 750 від 22 грудня 2016р. Договір Аі 21-12/16 від 21.12.2016 року, в т.ч. ПДВ 1600.00 грп.",26008924418040,state,9600.00,"ТОВ ""ДІМ""",22605152,юридична особа
Самопоміч,"Івано-Франківська область, Галицький район, Бурштин, вулиця Січових Стрільців, 27",51,2016-12-23,425,Оплата ефірного часу на ТБ,Телереклама,378936,Центральний офіс,38558365,Україна,"Оплата за виготовлення та трансляцію телепрограми ʼНовий поглядʼ Т. Виноградинка на каналі ʼРАР згідно рахунку А1"" 235 від 30.10.201бр.",26008924418040,state,4500.00,"ТОВ ""Телерадіокомпанія ""РАІ""",36983355,юридична особа
Самопоміч,"Івано-Франківська область, Галицький район, Бурштин, вулиця Січових Стрільців, 27",51,2016-12-23,431,Оплата ефірного часу на ТБ,Телереклама,378935,Центральний офіс,38558365,Україна,"Оплата за виготовлення та трансляцію телепрограми ʼНовин поглядʼ Т, Вшюгрядпика па каналі ʼРАІʼ згідно рахунку Аг 281 від 22.12.201бр.",26008924418040,state,4500.00,"ТОВ ""Телерадіокомпанія ""РАІ""",36983355,юридична особа
Самопоміч,"Івано-Франківська область, Галицький район, Бурштин, вулиця Січових Стрільців, 27",51,2016-12-23,432,Оплата ефірного часу на ТБ,Телереклама,378934,Центральний офіс,38558365,Україна,Оплата за виготовлення та трансляцію телепрограми ʼНовий поглядʼ Т. Виноградника на кяпалі ʼРАГ згідно рахунку Аі 272 від 30.11.2016р.,26008924418040,state,4500.00,"ТОВ ""Телерадіокомпанія ""РАІ""",36983355,юридична особа
Самопоміч,"Одеська область, Одеса, Фонтанська дорога, 11",51,2016-12-23,433,Оплата ефірного часу на ТБ,Телереклама,378933,Центральний офіс,38558365,Україна,Оплата за послуги розміщсння/трянсляції інформаційних матеріалів па телевізійному кяпалі згідно рахунку 265 оід 16.12.2016р. в т.ч. ПДВ 6666.67 гри.,26008924418040,state,40000.00,"ТОВ ""ТЕЛЕРАДІОКОМПАНІЯ ""НОВА ОДЕСА""",21032955,юридична особа
Самопоміч,"Сумська область, Суми, вулиця Харківська, 4",51,2016-12-23,443,Оплата ефірного часу на ТБ,Телереклама,378932,Центральний офіс,38558365,Україна,"Оплата за послуги по виготовленню та трансляції у власному телеефірі телепродукції, згідно рахунку №279 ящ 20.12.2016 р. в т.ч. ПДВ 3333.33 гри.",26008924418040,state,20000.00,"ТОВ ""Телерадіокомпанія ""Академ TV""",32185841,юридична особа
Самопоміч,Київ,51,2016-12-23,477,Оплата ефірного часу на ТБ,Телереклама,378931,Центральний офіс,38558365,Україна,"Оплата за надання рекламних послуг на телеканалі ІСТУ, Повий канал, СТБ згідно Договору №ДР-174/1б від 16.12.16р., Додатку №1 від 16.12.16р. Акту1 від 23.12.16р.",26008924418040,state,1499803.20,"ТОВ ""СТАРЛАЙТ БРЕНД КОНТЕНТ""",35380148,юридична особа
Самопоміч,"Львівська область, Львів, вулиця Джерельна, 75",68,2016-12-23,472,Соцдослідження,"Гонорари, в тому числі за надані консультаційні послуги",378930,Центральний офіс,38558365,Україна,"Оплата за аналітичні послуги, консультування та організацію соціологічних досліджень по місту Харків, згідно з Договором № 01/11/16 від 01.11.2016р.",26008924418040,state,160000.00,"ТОВ ""Соціологічна агенція ""ФАМА""",39668161,юридична особа
Самопоміч,"Львівська область, Львів, вулиця Джерельна, 75",68,2016-12-23,473,Соцдослідження,"Гонорари, в тому числі за надані консультаційні послуги",378929,Центральний офіс,38558365,Україна,"Оплята за аналітичні послуги, консультування та організацію соціологічних досліджень по місту Дпіпро, згідно з Договором № 07/11/16 від 07.11.2016р.",26008924418040,state,160000.00,"ТОВ ""Соціологічна агенція ""ФАМА""",39668161,юридична особа
Самопоміч,"Рівненська область, Рівне, вулиця Гагаріна, 39",58,2016-12-23,446,"Виготовлення друкованих матеріалів (плакатів, листівок, буклетів та інших агітаційних матеріалів)",Друкована агітація,378928,Центральний офіс,38558365,Україна,"Оплата за візитки, банерн та календарі згідно ряхупку № 356 від 20.12.2016 р. в т.ч. ПДВ 356.67 гри.",26008924418040,state,2140.00,"ТОВ ""РЕКЛАМНА КОМПАНІЯ ІНСАЙТ""",35840654,юридична особа
Самопоміч,"Київ, провулок Алли Горської, 5",74,2016-12-23,421,"Придбання канцтоварів, паперу, інших предметів і матеріалів, а також госп товари",Придбання канцтоварів та госп. товарів,378927,Центральний офіс,38558365,Україна,Оплата за книжкову продукцію згідно рахунку №209 під 07.12.2016р.,26008924418040,state,544640.00,"ТОВ ""НФ""",39076009,юридична особа
Самопоміч,Київ,53,2016-12-23,451,Витрати на розміщення зовнішньої реклами,Зовнішня реклама,378926,Центральний офіс,38558365,Україна,Оплата за металеві конструкції та бянерп згідно рахунку № 5317 від 19.12.2016р. п т.ч. ПДВ 1480.00 грп.,26008924418040,state,8880.00,"ТОВ ""НЕЛЬСОНІ К""",37921939,юридична особа
Самопоміч,"Київ, вулиця Кирило-Мефодіївська, 2/14",72,2016-12-23,442,"Придбання, ремонт офісної техніки та програмного забезпечення (Бухгалтерські програми, Ліга.закон, домени)",Придбання офісної техніки та програмного забезпечення,378925,Центральний офіс,38558365,Україна,Оплата за корпуси з вмонтованим блоком живлення з підключеними кабелями та модулі памʼяті згідно накладної№7545 від 16.12.016р. в т.ч. ПДВ 69336.10 гри.,26008924418040,state,416016.60,"ТОВ ""Навігатор Корпорейшн""",39396481,юридична особа
Самопоміч,"Івано-Франківська область, Калуш, вулиця Михайла Козоріса, 2",79,2016-12-23,445,"Оренда будинків і приміщень та експлуатаційні витрати (прибирання, страхування орендованих будинків, охорона, сигналізація, ремонт, вивіз сміття, тощо)",Оренда нерухомості,378924,Центральний офіс,38558365,Україна,Оплата за послуги оренди приміщення за період з 15.11.2016 по 15.12.2016р. згідно рахунку №1 від 15А2.2016р. в т.ч. ПДВ 133.33 грн.,26008924418040,state,800.00,"ТДВ ""Карпатнафтобуд""",04711040,юридична особа
Самопоміч,"Полтавська область, Полтава, вулиця Кагамлика, 72",57,2016-12-23,362,Виготовлення брендованої продукції,"Виготовлення брендованої продукції (футболки, кепки, парасольки)",378923,Центральний офіс,38558365,Україна,"Оплата за ручки, футболки з пянесенпям, календар квартальний, календар настільний згідно накладної №447 від 16 грудня 2016 року в т.ч. ПДВ 4295.20 грп.",26008924418040,state,25771.20,"ТОВ ""ІМІДЖ-М""",38973417,юридична особа
Самопоміч,"Черкаська область, Черкаси, вулиця Смілянська, 120",73,2016-12-23,448,Придбання меблів,Придбання меблів,378922,Центральний офіс,38558365,Україна,Оплата за столик та стілець згідно рахунку №732 під 20.12.2016р. в т.ч. ПДВ 3835.00 грп.,26008924418040,state,23010.00,"ТОВ ""Золоті Ворота плюс""",22808837,юридична особа
Самопоміч,"Київ, вулиця Миколи Пимоненка, 13Ж",48,2016-12-23,439,Публікування матеріалів у мережі Інтернет,Реклама в інтернеті,378921,Центральний офіс,38558365,Україна,"Оплата за розміщення реклами в мережі інтеряет, період 12.12-22.12.2016 р.з гід но Акту №1216-219 від 22.12.2016р. в т.ч. ПДВ 115829.94 грн.",26008924418040,state,694979.64,"ТОВ ""АДМІКСЕР.ЮА""",39560553,юридична особа
Самопоміч,"Хмельницька область, Хмельницький, проспект Миру, 59",49,2016-12-23,423,Публікування матеріалів у друкованих ЗМІ,Реклама в друкованих ЗМІ,378920,Центральний офіс,38558365,Україна,Оплата за інформаційні послуги (Стаття ня 15.12.2016р.) в т.ч. ПДВ 1360.00 грп.,26008924418040,state,8160.00,"ПП ""Медіа-центр ""Подільські вісті""",21313714,юридична особа
Самопоміч,"Івано-Франківська область, Городенківський район, Городенка, вулиця Володимира Великого, 4",49,2016-12-23,512,Публікування матеріалів у друкованих ЗМІ,Реклама в друкованих ЗМІ,378919,Центральний офіс,38558365,Україна,Оплата за послуги з розміщення матеріалів на сторінках газети ʼКрайʼ згідно акту прпймаїїнп-передячі паданпх послуг №1 від 15 грудпя 2016р.,26008924418040,state,2500.00,"ПП ""Медіацентр ""Край""",20553758,юридична особа
Самопоміч,"Івано-Франківська область, Івано-Франківськ, вулиця Січових стрільців, 25",49,2016-12-23,587,Публікування матеріалів у друкованих ЗМІ,Реклама в друкованих ЗМІ,378918,Центральний офіс,38558365,Україна,Оплата за статті в газеті ʼГаличина* згідно рахунку № 1219 від 06 грудпя 2016р. в т.ч. ПДВ 360.00 грн.,26008924418040,state,2160.00,"РГ ""Галичина’",13644704,юридична особа
Самопоміч,"Київ, бульвар Лесі Українки, 26",79,2016-12-23,585,"Оренда будинків і приміщень та експлуатаційні витрати (прибирання, страхування орендованих будинків, охорона, сигналізація, ремонт, вивіз сміття, тощо)",Оренда нерухомості,378917,Центральний офіс,38558365,Україна,Оплата за комунальні послуги за листопад 2016р. згідно акту надання послуг ЛЇ2963 під ЗО листопада 2016р. н т.ч. ПДВ 3238.76 гри.,26008924418040,state,19432.56,"ПАТ ""Український зональний науково-дослідний і проектний інститут по цивільному будівництву""",01422826,юридична особа
Самопоміч,"Дніпропетровська область, Дніпро́, вулиця Воскресенська, 14",51,2016-12-23,526,Оплата ефірного часу на ТБ,Телереклама,378916,Центральний офіс,38558365,Україна,Оплата за послуги з розміщення відеоматеріалів згідно рахунку Лв 2051 від 12 грудня 2016р. в т.ч. ПДВ 11431.00 грн.,26008924418040,state,68586.00,"ПрАТ ""Телевізійна служба Дніпропетровська""",20264089,юридична особа
Самопоміч,"Полтавська область, Полтава, Зіньківська вулиця, 57",69,2016-12-23,496,Організація заходів та інші організаційні послуги,Організація заходів та інші організаційні послуги,378915,Центральний офіс,38558365,Україна,Оплата за оренду конференц-залу згідно рахунку Лв 1417 від 16 грудня 2016р. в т.ч. ПДВ 416.67 грн.,26008924418040,state,2500.00,"ПАТ ""Полтавський автоагрегатний завод""",00232124,юридична особа
Самопоміч,"Київ, вулиця Дегтярівська, 53",76,2016-12-23,535,Послуги зв’язку,Послуги зв’язку,378914,Центральний офіс,38558365,Україна,Оплата за ладані послуги мобільного звʼязку за листопад 2016р. згідно рахунку ЛЬ 3-22627319 від 30 листопада 2016р. в т.ч. ПДВ 334.14 грн.,26008924418040,state,2004.83,"ПрАТ ""Київстар""",21673832,юридична особа
Самопоміч,"Волинська область, Луцьк, вулиця Словацького, 9",51,2016-12-23,497,Оплата ефірного часу на ТБ,Телереклама,378913,Центральний офіс,38558365,Україна,Оплата за розміщення інформаційних матеріалів на телеканалі ʼНова Волинь’ згідно рахупку №591 від 20.12.2016р. в т.ч. ПДВ 3396.80 грн.,26008924418040,state,20380.80,"Філія ПАТ ""НСТУ ""Волинська регіональна дирекція""",40020530,юридична особа
Самопоміч,"Житомирська область, Житомир, вулиця Кафедральна, 10",79,2016-12-23,568,"Оренда будинків і приміщень та експлуатаційні витрати (прибирання, страхування орендованих будинків, охорона, сигналізація, ремонт, вивіз сміття, тощо)",Оренда нерухомості,378912,Центральний офіс,38558365,Україна,Оплата за надані послуги з оренди згідно акту викопаних робіт бід 21 грудня 2016р.,26008924418040,state,6333.87,"Науково-виробнича асоціація ""Житомирський Моноліт""",13550438,юридична особа
Самопоміч,"Кіровоградська область, Кропивницький, вулиця В'ячеслава Чорновола, 14/2, 1",79,2016-12-23,489,"Оренда будинків і приміщень та експлуатаційні витрати (прибирання, страхування орендованих будинків, охорона, сигналізація, ремонт, вивіз сміття, тощо)",Оренда нерухомості,378911,Центральний офіс,38558365,Україна,Оплата за оренду нерухомого манна у грудня 2016р. згідно акту надапнх послуг від 22 грудня 2016р.,26008924418040,state,8516.12,"ТОВ ""Науково- виробнича фірма ""Техекспо""",24144382,юридична особа
Самопоміч,"Полтавська область, Лубни, площа Ярмаркова, 7",79,2016-12-23,385,"Оренда будинків і приміщень та експлуатаційні витрати (прибирання, страхування орендованих будинків, охорона, сигналізація, ремонт, вивіз сміття, тощо)",Оренда нерухомості,378910,Центральний офіс,38558365,Україна,Оплата оренди приміщення в м. Лубни за жовтень 2016р. згідно рахунку Лгб від 01.11.2016р..,26008924418040,state,1500.00,Лубенська районна організація УТМР,21050433,юридична особа
Самопоміч,"Львівська область, Львів, вулиця Миколи Коперника, 22",79,2016-12-23,560,"Оренда будинків і приміщень та експлуатаційні витрати (прибирання, страхування орендованих будинків, охорона, сигналізація, ремонт, вивіз сміття, тощо)",Оренда нерухомості,378909,Центральний офіс,38558365,Україна,"Оплата за утримання будників, споруд та прпбудішкопої території згідно рахунку Лв 1511 від ЗО листопада 2016р. в т.ч. ПДВ 23.34 грн.",26008924418040,state,140.01,"ЛКП ""Цитадель-Центр""",20773129,юридична особа
Самопоміч,"Львівська область, Львів, площа Ринок, 1",76,2016-12-23,561,Послуги зв’язку,Послуги зв’язку,378908,Центральний офіс,38558365,Україна,Оплата за послугп звʼязку згідно рахунку Лі 7282 від 30 листопада 2016р. в т.ч. ПДВ 106.30 гри.,26008924418040,state,637.82,"ЛКП ""Міський центр інформаційних технологій""",23948670,юридична особа
Самопоміч,"Львівська область, Львів, площа Ринок, 1",78,2016-12-23,563,Оренда обладнання та технічних засобів,Оренда обладнання та технічних засобів,378907,Центральний офіс,38558365,Україна,Оплата за оренду сканера Хегох ВосиМаіе 3125 згідно рахунку Лв 7658 від 20 грудня 2016р. в т.ч. ПДВ 47.36 грп.,26008924418040,state,284.17,"ЛКП ""Міський центр інформаційних технологій""",23948670,юридична особа
Самопоміч,"Миколаївська область, Миколаїв, вулиця Адміральська, 31",51,2016-12-23,518,Оплата ефірного часу на ТБ,Телереклама,378906,Центральний офіс,38558365,Україна,Оплата за розміщення відеофільмя в ефірі КПТРК ʼМАРТʼ згідно рахунку ЛІ СФ-0127 від 21 грудня 2016р. вт.ч. ПДВ 5000.00 гри.,26008924418040,state,30000.00,КП Телерадіокомпанія 'МАРТ',32092696,юридична особа
Самопоміч,"Київ, вулиця Олеся Гончара",72,2016-12-23,458,"Придбання, ремонт офісної техніки та програмного забезпечення (Бухгалтерські програми, Ліга.закон, домени)",Придбання офісної техніки та програмного забезпечення,378905,Центральний офіс,38558365,Україна,Оплата за материнську плату згідно видаткової накладної№51/3676035 від 13 грудня 2016р. вт.ч. ПДВ 69165.00 грп.,26008924418040,state,414990.00,"Іноземне підприємство ""І-АР-СГ""",38204199,юридична особа
Самопоміч,"Івано-Франківська область, Івано-Франківськ, вулиця Михайла Грушевського, 21",51,2016-12-23,394,Оплата ефірного часу на ТБ,Телереклама,378904,Центральний офіс,38558365,Україна,Оплата за послуги з виготовлення тя/або розміщення матеріалів на телеканалі ʼГаличинаʼ за грудень 2016р. згідно Акту від 16.12.2016р.,26008924418040,state,14880.00,"Івано-Франківське обласне телебачення ""Галичина""",13641427,юридична особа
Самопоміч,"Івано-Франківська область, Івано-Франківськ, вулиця Теодора Цьоклера, 9А",69,2016-12-23,476,Організація заходів та інші організаційні послуги,Організація заходів та інші організаційні послуги,378903,Центральний офіс,38558365,Україна,Оплата за оренду нерухомого майна у жовтні 2016р. згідно акту паданнх послуг від 31 грудня 2016р.,26008924418040,state,1115.69,Івано- Франківська Торгово- Промислова Палата,02944857,юридична особа
Самопоміч,"Львівська область, Львів, вулиця Стрийська, 34",62,2016-12-23,528,Сплата ЄСВ,Податкові платежі,378902,Центральний офіс,38558365,Україна,*;101;38558365; сплата единого внеску із заробітної плати працівників за грудень 2016 р .;;;,26008924418040,state,132821.98,ДПІ у Франківському районі м. Львова,39508247,юридична особа
Самопоміч,"Чернігівська область, Чернігів",50,2016-12-23,467,Оплата ефірного часу на радіо,Реклама на радіо,378901,Центральний офіс,38558365,Україна,"Оплата за рекламні послуги па радіо згідно рахунку № СФ-0832 від 1 грудня 2016р. в т.ч. ПДВ 5977.02 грн. Сума 35,862,14 грн",26008924418040,state,35862.14,"ТОВ ВТФ ’НАЛМС ЛТД""",21396634,юридична особа
Самопоміч,"Рівненська область, Рівне, вулиця Підгірна, 3",58,2016-12-23,491,"Виготовлення друкованих матеріалів (плакатів, листівок, буклетів та інших агітаційних матеріалів)",Друкована агітація,378900,Центральний офіс,38558365,Україна,"Оплата за банер, фляєря та календарики згідно рахунку № СФ-0146 від 21 грудня 2016р.",26008924418040,state,6350.00,"TOB ВКК ""Міст-Сервіс і К""",13988272,юридична особа
Самопоміч,"Київ, вулиця Магнітогорська, 16",69,2016-12-23,547,Організація заходів та інші організаційні послуги,Організація заходів та інші організаційні послуги,378899,Центральний офіс,38558365,Україна,"Оплата за органІзяціютя ведення заходу па тему: ʼНаціональна безпека, загрози та реалії сьогодення* згідно актуʼ наданих послуг від 22 грудня 2016р.",26008924418040,state,13200.00,ТОВ ’ШКОЛА ТЕЛЕБАЧЕННЯ ПРАЙМ МЕДІА’,37414629,юридична особа
Самопоміч,"Чернігівська область, Чернігів, вулиця Шевченка",48,2016-12-23,565,Публікування матеріалів у мережі Інтернет,Реклама в інтернеті,378898,Центральний офіс,38558365,Україна,Оплата за розміщення рекламно-інформ а цінної стазті на саііті wwxv.0462.na згідно рахунку № СФ-3579 під 19 грудня 2016р.,26008924418040,state,37600.00,"ТОВ ""ЧМГ""",35779428,юридична особа
Самопоміч,"Івано-Франківська область, Івано-Франківськ, вулиця Січових стрільців, 56",51,2016-12-23,333,Оплата ефірного часу на ТБ,Телереклама,378897,Центральний офіс,38558365,Україна,Оплата за трлпеляцію інформаційних відеоматеріалів згідно рахунку № СФ-0083 від 19 грудпя 2016р. в т.ч. ПДВ 2696.15 гри.,26008924418040,state,16176.90,"TOB ""ТРК 3-Студія""",23797886,юридична особа
Самопоміч,"Львівська область, Львів, вулиця Юрія Липи, 45",51,2016-12-23,571,Оплата ефірного часу на ТБ,Телереклама,378896,Центральний офіс,38558365,Україна,"Оплата за розміщення інформаційних матеріалів, згідно з Договором №05/16 від 01.07.2016 р.(277,5 хв за липень 2016), згідно з рах. №23 від 29 липня 2016 р.",26008924418040,state,29970.00,"ПП ""ТРК ""Західна Столиця""",31804544,юридична особа
Самопоміч,"Київ, проспект Перемоги, 67, 306",57,2016-12-23,481,Виготовлення брендованої продукції,"Виготовлення брендованої продукції (футболки, кепки, парасольки)",378895,Центральний офіс,38558365,Україна,"Оплата за продукцію з рекламним зображення."" згідно рахунку №1220Т2ІС01 від 20.12.2016р. н т.ч. ПДВ 32754.26 грн.",26008924418040,state,196525.58,"ТОВ ’Торговий Дім ""Еней""",38205868,юридична особа
Самопоміч,"Київ, бульвар Вацлава Гавела, 4",72,2016-12-23,567,"Придбання, ремонт офісної техніки та програмного забезпечення (Бухгалтерські програми, Ліга.закон, домени)",Придбання офісної техніки та програмного забезпечення,378894,Центральний офіс,38558365,Україна,"Оплата за програмну продукцію за листопад 2016 р., згідно рахупку №11 лід 10 листопада 2016р.",26008924418040,state,72836.00,"ТОВ ""Технікс ресурс""",36273496,юридична особа
Самопоміч,"Київ, бульвар Вацлава Гавела, 4",72,2016-12-23,566,"Придбання, ремонт офісної техніки та програмного забезпечення (Бухгалтерські програми, Ліга.закон, домени)",Придбання офісної техніки та програмного забезпечення,378893,Центральний офіс,38558365,Україна,"Оплата за програмну продукцію за вересепь 2016 р., згідно рахупку №09 від 09 вересня 2016р.",26008924418040,state,72283.20,"ТОВ ""Технікс ресурс""",36273496,юридична особа
Самопоміч,"Київ, бульвар Вацлава Гавела, 4",72,2016-12-23,564,"Придбання, ремонт офісної техніки та програмного забезпечення (Бухгалтерські програми, Ліга.закон, домени)",Придбання офісної техніки та програмного забезпечення,378892,Центральний офіс,38558365,Україна,"Оплата за програмну продукцію за жовтень 2016 р., згідпо рахунку №10 від 10 жовтня 2016 р.",26008924418040,state,68904.00,"ТОВ ""Технікс ресурс""",36273496,юридична особа
Самопоміч,"Дніпропетровська область, Марганець, вулиця Лермонтова, 19",51,2016-12-23,556,Оплата ефірного часу на ТБ,Телереклама,378891,Центральний офіс,38558365,Україна,Оплата за падалі послуги з виготовлення та розміщеппя нідеоматерівлу згідно акту нядавпх послуг від 23 грудня 2016р.,26008924418040,state,3892.00,"ТОВ ""Телерадіокомпанія МСТ""",13430328,юридична особа
Самопоміч,"Дніпропетровська область, Дніпро́, вулиця Писаржевського, 1А",51,2016-12-23,527,Оплата ефірного часу на ТБ,Телереклама,378890,Центральний офіс,38558365,Україна,"Оплата за розміщення реклами на 11 капялі ТБ, згідно рахунку № СФ-12/07 від 12 грудня 2016р. в т.ч. ПДВ 6499.20 грп.",26008924418040,state,38995.20,"ДП ""ТРК ""Стерх""",24434223,юридична особа
Самопоміч,"Херсонська область, Херсон, вулиця Потьомкінська, 6",53,2016-12-23,483,Витрати на розміщення зовнішньої реклами,Зовнішня реклама,378889,Центральний офіс,38558365,Україна,Оплата за виготовлення рекламних матеріалів згідно рахунку № 171 від 05 грудня 2016р.,26008924418040,state,1400.00,"ПП ""Старий Дніпро""",19224877,юридична особа
Самопоміч,"Київ, вулиця Зоологічна, 4А",82,2016-12-23,579,"Гонорари, в тому числі за надані консультаційні послуги","Гонорари, в тому числі за надані консультаційні послуги",378888,Центральний офіс,38558365,Україна,"Оплата за послуги розробки сайту згідно з рахунком №110 під 22 грудня 2016 р., згідно з договором №ОР-54 від 05.12.2016 р. в т.ч. ПДВ 14000.00 гри.",26008924418040,state,84000.00,"ТОВ ""Служба мобільних новин""",35893973,юридична особа
Самопоміч,"Хмельницька область, Хмельницький, вулиця Свободи, 53",43,2016-12-23,608,Інші витрати,Інші витрати,378887,Центральний офіс,38558365,Україна,Оплата за виготовлення Орендованої продукції згідно рахунку Л’° 97 від 21 грудня 2016р.,26008924418040,state,45865.00,"ПП ""СЕРВІС""",40005334,юридична особа
Самопоміч,"Хмельницька область, Хмельницький, вулиця Шевченка, 38",49,2016-12-23,419,Публікування матеріалів у друкованих ЗМІ,Реклама в друкованих ЗМІ,378886,Центральний офіс,38558365,Україна,Оплата за рекламу п ʼСімейній газетіʼ 15.12.01бр. згідно рахунку №183б/м від 12.12.2016р.,26008924418040,state,3838.00,"ПП ""Рекламне агенство ""Є!""",30579351,юридична особа
Самопоміч,"Миколаївська область, Миколаїв, вулиця Бузника, 3",58,2016-12-23,490,"Виготовлення друкованих матеріалів (плакатів, листівок, буклетів та інших агітаційних матеріалів)",Друкована агітація,378885,Центральний офіс,38558365,Україна,Оплатя за виготовлення поліграфічної продукції згідно рахунку № 14 від грудня 2016р.,26008924418040,state,51090.00,"ТОВ ""РА ""Алекс+""",40338909,юридична особа
Самопоміч,"Сумська область, Суми, проспект Михайла Лушпи, 7",57,2016-12-23,592,Виготовлення брендованої продукції,"Виготовлення брендованої продукції (футболки, кепки, парасольки)",378884,Центральний офіс,38558365,Україна,"Оплата за виготовлення продукції з зображенням замовника, зг. рах Лі 392 бід 19 грудня 2016 р.",26008924418040,state,5975.00,ТОВ ’Рекламна агенція ’Апельсин-Суми’,37655260,юридична особа
Самопоміч,"Харківська область, Харків, проспект Людвіга Свободи, 39",82,2016-12-23,539,"Гонорари, в тому числі за надані консультаційні послуги","Гонорари, в тому числі за надані консультаційні послуги",378883,Центральний офіс,38558365,Україна,Оплата за розробку електронного макета Річного звіту фракції ʼОбʼєднання ʼСАМОПОМІЧʼ у Верховній Раді України,26008924418040,state,9300.00,"ТОВ ’РЕД ЗЕТ""",37762903,юридична особа
Самопоміч,"Дніпропетровська область, Кривий Ріг, проспект Миру, 44А",51,2016-12-23,559,Оплата ефірного часу на ТБ,Телереклама,378882,Центральний офіс,38558365,Україна,Оплата за вихід в ефір ролика ’Самопоміч’ згідно акту здачі-пршїняття робіт Лі 97 від 22 грудня 2016р. н т.ч. ПДВ 5333.33 гри.,26008924418040,state,32000.00,"ТОВ ""Перший міський телеканал. Кривий Ріг""",39865405,юридична особа
Самопоміч,"Львівська область, Львів, вулиця Стрийська, 6, 10",74,2016-12-23,390,"Придбання канцтоварів, паперу, інших предметів і матеріалів, а також госп товари",Придбання канцтоварів та госп. товарів,378881,Центральний офіс,38558365,Україна,Оплата за канцелярські товари згідно рахунку № СФ-6973 від 12 грудня 2016р. в т.ч. ПДВ 2902.32 гри.,26008924418040,state,17413.92,"ТОВ ""Орбіта-плюс""",23973751,юридична особа
Самопоміч,"Львівська область, Львів, вулиця Стрийська, 6",74,2016-12-23,380,"Придбання канцтоварів, паперу, інших предметів і матеріалів, а також госп товари",Придбання канцтоварів та госп. товарів,378880,Центральний офіс,38558365,Україна,Оплата за канцелярські топарн згідпо рахупку Лі СФ-6852 від 06 грудпя 2016р. п т.ч. ПДВ 2826.92 грн.,26008924418040,state,16961.52,"ТОВ ""Орбіта-плюс""",23973751,юридична особа
Самопоміч,"Львівська область, Львів, вулиця Стрийська, 6",74,2016-12-23,379,"Придбання канцтоварів, паперу, інших предметів і матеріалів, а також госп товари",Придбання канцтоварів та госп. товарів,378879,Центральний офіс,38558365,Україна,Оплата за господарські товари згідно рахунку Ла СФ-000688 від 07 грудня 2016р. в т.ч. ПДВ 409.04 грн.,26008924418040,state,2454.23,"ТОВ ""Орбіта-плюс""",23973751,юридична особа
Самопоміч,"Львівська область, Львів, вулиця Стрийська, 6",74,2016-12-23,378,"Придбання канцтоварів, паперу, інших предметів і матеріалів, а також госп товари",Придбання канцтоварів та госп. товарів,378878,Центральний офіс,38558365,Україна,Оплата за слсктрочайннк згідно рахунку ЛЬ СФ-7077 під 15 грудня 2016р. в т.ч. ПДВ 66.67 грн.,26008924418040,state,400.00,"ТОВ ""Орбіта-плюс""",23973751,юридична особа
Самопоміч,Київська обл.,77,2016-12-23,391,"Оренда, ремонт та обслуговування автомобілів","Оренда, ремонт та обслуговування автомобілів",378877,Центральний офіс,38558365,Україна,"Оплата за нафтопродукти, згідно з накладною на відпуск товарів А!24ОБКТЛ-2652-9053871306 від 22.12.2016 р. в т.ч. ПДВ 4672 грн.",26008924418040,state,29726.00,"ПП ""ОККО-БІЗНЕС КОНТРАКТ""",33614922,юридична особа
Самопоміч,"Київ, вулиця Єреванська, 1",70,2016-12-23,562,Банківські послуги,Інші витрати,378876,Центральний офіс,38558365,Україна,Банківська комісія за ппплату зарплати за грудень 2016 р.,26008924418040,state,2437.18,"АБ ""Укргазбанк""",23697280,юридична особа
Самопоміч,"Луганська область, Сєвєродонецьк, вулиця Єгорова, 22",74,2016-12-23,498,"Придбання канцтоварів, паперу, інших предметів і матеріалів, а також госп товари",Придбання канцтоварів та госп. товарів,378875,Центральний офіс,38558365,Україна,Оплата за кяпцтоварп згідно рахунку ЛЬ 2459 від 14 грудня 2016р. в т.ч. ПДВ 899.95 грн.,26008924418040,state,5399.70,"ТОВ ""Компанія ОФІС-МАРКЕР",38350006,юридична особа
Самопоміч,"Чернігівська область, Чернігів",57,2016-12-23,605,Виготовлення брендованої продукції,"Виготовлення брендованої продукції (футболки, кепки, парасольки)",378874,Центральний офіс,38558365,Україна,Оплата за пакет тішу бапан 3000шт. згідпо рахунку № СФ-0349 від 13 грудня 2016р. в т.ч. ПДВ 2016.00 грн.,26008924418040,state,12096.00,"ТОВ ""Компанія ""Чернігів Пекедж""",37418450,юридична особа
Самопоміч,"Житомирська область, Житомир, вулиця Гагаріна, 24",49,2016-12-23,610,Публікування матеріалів у друкованих ЗМІ,Реклама в друкованих ЗМІ,378873,Центральний офіс,38558365,Україна,"Оплата за інформаційні матеріали в газеті м.№ 51 згідно акту прийняття робіт А"" 222 під 23 грудня 2016р. п т.ч. ПДВ 1082.08 гри.",26008924418040,state,6492.50,"КП ""Інформаційно-видавничий центр Житомирської міської ради""",13579906,юридична особа
Самопоміч,"Черкаська область, Черкаси, бульвар Шевченка, 242/1",49,2016-12-23,487,Публікування матеріалів у друкованих ЗМІ,Реклама в друкованих ЗМІ,378872,Центральний офіс,38558365,Україна,Оплата за розміщення іміджевої статті із заголовком ʼЧиниться шалений тискʼ згідно рахунку від 7 грудня 2016р.,26008924418040,state,1000.00,"ПП ""Інфоміст""",40039557,юридична особа
Самопоміч,"Івано-Франківська область, Івано-Франківськ, вулиця Короля Данила, 16",53,2016-12-23,588,Витрати на розміщення зовнішньої реклами,Зовнішня реклама,378871,Центральний офіс,38558365,Україна,Оплата за надані послуги з виготовлення Орендованої продукції згідно акту надання послуг від 13 грудня 2016р.,26008924418040,state,103385.00,"ТОВ ""Друкарня Oтто Ганс""",35276632,юридична особа
Самопоміч,"Івано-Франківська область, Івано-Франківськ, вулиця Короля Данила, 16",53,2016-12-23,595,Витрати на розміщення зовнішньої реклами,Зовнішня реклама,378870,Центральний офіс,38558365,Україна,Оплата за виготовлення та оренду постеру згідно рахунку № 5187 від ЗО листопада 20Ібр. в т.ч. ПДВ 2633.33 гри.,26008924418040,state,15800.00,"ТОВ ""Друкарня Oтто Ганс""",35276632,юридична особа
Самопоміч,"Київ, вулиця Олени Теліги, 3",69,2016-12-23,546,Організація заходів та інші організаційні послуги,Організація заходів та інші організаційні послуги,378869,Центральний офіс,38558365,Україна,"Оплата за Орендовану продукцію згщио рахупку № 121901 від 19 грудня 2016р. н т.ч, ПДВ 5994.76 грн.",26008924418040,state,35968.56,"ПП ""ГРАНД-ПРІНГ""",32049969,юридична особа
Самопоміч,"Івано-Франківська область, Івано-Франківськ, вулиця Сорохтея, 37",49,2016-12-23,597,Публікування матеріалів у друкованих ЗМІ,Реклама в друкованих ЗМІ,378868,Центральний офіс,38558365,Україна,"Оплата за інформаційні публікації в газеті ТКʼ №47 під 24.11.2016 р. стор.2, згідно з рах. №СФ-00157 від 7 грудня 2016 р.",26008924418040,state,3961.50,"ДП ""Галицький кореспондент""",35276475,юридична особа
Самопоміч,"Сумська область, Шостка, вулиця Свободи, 21",73,2016-12-23,449,Придбання меблів,Придбання меблів,378867,Центральний офіс,38558365,Україна,Оплата за стільці та папір згідно рахунку AV743/24166 від 16.12.2016р. в т.ч. ПДВ 1250.03 грп.,26008924418040,state,7500.16,"ТОВ ""ВКФ ""ВВ"", філія ’ВВ-Шостка""",24018520,юридична особа
Самопоміч,"Київ, вулиця Рибальська, 2",57,2016-12-23,589,Виготовлення брендованої продукції,"Виготовлення брендованої продукції (футболки, кепки, парасольки)",378866,Центральний офіс,38558365,Україна,Оплата за брепдопаиу продукцію згідно рахунку № 1329 від 14 грудня 2106р. в т.ч. ПДВ 9450.00 грн.,26008924418040,state,56700.00,"ТОВ ""Вістка""",33301970,юридична особа
Самопоміч,"Львівська область, Львів, вулиця Кульпарківська, 95",73,2016-12-23,426,Придбання меблів,Придбання меблів,378865,Центральний офіс,38558365,Україна,Оплата за офісні меблі згідпо рахунку №22/12-22 від 19.12.16р. в т.ч. ПДВ 12721.67 грн.,26008924418040,state,76330.00,"ПП ""Будкомплект Плюс""",30822604,юридична особа
Самопоміч,"Львівська область, Львів",74,2016-12-23,383,"Придбання канцтоварів, паперу, інших предметів і матеріалів, а також госп товари",Придбання канцтоварів та госп. товарів,378864,Центральний офіс,38558365,Україна,Оплата за картотеку для трудових книжок згідпо рахунку 2351 від 21.12.2016р.,26008924418040,state,4353.00,"ПП ""Бʼюро-Стиль""",32053645,юридична особа
Самопоміч,"м. ІСнїн, вул. Міпшпа, буд. 25",56,2016-12-23,422,Виготовлення (оренда) агітаційних наметів,Виготовлення (оренда) агітаційних наметів,378863,Центральний офіс,38558365,Україна,Оплата за ни готовлену продукцію згідно рахунку №62451 від 19.12.2016р.,26008924418040,state,69040.00,"ПП ""АРНІКА-1""",21555729,юридична особа
Самопоміч,"Київ, вулиця Електриків",51,2016-12-23,541,Оплата ефірного часу на ТБ,Телереклама,378862,Центральний офіс,38558365,Україна,Оплата за ліцензійну винагороду згідно рахунку № 25 від 01 грудня 2016р.,26008924418040,state,10000.00,"ТОВ ""5 Канал ТВ""",35745928,юридична особа
Самопоміч,Київ,84,2016-12-23,532,"Заробітна плата, премії","Заробітна плата, лікарняні, вагітності, відрядження, компенсації",378619,Центральний офіс,38558365,Україна,зарплата,26008924418040,state,3273.42,Яшина Юлія Борисівна,,фізична особа
Самопоміч,"Львівська область, Сокальський район, Бодячів",84,2016-12-23,532,"Заробітна плата, премії","Заробітна плата, лікарняні, вагітності, відрядження, компенсації",378618,Центральний офіс,38558365,Україна,зарплата,26008924418040,state,3688.36,Янчук Марія Володимирівна,,фізична особа
Самопоміч,Львівська область,84,2016-12-23,532,"Заробітна плата, премії","Заробітна плата, лікарняні, вагітності, відрядження, компенсації",378617,Центральний офіс,38558365,Україна,зарплата,26008924418040,state,1228.36,Янів Андрій Григорович,,фізична особа
Самопоміч,"Одеська область, Одеса",84,2016-12-23,532,"Заробітна плата, премії","Заробітна плата, лікарняні, вагітності, відрядження, компенсації",378616,Центральний офіс,38558365,Україна,зарплата,26008924418040,state,1646.59,Якових Олександра Володимирівна,,фізична особа
Самопоміч,"Одеська область, Одеса",84,2016-12-23,532,"Заробітна плата, премії","Заробітна плата, лікарняні, вагітності, відрядження, компенсації",378615,Центральний офіс,38558365,Україна,зарплата,26008924418040,state,1646.59,Якових Анастасія Володимирівна,,фізична особа
Самопоміч,Львівська область,84,2016-12-23,532,"Заробітна плата, премії","Заробітна плата, лікарняні, вагітності, відрядження, компенсації",378614,Центральний офіс,38558365,Україна,зарплата,26008924418040,state,7161.57,Юрків Марія Ярославівна,,фізична особа
Самопоміч,"Івано-Франківська область, Івано-Франківськ",84,2016-12-23,532,"Заробітна плата, премії","Заробітна плата, лікарняні, вагітності, відрядження, компенсації",378613,Центральний офіс,38558365,Україна,зарплата,26008924418040,state,1251.41,Щипанова Жанна Борисівна,,фізична особа
Самопоміч,"Івано-Франківська область, Долинський район, Долина",84,2016-12-23,532,"Заробітна плата, премії","Заробітна плата, лікарняні, вагітності, відрядження, компенсації",378612,Центральний офіс,38558365,Україна,зарплата,26008924418040,state,526.91,Шира Ірина Володимирівна,,фізична особа
Самопоміч,Київ,84,2016-12-23,532,"Заробітна плата, премії","Заробітна плата, лікарняні, вагітності, відрядження, компенсації",378611,Центральний офіс,38558365,Україна,зарплата,26008924418040,state,1649.89,Шиман Ярослав Ігорович,,фізична особа
Самопоміч,"Черкаська область, Черкаси",84,2016-12-23,532,"Заробітна плата, премії","Заробітна плата, лікарняні, вагітності, відрядження, компенсації",378610,Центральний офіс,38558365,Україна,зарплата,26008924418040,state,1745.39,Шевченко Олена Вікторівна,,фізична особа
Самопоміч,Київська обл.,84,2016-12-23,532,"Заробітна плата, премії","Заробітна плата, лікарняні, вагітності, відрядження, компенсації",378609,Центральний офіс,38558365,Україна,зарплата,26008924418040,state,3352.46,Шевченко Олександр Леонідович,,фізична особа
Самопоміч,"Львівська область, Львів",84,2016-12-23,532,"Заробітна плата, премії","Заробітна плата, лікарняні, вагітності, відрядження, компенсації",378608,Центральний офіс,38558365,Україна,зарплата,26008924418040,state,1228.36,Шевців Яромир Володимирович,,фізична особа
Самопоміч,"Львівська область, Стрийський район, Заплатин",84,2016-12-23,532,"Заробітна плата, премії","Заробітна плата, лікарняні, вагітності, відрядження, компенсації",378607,Центральний офіс,38558365,Україна,зарплата,26008924418040,state,1649.89,Шваб Юрій Андрійович,,фізична особа
Самопоміч,"Херсонська область, Херсон",84,2016-12-23,532,"Заробітна плата, премії","Заробітна плата, лікарняні, вагітності, відрядження, компенсації",378606,Центральний офіс,38558365,Україна,зарплата,26008924418040,state,599.36,Шахов Володимир Анатолійович,,фізична особа
Самопоміч,"Львівська область, Львів",84,2016-12-23,532,"Заробітна плата, премії","Заробітна плата, лікарняні, вагітності, відрядження, компенсації",378605,Центральний офіс,38558365,Україна,зарплата,26008924418040,state,2453.42,Шаповал Оксана Вікторівна,,фізична особа
Самопоміч,"Львівська область, Сокальський район, Великий",84,2016-12-23,532,"Заробітна плата, премії","Заробітна плата, лікарняні, вагітності, відрядження, компенсації",378604,Центральний офіс,38558365,Україна,зарплата,26008924418040,state,1712.45,Чунис Олег Романович,,фізична особа
Самопоміч,"Житомирська область, Житомир",84,2016-12-23,532,"Заробітна плата, премії","Заробітна плата, лікарняні, вагітності, відрядження, компенсації",378603,Центральний офіс,38558365,Україна,зарплата,26008924418040,state,362.25,Чісліна Наталія Анатоліївна,,фізична особа
Самопоміч,"Чернігівська область, Чернігів",84,2016-12-23,532,"Заробітна плата, премії","Заробітна плата, лікарняні, вагітності, відрядження, компенсації",378602,Центральний офіс,38558365,Україна,зарплата,26008924418040,state,4779.50,Чернюк Віталій Миколайович,,фізична особа
Самопоміч,"Чернівецька область, Вижницький район, Виженка",84,2016-12-23,532,"Заробітна плата, премії","Заробітна плата, лікарняні, вагітності, відрядження, компенсації",378601,Центральний офіс,38558365,Україна,зарплата,26008924418040,state,823.30,Чепіль Валентина Василівна,,фізична особа
Самопоміч,Київ,84,2016-12-23,532,"Заробітна плата, премії","Заробітна плата, лікарняні, вагітності, відрядження, компенсації",378600,Центральний офіс,38558365,Україна,зарплата,26008924418040,state,694.86,Цимбалюк Ольга Віталіївна,,фізична особа
Самопоміч,"Львівська область, Львів",84,2016-12-23,532,"Заробітна плата, премії","Заробітна плата, лікарняні, вагітності, відрядження, компенсації",378599,Центральний офіс,38558365,Україна,зарплата,26008924418040,state,2453.42,Христина Зоряна Орестівна,,фізична особа
Самопоміч,Харківська область,84,2016-12-23,532,"Заробітна плата, премії","Заробітна плата, лікарняні, вагітності, відрядження, компенсації",378598,Центральний офіс,38558365,Україна,зарплата,26008924418040,state,658.64,Хребто Максим Юрійович,,фізична особа
Самопоміч,Київ,84,2016-12-23,532,"Заробітна плата, премії","Заробітна плата, лікарняні, вагітності, відрядження, компенсації",378597,Центральний офіс,38558365,Україна,зарплата,26008924418040,state,2157.04,Хамітжанова Людмила Петрівна,,фізична особа
Самопоміч,"Івано-Франківська область, Коломийський район, Коломия",84,2016-12-23,532,"Заробітна плата, премії","Заробітна плата, лікарняні, вагітності, відрядження, компенсації",378596,Центральний офіс,38558365,Україна,зарплата,26008924418040,state,4100.01,Федюк Любомир Мирославович,,фізична особа
Самопоміч,"Херсонська область, Херсон",84,2016-12-23,532,"Заробітна плата, премії","Заробітна плата, лікарняні, вагітності, відрядження, компенсації",378595,Центральний офіс,38558365,Україна,зарплата,26008924418040,state,1646.59,Усенко Марина Владленівна,,фізична особа
Самопоміч,"Львівська область, Львів",84,2016-12-23,532,"Заробітна плата, премії","Заробітна плата, лікарняні, вагітності, відрядження, компенсації",378594,Центральний офіс,38558365,Україна,зарплата,26008924418040,state,1228.36,Туркот Ольга Андріївна,,фізична особа
Самопоміч,Київ,84,2016-12-23,532,"Заробітна плата, премії","Заробітна плата, лікарняні, вагітності, відрядження, компенсації",378593,Центральний офіс,38558365,Україна,зарплата,26008924418040,state,2058.24,Тунян Рафаель Арсенович,,фізична особа
Самопоміч,Київ,84,2016-12-23,532,"Заробітна плата, премії","Заробітна плата, лікарняні, вагітності, відрядження, компенсації",378592,Центральний офіс,38558365,Україна,зарплата,26008924418040,state,3273.42,Третьяков Сергій Іванович,,фізична особа
Самопоміч,"Чернігівська область, Чернігів",84,2016-12-23,532,"Заробітна плата, премії","Заробітна плата, лікарняні, вагітності, відрядження, компенсації",378591,Центральний офіс,38558365,Україна,зарплата,26008924418040,state,658.64,Травінцева Ганна Анатоліївна,,фізична особа
Самопоміч,"Житомирська область, Ружинський район, Зарудинці",84,2016-12-23,532,"Заробітна плата, премії","Заробітна плата, лікарняні, вагітності, відрядження, компенсації",378590,Центральний офіс,38558365,Україна,зарплата,26008924418040,state,694.86,Ткачук Богдан Олександрович,,фізична особа
Самопоміч,"Львівська область, Львів",84,2016-12-23,532,"Заробітна плата, премії","Заробітна плата, лікарняні, вагітності, відрядження, компенсації",378589,Центральний офіс,38558365,Україна,зарплата,26008924418040,state,6032.01,Тимочко Сюзанна Ігорівна,,фізична особа
Самопоміч,"Полтавська область, Лубни",84,2016-12-23,532,"Заробітна плата, премії","Заробітна плата, лікарняні, вагітності, відрядження, компенсації",378588,Центральний офіс,38558365,Україна,зарплата,26008924418040,state,823.30,Тедеєва Вікторія Михайлівна,,фізична особа
Самопоміч,"Львівська область, Львів",84,2016-12-23,532,"Заробітна плата, премії","Заробітна плата, лікарняні, вагітності, відрядження, компенсації",378587,Центральний офіс,38558365,Україна,зарплата,26008924418040,state,2496.24,Тацій Дмитро Володимирович,,фізична особа
Самопоміч,"Дніпропетровська область, Нікополь",84,2016-12-23,532,"Заробітна плата, премії","Заробітна плата, лікарняні, вагітності, відрядження, компенсації",378586,Центральний офіс,38558365,Україна,зарплата,26008924418040,state,395.19,Тарасенко Марія Анатоліївна,,фізична особа
Самопоміч,"Львівська область, Львів",84,2016-12-23,532,"Заробітна плата, премії","Заробітна плата, лікарняні, вагітності, відрядження, компенсації",378585,Центральний офіс,38558365,Україна,зарплата,26008924418040,state,3556.64,Сурмай Уляна Ігорівна,,фізична особа
Самопоміч,"Вінницька область, Барський район, Бар",84,2016-12-23,532,"Заробітна плата, премії","Заробітна плата, лікарняні, вагітності, відрядження, компенсації",378584,Центральний офіс,38558365,Україна,зарплата,26008924418040,state,411.65,Сурма Наталя Василівна,,фізична особа
Самопоміч,"Львівська область, Львів",84,2016-12-23,532,"Заробітна плата, премії","Заробітна плата, лікарняні, вагітності, відрядження, компенсації",378583,Центральний офіс,38558365,Україна,зарплата,26008924418040,state,2865.06,Супрун Марта Олегівна,,фізична особа
Самопоміч,м. Кропивницький,84,2016-12-23,532,"Заробітна плата, премії","Заробітна плата, лікарняні, вагітності, відрядження, компенсації",378582,Центральний офіс,38558365,Україна,зарплата,26008924418040,state,2469.89,Суліма Алла Володимирівна,,фізична особа
Самопоміч,"Хмельницька область, Волочиський район, Волочиськ",84,2016-12-23,532,"Заробітна плата, премії","Заробітна плата, лікарняні, вагітності, відрядження, компенсації",378581,Центральний офіс,38558365,Україна,зарплата,26008924418040,state,3688.36,Страз Оксана Антонівна,,фізична особа
Самопоміч,"Тернопільська область, Тернопіль",84,2016-12-23,532,"Заробітна плата, премії","Заробітна плата, лікарняні, вагітності, відрядження, компенсації",378580,Центральний офіс,38558365,Україна,зарплата,26008924418040,state,1536.81,Станкевич Марія Петрівна,,фізична особа
Самопоміч,"Вінницька область, Вінниця",84,2016-12-23,532,"Заробітна плата, премії","Заробітна плата, лікарняні, вагітності, відрядження, компенсації",378579,Центральний офіс,38558365,Україна,зпрплята,26008924418040,state,2865.06,Соколовська Марія Олександрівна,,фізична особа
Самопоміч,"Харківська область, Харків",84,2016-12-23,532,"Заробітна плата, премії","Заробітна плата, лікарняні, вагітності, відрядження, компенсації",378578,Центральний офіс,38558365,Україна,зарплата,26008924418040,state,3273.42,Соколова Марія Володимирівна,,фізична особа
Самопоміч,"Хмельницька область, Хмельницький",84,2016-12-23,532,"Заробітна плата, премії","Заробітна плата, лікарняні, вагітності, відрядження, компенсації",378577,Центральний офіс,38558365,Україна,зарплата,26008924418040,state,4764.14,Смолінська Ольга Броніславівна,,фізична особа
Самопоміч,Львівська область,84,2016-12-23,532,"Заробітна плата, премії","Заробітна плата, лікарняні, вагітності, відрядження, компенсації",378576,Центральний офіс,38558365,Україна,зарплата,26008924418040,state,2865.06,Смітюх Жанна Вікторівна,,фізична особа
Самопоміч,"Полтавська область, Чутівський район, Сторожове",84,2016-12-23,532,"Заробітна плата, премії","Заробітна плата, лікарняні, вагітності, відрядження, компенсації",378575,Центральний офіс,38558365,Україна,зарплата,26008924418040,state,2700.41,Скрипай Олександр Сергійович,,фізична особа
Самопоміч,"Черкаська область, Черкаси",84,2016-12-23,532,"Заробітна плата, премії","Заробітна плата, лікарняні, вагітності, відрядження, компенсації",378574,Центральний офіс,38558365,Україна,зарплата,26008924418040,state,1745.39,Скічко Вʼячеслав Павлович,,фізична особа
Самопоміч,м. Кропивницький,84,2016-12-23,532,"Заробітна плата, премії","Заробітна плата, лікарняні, вагітності, відрядження, компенсації",378573,Центральний офіс,38558365,Україна,зарплата,26008924418040,state,7637.99,Скалига Євгенія Анатоліївна,,фізична особа
Самопоміч,"Рівненська область, Костопільський район, Костопіль",84,2016-12-23,532,"Заробітна плата, премії","Заробітна плата, лікарняні, вагітності, відрядження, компенсації",378572,Центральний офіс,38558365,Україна,зарплата,26008924418040,state,816.71,Сидорчук Андрій Вікторович,,фізична особа
Самопоміч,Київ,84,2016-12-23,532,"Заробітна плата, премії","Заробітна плата, лікарняні, вагітності, відрядження, компенсації",378571,Центральний офіс,38558365,Україна,зарплата,26008924418040,state,4093.43,Сидоренко Ольга Валеріївна,,фізична особа
Самопоміч,"Чернігівська область, Ніжин",84,2016-12-23,532,"Заробітна плата, премії","Заробітна плата, лікарняні, вагітності, відрядження, компенсації",378570,Центральний офіс,38558365,Україна,зарплата,26008924418040,state,3442.47,Середа Дмитро Анатолійович,,фізична особа
Самопоміч,"Івано-Франківська область, Калуський район, Тужилів",84,2016-12-23,532,"Заробітна плата, премії","Заробітна плата, лікарняні, вагітності, відрядження, компенсації",378569,Центральний офіс,38558365,Україна,зарплата,26008924418040,state,526.91,Семанів Олег Валерійович,,фізична особа
Самопоміч,"Харківська область, Харків",84,2016-12-23,532,"Заробітна плата, премії","Заробітна плата, лікарняні, вагітності, відрядження, компенсації",378568,Центральний офіс,38558365,Україна,зарплата,26008924418040,state,658.64,Сегеда Ірина Валеріївна,,фізична особа
Самопоміч,"Івано-Франківська область, Рожнятівський район, Нижній Струтинь",84,2016-12-23,532,"Заробітна плата, премії","Заробітна плата, лікарняні, вагітності, відрядження, компенсації",378567,Центральний офіс,38558365,Україна,зарплати,26008924418040,state,526.91,Самілів Галина Василівна,,фізична особа
Самопоміч,Київ,84,2016-12-23,532,"Заробітна плата, премії","Заробітна плата, лікарняні, вагітності, відрядження, компенсації",378566,Центральний офіс,38558365,Україна,зарплата,26008924418040,state,3273.42,Савичук Олег Олександрович,,фізична особа
Самопоміч,"Харківська область, Харків",84,2016-12-23,532,"Заробітна плата, премії","Заробітна плата, лікарняні, вагітності, відрядження, компенсації",378565,Центральний офіс,38558365,Україна,зарплата,26008924418040,state,658.64,Савинська Ганна Олександрівна,,фізична особа
Самопоміч,м. Кропивницький,84,2016-12-23,532,"Заробітна плата, премії","Заробітна плата, лікарняні, вагітності, відрядження, компенсації",378564,Центральний офіс,38558365,Україна,зарплата,26008924418040,state,2697.11,Савенко Владислав Сергійович,,фізична особа
Самопоміч,"Хмельницька область, Хмельницький",84,2016-12-23,532,"Заробітна плата, премії","Заробітна плата, лікарняні, вагітності, відрядження, компенсації",378563,Центральний офіс,38558365,Україна,зарплата,26008924418040,state,2041.77,Рутковська Олена Юріївна,,фізична особа
Самопоміч,"Львівська область, Львів",84,2016-12-23,532,"Заробітна плата, премії","Заробітна плата, лікарняні, вагітності, відрядження, компенсації",378562,Центральний офіс,38558365,Україна,зарплата,26008924418040,state,5455.70,Рудич Анастасія Валентинівна,,фізична особа
Самопоміч,"Львівська область, Стебник",84,2016-12-23,532,"Заробітна плата, премії","Заробітна плата, лікарняні, вагітності, відрядження, компенсації",378561,Центральний офіс,38558365,Україна,зарплата,26008924418040,state,2252.54,Ромашин Тарас Миколайович,,фізична особа
Самопоміч,"Сумська область, Шостка",84,2016-12-23,532,"Заробітна плата, премії","Заробітна плата, лікарняні, вагітності, відрядження, компенсації",378560,Центральний офіс,38558365,Україна,зарплата,26008924418040,state,823.30,Рожкова Наталія Володимирівна,,фізична особа
Самопоміч,"Дніпропетровська область, Нікополь",84,2016-12-23,532,"Заробітна плата, премії","Заробітна плата, лікарняні, вагітності, відрядження, компенсації",378559,Центральний офіс,38558365,Україна,зарплата,26008924418040,state,592.77,Рехлицька Поліна Олександрівна,,фізична особа
Самопоміч,"Черкаська область, Черкаський район, Руська Поляна",84,2016-12-23,532,"Заробітна плата, премії","Заробітна плата, лікарняні, вагітності, відрядження, компенсації",378558,Центральний офіс,38558365,Україна,зарплата,26008924418040,state,1310.69,Ратушна Анна Юріївна,,фізична особа
Самопоміч,"Івано-Франківська область, Косівський район, Кобаки",84,2016-12-23,532,"Заробітна плата, премії","Заробітна плата, лікарняні, вагітності, відрядження, компенсації",378557,Центральний офіс,38558365,Україна,зарплата,26008924418040,state,526.91,Радиш Ольга Іванівна,,фізична особа
Самопоміч,"Івано-Франківська область, Галицький район, Бурштин",84,2016-12-23,532,"Заробітна плата, премії","Заробітна плата, лікарняні, вагітності, відрядження, компенсації",378556,Центральний офіс,38558365,Україна,зарплата,26008924418040,state,2453.42,Процик Юлія Петрівна,,фізична особа
Самопоміч,"Черкаська область, Корсунь-Шевченківський район, Корсунь-Шевченківський",84,2016-12-23,532,"Заробітна плата, премії","Заробітна плата, лікарняні, вагітності, відрядження, компенсації",378555,Центральний офіс,38558365,Україна,зарплата,26008924418040,state,1310.69,Почтар Олександр Васильович,,фізична особа
Самопоміч,"Полтавська область, Кременчуцький район, Горішні Плавні",84,2016-12-23,532,"Заробітна плата, премії","Заробітна плата, лікарняні, вагітності, відрядження, компенсації",378554,Центральний офіс,38558365,Україна,зарплата,26008924418040,state,675.10,Попович Наталія Фірузівна,,фізична особа
Самопоміч,"Дніпропетровська область, Павлоград",84,2016-12-23,532,"Заробітна плата, премії","Заробітна плата, лікарняні, вагітності, відрядження, компенсації",378553,Центральний офіс,38558365,Україна,зарплата,26008924418040,state,658.64,Пономаренко Анастасія Станіславівна,,фізична особа
Самопоміч,м. Кропивницький,84,2016-12-23,532,"Заробітна плата, премії","Заробітна плата, лікарняні, вагітності, відрядження, компенсації",378552,Центральний офіс,38558365,Україна,зарплата,26008924418040,state,2469.89,Погребнюк Артем Анатолійович,,фізична особа
Самопоміч,"Житомирська область, Житомир",84,2016-12-23,532,"Заробітна плата, премії","Заробітна плата, лікарняні, вагітності, відрядження, компенсації",378551,Центральний офіс,38558365,Україна,зарплата,26008924418040,state,2000.61,Плацинда Тетяна Анатоліївна,,фізична особа
Самопоміч,"Полтавська область, Кременчук",84,2016-12-23,532,"Заробітна плата, премії","Заробітна плата, лікарняні, вагітності, відрядження, компенсації",378550,Центральний офіс,38558365,Україна,зарплата,26008924418040,state,675.10,Плахотник Дмитро Миколайович,,фізична особа
Самопоміч,"Черкаська область, Черкаси",84,2016-12-23,532,"Заробітна плата, премії","Заробітна плата, лікарняні, вагітності, відрядження, компенсації",378549,Центральний офіс,38558365,Україна,зарплата,26008924418040,state,4100.01,Підгорний Максим Олександрович,,фізична особа
Самопоміч,"Дніпропетровська область, Нікополь",84,2016-12-23,532,"Заробітна плата, премії","Заробітна плата, лікарняні, вагітності, відрядження, компенсації",378548,Центральний офіс,38558365,Україна,зарплата,26008924418040,state,1310.69,Пиляй Інна Миколаївна,,фізична особа
Самопоміч,"Львівська область, Львів",84,2016-12-23,532,"Заробітна плата, премії","Заробітна плата, лікарняні, вагітності, відрядження, компенсації",378547,Центральний офіс,38558365,Україна,зарплата,26008924418040,state,3477.60,Пилипчук Марія Тарасівна,,фізична особа
Самопоміч,"Дніпропетровська область, Дніпро́",84,2016-12-23,532,"Заробітна плата, премії","Заробітна плата, лікарняні, вагітності, відрядження, компенсації",378546,Центральний офіс,38558365,Україна,зарплата,26008924418040,state,1712.45,Петренко Юлія Олександрівна,,фізична особа
Самопоміч,Київ,84,2016-12-23,532,"Заробітна плата, премії","Заробітна плата, лікарняні, вагітності, відрядження, компенсації",378545,Центральний офіс,38558365,Україна,зарплата,26008924418040,state,2707.00,Пахомова Ольга Анатоліївна,,фізична особа
Самопоміч,"Запорізька область, Токмак",84,2016-12-23,532,"Заробітна плата, премії","Заробітна плата, лікарняні, вагітності, відрядження, компенсації",378544,Центральний офіс,38558365,Україна,зарплата,26008924418040,state,737.67,Панасенко Тетяна Миколаївна,,фізична особа
Самопоміч,"Черкаська область, Умань",84,2016-12-23,532,"Заробітна плата, премії","Заробітна плата, лікарняні, вагітності, відрядження, компенсації",378543,Центральний офіс,38558365,Україна,зарплата,26008924418040,state,1310.69,Дудкевич Ганна Валентинівна,,фізична особа
Самопоміч,"Львівська область, Львів",84,2016-12-23,532,"Заробітна плата, премії","Заробітна плата, лікарняні, вагітності, відрядження, компенсації",378542,Центральний офіс,38558365,Україна,зарплата,26008924418040,state,2453.42,Остапʼюк Роксолана Любомирівна,,фізична особа
Самопоміч,"Рівненська область, Рівне",84,2016-12-23,532,"Заробітна плата, премії","Заробітна плата, лікарняні, вагітності, відрядження, компенсації",378541,Центральний офіс,38558365,Україна,зарплата,26008924418040,state,2041.77,Онопрійчук Анастасія Олегівна,,фізична особа
Самопоміч,"Дніпропетровська область, Кам’янське",84,2016-12-23,532,"Заробітна плата, премії","Заробітна плата, лікарняні, вагітності, відрядження, компенсації",378540,Центральний офіс,38558365,Україна,зарплата,26008924418040,state,1306.73,Олянюк Олена Анатоліївна,,фізична особа
Самопоміч,"Львівська область, Мостиський район, Волостків",84,2016-12-23,532,"Заробітна плата, премії","Заробітна плата, лікарняні, вагітності, відрядження, компенсації",378539,Центральний офіс,38558365,Україна,зарплата,26008924418040,state,1228.36,Олешко Оксана Богданівна,,фізична особа
Самопоміч,"Дніпропетровська область, Дніпро́",84,2016-12-23,532,"Заробітна плата, премії","Заробітна плата, лікарняні, вагітності, відрядження, компенсації",378538,Центральний офіс,38558365,Україна,зарплата,26008924418040,state,2865.06,Олексенко Юлія Геннадіївна,,фізична особа
Самопоміч,"Львівська область, Львів",84,2016-12-23,532,"Заробітна плата, премії","Заробітна плата, лікарняні, вагітності, відрядження, компенсації",378537,Центральний офіс,38558365,Україна,зарплата,26008924418040,state,2660.89,Окрепка Ілона Геннадіївна,,фізична особа
Самопоміч,"Львівська область, Львів",84,2016-12-23,532,"Заробітна плата, премії","Заробітна плата, лікарняні, вагітності, відрядження, компенсації",378536,Центральний офіс,38558365,Україна,зарплата,26008924418040,state,4083.55,Огоновський Юрій Ярославович,,фізична особа
Самопоміч,"Львівська область, Львів",84,2016-12-23,532,"Заробітна плата, премії","Заробітна плата, лікарняні, вагітності, відрядження, компенсації",378535,Центральний офіс,38558365,Україна,зарплата,26008924418040,state,7637.99,Огоновська Христина Богданівна,,фізична особа
Самопоміч,"Тернопільська область, Чортківський район, Чортків",84,2016-12-23,532,"Заробітна плата, премії","Заробітна плата, лікарняні, вагітності, відрядження, компенсації",378534,Центральний офіс,38558365,Україна,зарплата,26008924418040,state,612.54,Ніяскіна Альона Станіславівна,,фізична особа
Самопоміч,"Дніпропетровська область, Дніпро́",84,2016-12-23,532,"Заробітна плата, премії","Заробітна плата, лікарняні, вагітності, відрядження, компенсації",378533,Центральний офіс,38558365,Україна,зарплата,26008924418040,state,2074.70,Нікітін Андрій Юрійович,,фізична особа
Самопоміч,"Житомирська область, Овруцький район, Овруч",84,2016-12-23,532,"Заробітна плата, премії","Заробітна плата, лікарняні, вагітності, відрядження, компенсації",378532,Центральний офіс,38558365,Україна,зарплата,26008924418040,state,2865.06,Никончук Дмитро Миколайович,,фізична особа
Самопоміч,Київ,84,2016-12-23,532,"Заробітна плата, премії","Заробітна плата, лікарняні, вагітності, відрядження, компенсації",378531,Центральний офіс,38558365,Україна,зарплата,26008924418040,state,3276.71,Небрат Вікторія Петрівна,,фізична особа
Самопоміч,"Дніпропетровська область, Дніпро́",84,2016-12-23,532,"Заробітна плата, премії","Заробітна плата, лікарняні, вагітності, відрядження, компенсації",378530,Центральний офіс,38558365,Україна,зарплата,26008924418040,state,2469.89,Наказіна Ольга Олександрівна,,фізична особа
Самопоміч,"Львівська область, Сокальський район, Боб'ятин",84,2016-12-23,532,"Заробітна плата, премії","Заробітна плата, лікарняні, вагітності, відрядження, компенсації",378529,Центральний офіс,38558365,Україна,зарплата,26008924418040,state,1679.52,Назар Марія Ярославівна,,фізична особа
Самопоміч,"Львівська область, Пустомитівський район, Сокільники",84,2016-12-23,532,"Заробітна плата, премії","Заробітна плата, лікарняні, вагітності, відрядження, компенсації",378528,Центральний офіс,38558365,Україна,зарплата,26008924418040,state,1242.63,Мулява Уляна Ігорівна,,фізична особа
Самопоміч,"Тернопільська область, Бережанський район, Лапшин",84,2016-12-23,532,"Заробітна плата, премії","Заробітна плата, лікарняні, вагітності, відрядження, компенсації",378527,Центральний офіс,38558365,Україна,зарплата,26008924418040,state,526.91,Музичка Ростислав Іванович,,фізична особа
Самопоміч,"Хмельницька область, Хмельницький",84,2016-12-23,532,"Заробітна плата, премії","Заробітна плата, лікарняні, вагітності, відрядження, компенсації",378526,Центральний офіс,38558365,Україна,зарплата,26008924418040,state,2041.77,Моцний Микола Іванович,,фізична особа
Самопоміч,"Полтавська область, Полтава",84,2016-12-23,532,"Заробітна плата, премії","Заробітна плата, лікарняні, вагітності, відрядження, компенсації",378525,Центральний офіс,38558365,Україна,зарплата,26008924418040,state,3073.64,Мосієнко Віта Борисівна,,фізична особа
Самопоміч,"Івано-Франківська область, Богородчанський район, Підгір'я",84,2016-12-23,532,"Заробітна плата, премії","Заробітна плата, лікарняні, вагітності, відрядження, компенсації",378524,Центральний офіс,38558365,Україна,зарплата,26008924418040,state,526.91,Міщанин Світлана Богданівна,,фізична особа
Самопоміч,"Львівська область, Львів",84,2016-12-23,532,"Заробітна плата, премії","Заробітна плата, лікарняні, вагітності, відрядження, компенсації",378523,Центральний офіс,38558365,Україна,зарплата,26008924418040,state,1228.36,Михайленко Світлана Романівна,,фізична особа
Самопоміч,"Чернігівська область, Чернігівський район, Михайло-Коцюбинське",84,2016-12-23,532,"Заробітна плата, премії","Заробітна плата, лікарняні, вагітності, відрядження, компенсації",378522,Центральний офіс,38558365,Україна,зарплата,26008924418040,state,2382.06,Миненок Олена Павлівна,,фізична особа
Самопоміч,"Івано-Франківська область, Тисменицький район, Тисмениця",84,2016-12-23,532,"Заробітна плата, премії","Заробітна плата, лікарняні, вагітності, відрядження, компенсації",378521,Центральний офіс,38558365,Україна,зарплата,26008924418040,state,2865.06,Микитин Тарас Миронович,,фізична особа
Самопоміч,"Харківська область, Харків",84,2016-12-23,532,"Заробітна плата, премії","Заробітна плата, лікарняні, вагітності, відрядження, компенсації",378520,Центральний офіс,38558365,Україна,зарплата,26008924418040,state,658.64,Матвієнко Олена Миколаївна,,фізична особа
Самопоміч,"Волинська область, Нововолинськ",84,2016-12-23,532,"Заробітна плата, премії","Заробітна плата, лікарняні, вагітності, відрядження, компенсації",378519,Центральний офіс,38558365,Україна,зарплата,26008924418040,state,1267.88,Манькута Олена Олексіївна,,фізична особа
Самопоміч,Київ,84,2016-12-23,532,"Заробітна плата, премії","Заробітна плата, лікарняні, вагітності, відрядження, компенсації",378518,Центральний офіс,38558365,Україна,зарплата,26008924418040,state,2865.06,Маметова Айше Серверівна,,фізична особа
Самопоміч,"Харківська область, Харків",84,2016-12-23,532,"Заробітна плата, премії","Заробітна плата, лікарняні, вагітності, відрядження, компенсації",378517,Центральний офіс,38558365,Україна,зарплата,26008924418040,state,1840.89,Мамай Наталія Миколаївна,,фізична особа
Самопоміч,"Івано-Франківська область, Коломийський район, Коломия",84,2016-12-23,532,"Заробітна плата, премії","Заробітна плата, лікарняні, вагітності, відрядження, компенсації",378516,Центральний офіс,38558365,Україна,зарплата,26008924418040,state,526.91,Малиш Орест Ярославович,,фізична особа
Самопоміч,"Чернігівська область, Ніжин",84,2016-12-23,532,"Заробітна плата, премії","Заробітна плата, лікарняні, вагітності, відрядження, компенсації",378515,Центральний офіс,38558365,Україна,зарплата,26008924418040,state,3442.47,Лях Владислав Михайлович,,фізична особа
Самопоміч,"Київська обл., Біла Церква",84,2016-12-23,532,"Заробітна плата, премії","Заробітна плата, лікарняні, вагітності, відрядження, компенсації",378514,Центральний офіс,38558365,Україна,зарплата,26008924418040,state,5452.05,Луценко Тетяна Михайлівна,,фізична особа
Самопоміч,"Львівська область, Львів",84,2016-12-23,532,"Заробітна плата, премії","Заробітна плата, лікарняні, вагітності, відрядження, компенсації",378513,Центральний офіс,38558365,Україна,зарплата,26008924418040,state,6032.01,Ліпша Ростислав Сергійович,,фізична особа
Самопоміч,"Чернігівська область, Прилуки",84,2016-12-23,532,"Заробітна плата, премії","Заробітна плата, лікарняні, вагітності, відрядження, компенсації",378512,Центральний офіс,38558365,Україна,зарплата,26008924418040,state,2496.24,Личман Катерина Юріївна,,фізична особа
Самопоміч,"Львівська область, Кам'янка-Бузький район, Кам'янка-Бузька, вулиця Незалежності, 27",84,2016-12-23,532,"Заробітна плата, премії","Заробітна плата, лікарняні, вагітності, відрядження, компенсації",378511,Центральний офіс,38558365,Україна,зарплата,26008924418040,state,1228.36,Лах Влада Владиславівна,,фізична особа
Самопоміч,"Івано-Франківська область, Калуш",84,2016-12-23,532,"Заробітна плата, премії","Заробітна плата, лікарняні, вагітності, відрядження, компенсації",378510,Центральний офіс,38558365,Україна,зарплата,26008924418040,state,526.91,Лаврик Галина Станіславівна,,фізична особа
Самопоміч,Київ,84,2016-12-23,532,"Заробітна плата, премії","Заробітна плата, лікарняні, вагітності, відрядження, компенсації",378509,Центральний офіс,38558365,Україна,зарплата,26008924418040,state,2496.24,Лабун Олександр Сергійович,,фізична особа
Самопоміч,"Полтавська область, Полтава",84,2016-12-23,532,"Заробітна плата, премії","Заробітна плата, лікарняні, вагітності, відрядження, компенсації",378508,Центральний офіс,38558365,Україна,зарплата,26008924418040,state,3818.99,Кущинський Вʼячеслав Олександрович,,фізична особа
Самопоміч,"Житомирська область, Житомир",84,2016-12-23,532,"Заробітна плата, премії","Заробітна плата, лікарняні, вагітності, відрядження, компенсації",378507,Центральний офіс,38558365,Україна,зарплата,26008924418040,state,2996.80,Кучмін Олена Сергіївна,,фізична особа
Самопоміч,"Львівська область, Львів",84,2016-12-23,532,"Заробітна плата, премії","Заробітна плата, лікарняні, вагітності, відрядження, компенсації",378506,Центральний офіс,38558365,Україна,зарплата,26008924418040,state,4083.55,Кучеренко Олексій Ігорович,,фізична особа
Самопоміч,"Чернівецька область, Чернівці",84,2016-12-23,532,"Заробітна плата, премії","Заробітна плата, лікарняні, вагітності, відрядження, компенсації",378505,Центральний офіс,38558365,Україна,зарплата,26008924418040,state,1646.59,Куцяк Вадим Олександрович,,фізична особа
Самопоміч,Київ,84,2016-12-23,532,"Заробітна плата, премії","Заробітна плата, лікарняні, вагітності, відрядження, компенсації",378504,Центральний офіс,38558365,Україна,зарплата,26008924418040,state,869.40,Купенко Дарʼя Андріївна,,фізична особа
Самопоміч,"Львівська область, Львів",84,2016-12-23,532,"Заробітна плата, премії","Заробітна плата, лікарняні, вагітності, відрядження, компенсації",378503,Центральний офіс,38558365,Україна,зарплата,26008924418040,state,1432.54,Крупей Микола Ігорович,,фізична особа
Самопоміч,"Львівська область, Львів",84,2016-12-23,532,"Заробітна плата, премії","Заробітна плата, лікарняні, вагітності, відрядження, компенсації",378502,Центральний офіс,38558365,Україна,зарплата,26008924418040,state,1926.51,Кравчик Орест Романович,,фізична особа
Самопоміч,"Дніпропетровська область, Марганець",84,2016-12-23,532,"Заробітна плата, премії","Заробітна плата, лікарняні, вагітності, відрядження, компенсації",378501,Центральний офіс,38558365,Україна,зарплата,26008924418040,state,658.64,Кравченко Наталія Іванівна,,фізична особа
Самопоміч,"Одеська область, Чорноморськ",84,2016-12-23,532,"Заробітна плата, премії","Заробітна плата, лікарняні, вагітності, відрядження, компенсації",378500,Центральний офіс,38558365,Україна,зарплата,26008924418040,state,1646.59,Кочан Анна Олександрівна,,фізична особа
Самопоміч,"Львівська область, Львів",84,2016-12-23,532,"Заробітна плата, премії","Заробітна плата, лікарняні, вагітності, відрядження, компенсації",378499,Центральний офіс,38558365,Україна,зарплата,26008924418040,state,1679.52,Котляров Олександр Володимирович,,фізична особа
Самопоміч,"Закарпатська область, Тячівський район, Тячів",84,2016-12-23,532,"Заробітна плата, премії","Заробітна плата, лікарняні, вагітності, відрядження, компенсації",378498,Центральний офіс,38558365,Україна,зарплата,26008924418040,state,955.39,Кость Владислава Федорівна,,фізична особа
Самопоміч,"Івано-Франківська область, Івано-Франківськ",84,2016-12-23,532,"Заробітна плата, премії","Заробітна плата, лікарняні, вагітності, відрядження, компенсації",378497,Центральний офіс,38558365,Україна,зарплата,26008924418040,state,1251.41,Костюк Ярина Юріївна,,фізична особа
Самопоміч,"Львівська область, Львів",84,2016-12-23,532,"Заробітна плата, премії","Заробітна плата, лікарняні, вагітності, відрядження, компенсації",378496,Центральний офіс,38558365,Україна,зарплата,26008924418040,state,5455.70,Косович Ліліана Володимирівна,,фізична особа
Самопоміч,"Львівська область, Львів",84,2016-12-23,532,"Заробітна плата, премії","Заробітна плата, лікарняні, вагітності, відрядження, компенсації",378495,Центральний офіс,38558365,Україна,зарплата,26008924418040,state,1432.54,Коровець Роксолана Тарасівна,,фізична особа
Самопоміч,Київ,84,2016-12-23,532,"Заробітна плата, премії","Заробітна плата, лікарняні, вагітності, відрядження, компенсації",378494,Центральний офіс,38558365,Україна,зарплата,26008924418040,state,1066.99,Корніченко Леся Владиславівна,,фізична особа
Самопоміч,"Сумська область, Конотоп",84,2016-12-23,532,"Заробітна плата, премії","Заробітна плата, лікарняні, вагітності, відрядження, компенсації",378493,Центральний офіс,38558365,Україна,зарплата,26008924418040,state,612.54,Кондратьєва Анастасія Ігорівна,,фізична особа
Самопоміч,Київ,84,2016-12-23,532,"Заробітна плата, премії","Заробітна плата, лікарняні, вагітності, відрядження, компенсації",378492,Центральний офіс,38558365,Україна,зарплата,26008924418040,state,694.86,Коба Антон Володимирович,,фізична особа
Самопоміч,Київ,84,2016-12-23,532,"Заробітна плата, премії","Заробітна плата, лікарняні, вагітності, відрядження, компенсації",378491,Центральний офіс,38558365,Україна,зарплата,26008924418040,state,2453.42,Книш Катерина Олегівна,,фізична особа
Самопоміч,"Кіровоградська область, Світловодськ",84,2016-12-23,532,"Заробітна плата, премії","Заробітна плата, лікарняні, вагітності, відрядження, компенсації",378490,Центральний офіс,38558365,Україна,зарплата,26008924418040,state,3276.71,Клименко Олександр Сергійович,,фізична особа
Самопоміч,Київ,84,2016-12-23,532,"Заробітна плата, премії","Заробітна плата, лікарняні, вагітності, відрядження, компенсації",378489,Центральний офіс,38558365,Україна,зарплата,26008924418040,state,2848.60,Клименко Марія Вадимівна,,фізична особа
Самопоміч,Київ,84,2016-12-23,532,"Заробітна плата, премії","Заробітна плата, лікарняні, вагітності, відрядження, компенсації",378488,Центральний офіс,38558365,Україна,зарплата,26008924418040,state,3276.71,Кирилов Володимир Сергійович,,фізична особа
Самопоміч,Київ,84,2016-12-23,532,"Заробітна плата, премії","Заробітна плата, лікарняні, вагітності, відрядження, компенсації",378487,Центральний офіс,38558365,Україна,зарплата,26008924418040,state,3273.42,Квітко Інна Василівна,,фізична особа
Самопоміч,Тернопільська область,84,2016-12-23,532,"Заробітна плата, премії","Заробітна плата, лікарняні, вагітності, відрядження, компенсації",378486,Центральний офіс,38558365,Україна,зарплата,26008924418040,state,190.27,Карпович Андрій Сергійович,,фізична особа
Самопоміч,"Львівська область, Львів",84,2016-12-23,532,"Заробітна плата, премії","Заробітна плата, лікарняні, вагітності, відрядження, компенсації",378485,Центральний офіс,38558365,Україна,зарплата,26008924418040,state,4093.43,Камінська Ірина Степанівна,,фізична особа
Самопоміч,"Львівська область, Львів",84,2016-12-23,532,"Заробітна плата, премії","Заробітна плата, лікарняні, вагітності, відрядження, компенсації",378484,Центральний офіс,38558365,Україна,зарплата,26008924418040,state,4100.01,Івасько Лілія Михайлівна,,фізична особа
Самопоміч,Київ,84,2016-12-23,532,"Заробітна плата, премії","Заробітна плата, лікарняні, вагітності, відрядження, компенсації",378483,Центральний офіс,38558365,Україна,зарплата,26008924418040,state,4791.58,Зубер Світлана Олександрівна,,фізична особа
Самопоміч,"Львівська область, Львів",84,2016-12-23,532,"Заробітна плата, премії","Заробітна плата, лікарняні, вагітності, відрядження, компенсації",378482,Центральний офіс,38558365,Україна,зарплата,26008924418040,state,6992.52,Зуб Ігор Романович,,фізична особа
Самопоміч,"Львівська область, Львів",84,2016-12-23,532,"Заробітна плата, премії","Заробітна плата, лікарняні, вагітності, відрядження, компенсації",378481,Центральний офіс,38558365,Україна,зарплата,26008924418040,state,2041.77,Зінченко Тарас Ігорович,,фізична особа
Самопоміч,"Сумська область, Сумський район, Суми",84,2016-12-23,532,"Заробітна плата, премії","Заробітна плата, лікарняні, вагітності, відрядження, компенсації",378480,Центральний офіс,38558365,Україна,зарплата,26008924418040,state,612.54,Зименко Олександр Вікторович,,фізична особа
Самопоміч,"Закарпатська область, Берегівський район",84,2016-12-23,532,"Заробітна плата, премії","Заробітна плата, лікарняні, вагітності, відрядження, компенсації",378479,Центральний офіс,38558365,Україна,зарплата,26008924418040,state,2865.06,Зеленко Тетяна Михайлівна,,фізична особа
Самопоміч,"Чернівецька область, Сторожинецький район, Сторожинець",84,2016-12-23,532,"Заробітна плата, премії","Заробітна плата, лікарняні, вагітності, відрядження, компенсації",378478,Центральний офіс,38558365,Україна,зарплата,26008924418040,state,2305.23,Заня Микола Васильович,,фізична особа
Самопоміч,"Тернопільська область, Чортківський район, Чортків",84,2016-12-23,532,"Заробітна плата, премії","Заробітна плата, лікарняні, вагітності, відрядження, компенсації",378477,Центральний офіс,38558365,Україна,зарплата,26008924418040,state,4498.49,Заболотна Оксана Анатоліївна,,фізична особа
Самопоміч,"Львівська область, Львів",84,2016-12-23,532,"Заробітна плата, премії","Заробітна плата, лікарняні, вагітності, відрядження, компенсації",378476,Центральний офіс,38558365,Україна,зарплата,26008924418040,state,1228.36,Жулинець Роман Володимирович,,фізична особа
Самопоміч,"Полтавська область, Полтава",84,2016-12-23,532,"Заробітна плата, премії","Заробітна плата, лікарняні, вагітності, відрядження, компенсації",378475,Центральний офіс,38558365,Україна,зарплата,26008924418040,state,1798.08,Желєзкіна Марина Олександрівна,,фізична особа
Самопоміч,Київ,84,2016-12-23,532,"Заробітна плата, премії","Заробітна плата, лікарняні, вагітності, відрядження, компенсації",378474,Центральний офіс,38558365,Україна,зарплата,26008924418040,state,1886.99,Єременко Анна Володимирівна,,фізична особа
Самопоміч,"Львівська область, Львів",84,2016-12-23,532,"Заробітна плата, премії","Заробітна плата, лікарняні, вагітності, відрядження, компенсації",378473,Центральний офіс,38558365,Україна,зарплата,26008924418040,state,1228.36,Дятел Наталія Ігорівна,,фізична особа
Самопоміч,"Львівська область, Львів",84,2016-12-23,532,"Заробітна плата, премії","Заробітна плата, лікарняні, вагітності, відрядження, компенсації",378472,Центральний офіс,38558365,Україна,зарплата,26008924418040,state,4093.42,Дунаєвська Ольга Євстахіївна,,фізична особа
Самопоміч,"Дніпропетровська область, Дніпро́",84,2016-12-23,532,"Заробітна плата, премії","Заробітна плата, лікарняні, вагітності, відрядження, компенсації",378471,Центральний офіс,38558365,Україна,зарплата,26008924418040,state,1712.45,Дука Олександр Олександрович,,фізична особа
Самопоміч,"Чернівецька область, Чернівці",84,2016-12-23,532,"Заробітна плата, премії","Заробітна плата, лікарняні, вагітності, відрядження, компенсації",378470,Центральний офіс,38558365,Україна,зарплата,26008924418040,state,362.25,Дубровна Наталія Володимирівна,,фізична особа
Самопоміч,"Львівська область, Львів",84,2016-12-23,532,"Заробітна плата, премії","Заробітна плата, лікарняні, вагітності, відрядження, компенсації",378469,Центральний офіс,38558365,Україна,зарплата,26008924418040,state,3276.71,Дроздова Анна Юріївна,,фізична особа
Самопоміч,"Луганська область, Алчевськ",84,2016-12-23,532,"Заробітна плата, премії","Заробітна плата, лікарняні, вагітності, відрядження, компенсації",378468,Центральний офіс,38558365,Україна,зарплата,26008924418040,state,1498.40,Дорохін Сергій Олександрович,,фізична особа
Самопоміч,м. Кропивницький,84,2016-12-23,532,"Заробітна плата, премії","Заробітна плата, лікарняні, вагітності, відрядження, компенсації",378467,Центральний офіс,38558365,Україна,зарплата,26008924418040,state,3273.42,Доленко Іван Володимирович,,фізична особа
Самопоміч,"Львівська область, Львів",84,2016-12-23,532,"Заробітна плата, премії","Заробітна плата, лікарняні, вагітності, відрядження, компенсації",378466,Центральний офіс,38558365,Україна,зарплата,26008924418040,state,1228.36,Довганик Богдан Романович,,фізична особа
Самопоміч,"Житомирська область, Житомир",84,2016-12-23,532,"Заробітна плата, премії","Заробітна плата, лікарняні, вагітності, відрядження, компенсації",378465,Центральний офіс,38558365,Україна,зарплата,26008924418040,state,2502.81,Дідківська Альона Михайлівна,,фізична особа
Самопоміч,Київ,84,2016-12-23,532,"Заробітна плата, премії","Заробітна плата, лікарняні, вагітності, відрядження, компенсації",378464,Центральний офіс,38558365,Україна,зарплата,26008924418040,state,1952.86,Демедюк Сніжана Василівна,,фізична особа
Самопоміч,"Львівська область, Львів",84,2016-12-23,532,"Заробітна плата, премії","Заробітна плата, лікарняні, вагітності, відрядження, компенсації",378463,Центральний офіс,38558365,Україна,зарплата,26008924418040,state,11180.35,Дедишин Володимир Євгенович,,фізична особа
Самопоміч,"Житомирська область, Житомир",84,2016-12-23,532,"Заробітна плата, премії","Заробітна плата, лікарняні, вагітності, відрядження, компенсації",378462,Центральний офіс,38558365,Україна,зарплата,26008924418040,state,1004.42,Дворак Тетяна Миколаївна,,фізична особа
Самопоміч,"Закарпатська область, Ужгород, вулиця Климпуша",84,2016-12-23,532,"Заробітна плата, премії","Заробітна плата, лікарняні, вагітності, відрядження, компенсації",378461,Центральний офіс,38558365,Україна,зарплата,26008924418040,state,2866.16,Дацюк Софія Олегівна,,фізична особа
Самопоміч,"Львівська область, Червоноград",84,2016-12-23,532,"Заробітна плата, премії","Заробітна плата, лікарняні, вагітності, відрядження, компенсації",378460,Центральний офіс,38558365,Україна,зарплата,26008924418040,state,1877.11,Давидович Любов Павлівна,,фізична особа
Самопоміч,"Рівненська область, Радивилівський район, Крупець",84,2016-12-23,532,"Заробітна плата, премії","Заробітна плата, лікарняні, вагітності, відрядження, компенсації",378459,Центральний офіс,38558365,Україна,зарплата,26008924418040,state,9543.64,Гузінський Василь Васильович,,фізична особа
Самопоміч,"Львівська область, Городоцький район, Городок",84,2016-12-23,532,"Заробітна плата, премії","Заробітна плата, лікарняні, вагітності, відрядження, компенсації",378458,Центральний офіс,38558365,Україна,зарплата,26008924418040,state,2288.76,Гринчишин Марія Ігорівна,,фізична особа
Самопоміч,"Вінницька область, Жмеринка",84,2016-12-23,532,"Заробітна плата, премії","Заробітна плата, лікарняні, вагітності, відрядження, компенсації",378457,Центральний офіс,38558365,Україна,зарплата,26008924418040,state,3183.41,Горчук Микола Володимирович,,фізична особа
Самопоміч,"Полтавська область, Кременчук",84,2016-12-23,532,"Заробітна плата, премії","Заробітна плата, лікарняні, вагітності, відрядження, компенсації",378456,Центральний офіс,38558365,Україна,зарплата,26008924418040,state,658.64,Горнєва Ірина Олександрівна,,фізична особа
Самопоміч,Київ,84,2016-12-23,532,"Заробітна плата, премії","Заробітна плата, лікарняні, вагітності, відрядження, компенсації",378455,Центральний офіс,38558365,Україна,зарплата,26008924418040,state,3276.71,Голубіцька Ольга Зенонівна,,фізична особа
Самопоміч,"Івано-Франківська область, Івано-Франківськ",84,2016-12-23,532,"Заробітна плата, премії","Заробітна плата, лікарняні, вагітності, відрядження, компенсації",378454,Центральний офіс,38558365,Україна,зарплата,26008924418040,state,1251.41,Голос Олена Володимирівна,,фізична особа
Самопоміч,"Львівська область, Львів",84,2016-12-23,532,"Заробітна плата, премії","Заробітна плата, лікарняні, вагітності, відрядження, компенсації",378453,Центральний офіс,38558365,Україна,зарплата,26008924418040,state,3276.71,Гапп Максим Стахович,,фізична особа
Самопоміч,"Івано-Франківська область, Тлумацький район, Тлумач",84,2016-12-23,532,"Заробітна плата, премії","Заробітна плата, лікарняні, вагітності, відрядження, компенсації",378452,Центральний офіс,38558365,Україна,зарплата,26008924418040,state,526.91,Гнатюк Петро Михайлович,,фізична особа
Самопоміч,Київ,84,2016-12-23,532,"Заробітна плата, премії","Заробітна плата, лікарняні, вагітності, відрядження, компенсації",378451,Центральний офіс,38558365,Україна,зарплата,26008924418040,state,2384.26,Геращенко Алла Рудольфівна,,фізична особа
Самопоміч,"Миколаївська область, Миколаїв",84,2016-12-23,532,"Заробітна плата, премії","Заробітна плата, лікарняні, вагітності, відрядження, компенсації",378450,Центральний офіс,38558365,Україна,зарплата,26008924418040,state,1432.54,Герасіменя Тетяна Олександрівна,,фізична особа
Самопоміч,"Житомирська область, Житомир",84,2016-12-23,532,"Заробітна плата, премії","Заробітна плата, лікарняні, вагітності, відрядження, компенсації",378449,Центральний офіс,38558365,Україна,зарплата,26008924418040,state,2000.61,Гаврилюк Наталія Михайлівна,,фізична особа
Самопоміч,Київ,84,2016-12-23,532,"Заробітна плата, премії","Заробітна плата, лікарняні, вагітності, відрядження, компенсації",378448,Центральний офіс,38558365,Україна,зарплата,26008924418040,state,2660.89,Воронцова Ілона Артурівна,,фізична особа
Самопоміч,"Івано-Франківська область, Рогатинський район, Кутці",84,2016-12-23,532,"Заробітна плата, премії","Заробітна плата, лікарняні, вагітності, відрядження, компенсації",378447,Центральний офіс,38558365,Україна,зарплата,26008924418040,state,362.25,Воробець Христина Михайлівна,,фізична особа
Самопоміч,"Івано-Франківська область, Івано-Франківськ",84,2016-12-23,532,"Заробітна плата, премії","Заробітна плата, лікарняні, вагітності, відрядження, компенсації",378446,Центральний офіс,38558365,Україна,зарплата,26008924418040,state,3183.41,Войтович Роман Степанович,,фізична особа
Самопоміч,"Волинська область, Луцьк",84,2016-12-23,532,"Заробітна плата, премії","Заробітна плата, лікарняні, вагітності, відрядження, компенсації",378445,Центральний офіс,38558365,Україна,зарплата,26008924418040,state,1267.88,Вінник Олександра Олександрівна,,фізична особа
Самопоміч,"Львівська область, Львів",84,2016-12-23,532,"Заробітна плата, премії","Заробітна плата, лікарняні, вагітності, відрядження, компенсації",378444,Центральний офіс,38558365,Україна,зарплата,26008924418040,state,3073.64,Васів Наталія Юріївна,,фізична особа
Самопоміч,"Львівська область, Сокальський район, Сокаль",84,2016-12-23,532,"Заробітна плата, премії","Заробітна плата, лікарняні, вагітності, відрядження, компенсації",378443,Центральний офіс,38558365,Україна,зарплата,26008924418040,state,2469.89,Вавринчук Зоряна Петрівна,,фізична особа
Самопоміч,"Дніпропетровська область, Дніпровський район, Підгородне",84,2016-12-23,532,"Заробітна плата, премії","Заробітна плата, лікарняні, вагітності, відрядження, компенсації",378442,Центральний офіс,38558365,Україна,зарплата,26008924418040,state,2469.89,Бухтіяров Олег Геннадійович,,фізична особа
Самопоміч,"Кіровоградська область, Кропивницький",84,2016-12-23,532,"Заробітна плата, премії","Заробітна плата, лікарняні, вагітності, відрядження, компенсації",378441,Центральний офіс,38558365,Україна,зарплата,26008924418040,state,2469.89,Будько Вадим Ігорович,,фізична особа
Самопоміч,"Київська обл., Бучанська район, Буча, вулиця Пушкінська",84,2016-12-23,532,"Заробітна плата, премії","Заробітна плата, лікарняні, вагітності, відрядження, компенсації",378440,Центральний офіс,38558365,Україна,зарплата,26008924418040,state,4100.01,Бровченко Богдан Юрійович,,фізична особа
Самопоміч,"Вінницька область, Немирівський район, Немирів",84,2016-12-23,532,"Заробітна плата, премії","Заробітна плата, лікарняні, вагітності, відрядження, компенсації",378439,Центральний офіс,38558365,Україна,зарплата,26008924418040,state,4498.49,Боченко Павло Сергійович,,фізична особа
Самопоміч,"Київська обл., Білоцерківський район, Мала Вільшанка",84,2016-12-23,532,"Заробітна плата, премії","Заробітна плата, лікарняні, вагітності, відрядження, компенсації",378438,Центральний офіс,38558365,Україна,зарплата,26008924418040,state,2660.89,Бондаренко Іван-Ілля Васильович,,фізична особа
Самопоміч,"Львівська область, Жидачівський район, Жидачів",84,2016-12-23,532,"Заробітна плата, премії","Заробітна плата, лікарняні, вагітності, відрядження, компенсації",378437,Центральний офіс,38558365,Україна,зарплата,26008924418040,state,2453.42,Бойчук Олеся Богданівна,,фізична особа
Самопоміч,"Хмельницька область, Хмельницький",84,2016-12-23,532,"Заробітна плата, премії","Заробітна плата, лікарняні, вагітності, відрядження, компенсації",378436,Центральний офіс,38558365,Україна,зарплата,26008924418040,state,2865.06,Божеску Анастасія Олександрівна,,фізична особа
Самопоміч,"Львівська область, Львів",84,2016-12-23,532,"Заробітна плата, премії","Заробітна плата, лікарняні, вагітності, відрядження, компенсації",378435,Центральний офіс,38558365,Україна,зарплата,26008924418040,state,9543.64,Блінова Світлана Миколаївна,,фізична особа
Самопоміч,Київська обл.,84,2016-12-23,532,"Заробітна плата, премії","Заробітна плата, лікарняні, вагітності, відрядження, компенсації",378434,Центральний офіс,38558365,Україна,зарплата,26008924418040,state,612.54,Бісюк Наталія Миколаївна,,фізична особа
Самопоміч,"Сумська область, Сумський район, Суми",84,2016-12-23,532,"Заробітна плата, премії","Заробітна плата, лікарняні, вагітності, відрядження, компенсації",378433,Центральний офіс,38558365,Україна,зарплата,26008924418040,state,1020.89,Бєлікова Олена Миколаївна,,фізична особа
Самопоміч,"Київська обл., Києво-Святошинський район, Вишневе",84,2016-12-23,532,"Заробітна плата, премії","Заробітна плата, лікарняні, вагітності, відрядження, компенсації",378432,Центральний офіс,38558365,Україна,зарплата,26008924418040,state,4791.58,Берко Степан Тарасович,,фізична особа
Самопоміч,"Львівська область, Львів",84,2016-12-23,532,"Заробітна плата, премії","Заробітна плата, лікарняні, вагітності, відрядження, компенсації",378431,Центральний офіс,38558365,Україна,зарплата,26008924418040,state,2496.24,Бенцало Любов Леонідівна,,фізична особа
Самопоміч,"Харківська область, Харків",84,2016-12-23,532,"Заробітна плата, премії","Заробітна плата, лікарняні, вагітності, відрядження, компенсації",378430,Центральний офіс,38558365,Україна,зарплата,26008924418040,state,1840.89,Бахтігозіна Марина Віталіївна,,фізична особа
Самопоміч,"Львівська область, Стебник",84,2016-12-23,532,"Заробітна плата, премії","Заробітна плата, лікарняні, вагітності, відрядження, компенсації",378429,Центральний офіс,38558365,Україна,зарплата,26008924418040,state,4802.56,Басик Андрій Миколайович,,фізична особа
Самопоміч,"Рівненська область, Острог",84,2016-12-23,532,"Заробітна плата, премії","Заробітна плата, лікарняні, вагітності, відрядження, компенсації",378428,Центральний офіс,38558365,Україна,зарплата,26008924418040,state,1472.05,Балик Дмитро Миколайович,,фізична особа
Самопоміч,Севастополь,84,2016-12-23,532,"Заробітна плата, премії","Заробітна плата, лікарняні, вагітності, відрядження, компенсації",378427,Центральний офіс,38558365,Україна,зарплата,26008924418040,state,658.64,Балдига Лілія Олександрівна,,фізична особа
Самопоміч,Київ,84,2016-12-23,532,"Заробітна плата, премії","Заробітна плата, лікарняні, вагітності, відрядження, компенсації",378426,Центральний офіс,38558365,Україна,зарплата,26008924418040,state,4791.58,Балашова Юлія Олександрівна,,фізична особа
Самопоміч,Київ,84,2016-12-23,532,"Заробітна плата, премії","Заробітна плата, лікарняні, вагітності, відрядження, компенсації",378425,Центральний офіс,38558365,Україна,зарплата,26008924418040,state,4100.01,Баланович Станіслав Васильович,,фізична особа
Самопоміч,"Житомирська область, Житомир",84,2016-12-23,532,"Заробітна плата, премії","Заробітна плата, лікарняні, вагітності, відрядження, компенсації",378424,Центральний офіс,38558365,Україна,зарплата,26008924418040,state,3688.36,Байдик Анна Сергіївна,,фізична особа
Самопоміч,"Волинська область, Ратнівський район, Гірники",84,2016-12-23,532,"Заробітна плата, премії","Заробітна плата, лікарняні, вагітності, відрядження, компенсації",378423,Центральний офіс,38558365,Україна,зарплата,26008924418040,state,1020.89,Базарнова Оксана Анатоліївна,,фізична особа
Самопоміч,"Івано-Франківська область, Косівський район, Косів",84,2016-12-23,532,"Заробітна плата, премії","Заробітна плата, лікарняні, вагітності, відрядження, компенсації",378422,Центральний офіс,38558365,Україна,зарплата,26008924418040,state,4791.58,Атаманюк Василь Васильович,,фізична особа
Самопоміч,"Харківська область, Дергачівський район, Дергачі",84,2016-12-23,532,"Заробітна плата, премії","Заробітна плата, лікарняні, вагітності, відрядження, компенсації",378421,Центральний офіс,38558365,Україна,зарплата,26008924418040,state,3818.99,Анчишкін Олександр Володимирович,,фізична особа
Самопоміч,"Львівська область, Львів",84,2016-12-23,532,"Заробітна плата, премії","Заробітна плата, лікарняні, вагітності, відрядження, компенсації",378420,Центральний офіс,38558365,Україна,зарплата,26008924418040,state,5003.07,Алєксєєва Наталія Ігорівна,,фізична особа
Самопоміч,"Луганська область, Старобільський район, Старобільськ, вулиця Слобожанська, 68",43,2016-12-23,613,Інші витрати,Інші витрати,378042,Центральний офіс,38558365,Україна,"Оплата за книги 250шт.,згідно рахунку №1 від 22.12.16р.",26008924418040,state,200000.00,Данілов Денис Олексійович,,фізична особа
Самопоміч,"Івано-Франківська область, Тисменицький район, Тисмениця, вулиця Галицька, 15",79,2016-12-23,555,"Оренда будинків і приміщень та експлуатаційні витрати (прибирання, страхування орендованих будинків, охорона, сигналізація, ремонт, вивіз сміття, тощо)",Оренда нерухомості,378041,Центральний офіс,38558365,Україна,Для поповнення картки 5168755520104015 БясХ.М. ІПН 2623011089 Оплата оренди частини нежнтлового приміщення за ЖОВТСНЬ-грудень 2016р. згідно Договору під 03.10.2016р.,26008924418040,state,6664.88,Бас Христина Михайлівна,,фізична особа
Самопоміч,"Закарпатська область, Ужгород, вулиця Українська, 16",74,2016-12-23,648,"Придбання канцтоварів, паперу, інших предметів і матеріалів, а також госп товари",Придбання канцтоварів та госп. товарів,378040,Центральний офіс,38558365,Україна,"Оплата за канцтовари,згідно рахунку № 774 під 20 грудня 2016р.",26008924418040,state,9709.20,Рушківська Надія Євгенівна,,фізична особа
Самопоміч,"Закарпатська область, Тячівський район, Тячів, вулиця Голлоші, 42",79,2016-12-23,618,"Оренда будинків і приміщень та експлуатаційні витрати (прибирання, страхування орендованих будинків, охорона, сигналізація, ремонт, вивіз сміття, тощо)",Оренда нерухомості,378039,Центральний офіс,38558365,Україна,"Орендна плата за листопад 2016р., згідно рахунку № 1 під 30.11.Ібр № 5169330507939719",26008924418040,state,2800.00,Садовніков Олександр Олександрович,,фізична особа
Самопоміч,Житомирська область,58,2016-12-23,615,"Виготовлення друкованих матеріалів (плакатів, листівок, буклетів та інших агітаційних матеріалів)",Друкована агітація,378038,Центральний офіс,38558365,Україна,"Оплата за виготовлення флаерів, плакатів і банерів, згідно рахунку № 16 від 01.12.Ібр",26008924418040,state,4577.25,Куценко Юрій Григорович,,фізична особа
Самопоміч,"Черкаська область, Черкаси, вулиця Сумгаїтська, 71",57,2016-12-23,650,Виготовлення брендованої продукції,"Виготовлення брендованої продукції (футболки, кепки, парасольки)",378037,Центральний офіс,38558365,Україна,"Оплата за конвертп, прапори та інше, згідно ряхупку №СК-0000434 від 07.12.16р.",26008924418040,state,3050.00,Бараненко Світлана Купріянівна,,фізична особа
Самопоміч,"Черкаська область, Черкаси, вулиця Толстого, 22",57,2016-12-23,649,Виготовлення брендованої продукції,"Виготовлення брендованої продукції (футболки, кепки, парасольки)",378036,Центральний офіс,38558365,Україна,"Оплата за ручки і футболки з бренду вяппям, згідно рахунку № 954 від 19.12.16р., втому числі ПДВ 716,67 гри",26008924418040,state,4300.00,Чабаненко Юлія Анатоліївна,,фізична особа
Самопоміч,"Черкаська область, Черкаси, вулиця Ярославська, 8, 77",57,2016-12-23,651,Виготовлення брендованої продукції,"Виготовлення брендованої продукції (футболки, кепки, парасольки)",378035,Центральний офіс,38558365,Україна,"Оплата за прапори, брошури та ін., згідно рахунку №112 від 06.12.Ібр",26008924418040,state,13810.00,Гладких Людмила Михайлівна,,фізична особа
Самопоміч,"Івано-Франківська область, Івано-Франківськ, вулиця Незалежності, 164",82,2016-12-23,647,"Гонорари, в тому числі за надані консультаційні послуги","Гонорари, в тому числі за надані консультаційні послуги",378034,Центральний офіс,38558365,Україна,"Оплата за консультаційні послуги, згідно акту нрпймання-передачі наданих послуг№і-1б від 31.IO.16p",26008924418040,state,3600.00,Козик Віталій Євгенович,,фізична особа
Самопоміч,"Івано-Франківська область, Івано-Франківськ, вулиця Незалежності, 164",82,2016-12-23,646,"Гонорари, в тому числі за надані консультаційні послуги","Гонорари, в тому числі за надані консультаційні послуги",378033,Центральний офіс,38558365,Україна,"Оплата за консультаційні послуги, згідно акту пршімяппя-передячі наданих послуг №2-16 від 30.11.Ібр",26008924418040,state,3600.00,Козик Віталій Євгенович,,фізична особа
Самопоміч,"Івано-Франківська область, Галицький район, Бурштин, вулиця Січових Стрільців, 27",52,2016-12-23,643,Інша реклама (без класифікації),Реклама (без класифікації),378032,Центральний офіс,38558365,Україна,"Оплата за рекламні послуги, згідно ряхупку №36 від 21.12.16р.",26008924418040,state,2100.00,Русиняк Володимир Іванович,,фізична особа
Самопоміч,"Дніпропетровська область, Нікополь, вулиця Станиславського, 26",79,2016-12-23,637,"Оренда будинків і приміщень та експлуатаційні витрати (прибирання, страхування орендованих будинків, охорона, сигналізація, ремонт, вивіз сміття, тощо)",Оренда нерухомості,378031,Центральний офіс,38558365,Україна,"Оплата оренди приміщення м. Нікополь, пр. Трубників, ЗО за грудень згідно рахунку № 2 від 01.12.2016р.",26008924418040,state,6741.93,Журба Олена Василівна,,фізична особа
Самопоміч,"Івано-Франківська область, Івано-Франківськ, вулиця Незалежності, 164",82,2016-12-23,636,"Гонорари, в тому числі за надані консультаційні послуги","Гонорари, в тому числі за надані консультаційні послуги",378030,Центральний офіс,38558365,Україна,"Оплата за консультаційні послуги, згідно акту прнймаїиія-передачі наданих послуг №3-16 від 20.12.16р",26008924418040,state,3600.00,Козик Віталій Євгенович,,фізична особа
Самопоміч,"Дніпропетровська область, Дніпро́, проспект Олександра Поля, 45",50,2016-12-23,635,Оплата ефірного часу на радіо,Реклама на радіо,378029,Центральний офіс,38558365,Україна,Оплата за виготовлення та трансляцію звукових матеріалів згідно рахунку № 6 від 13 грудня 2016р.,26008924418040,state,70000.00,Дворський Дмитро Олександрович,,фізична особа
Самопоміч,"Тернопільська область, Тернопіль, вулиця Лучаківського, 10, 101",58,2016-12-23,630,"Виготовлення друкованих матеріалів (плакатів, листівок, буклетів та інших агітаційних матеріалів)",Друкована агітація,378028,Центральний офіс,38558365,Україна,"Оплата за друк газети, згідно з рахунком № 100 від 02,12.16 р.",26008924418040,state,33663.00,Красниця Теодозій Володимирович,,фізична особа
Самопоміч,"Львівська область, Львів, вулиця Патона, 2, 167",72,2016-12-23,628,"Придбання, ремонт офісної техніки та програмного забезпечення (Бухгалтерські програми, Ліга.закон, домени)",Придбання офісної техніки та програмного забезпечення,378027,Центральний офіс,38558365,Україна,"Оплата за калькулятор, мишка та ііь, згідно рахунку №Т/ПК/00007,00006, 00005, 00008 від 23.12.201бр",26008924418040,state,2548.77,Лисканич Христина Стефанівна,,фізична особа
Самопоміч,"Київ, вулиця Єреванська, 28",58,2016-12-23,626,"Виготовлення друкованих матеріалів (плакатів, листівок, буклетів та інших агітаційних матеріалів)",Друкована агітація,378026,Центральний офіс,38558365,Україна,"Оплата за поліграфічні послуги , згідно акзу здачі-прпйомкн виконаних послуг №648 від 22.12.2016р.",26008924418040,state,220.00,Товстопʼятов Сергій Леонідович,,фізична особа
Самопоміч,"Полтавська область, Кременчук, вулиця Генерала Жадова, 1А",79,2016-12-23,623,"Оренда будинків і приміщень та експлуатаційні витрати (прибирання, страхування орендованих будинків, охорона, сигналізація, ремонт, вивіз сміття, тощо)",Оренда нерухомості,378025,Центральний офіс,38558365,Україна,"Оплата за оренду офісу за листопад 2016р., згідно рахунку від 01.11.16р.",26008924418040,state,1500.00,Нетребко Сергій Володимирович,,фізична особа
Самопоміч,"Полтавська область, Кременчук, вулиця Генерала Жадова, 1А",79,2016-12-23,622,"Оренда будинків і приміщень та експлуатаційні витрати (прибирання, страхування орендованих будинків, охорона, сигналізація, ремонт, вивіз сміття, тощо)",Оренда нерухомості,378024,Центральний офіс,38558365,Україна,"Оплата за оренду офісу за жовтень 2016р., згідно рахунку бід 01.10.16р.",26008924418040,state,1500.00,Нетребко Сергій Володимирович,,фізична особа
Самопоміч,"Харківська область, Харків, проспект Ювілейний, 65, 83",58,2016-12-23,621,"Виготовлення друкованих матеріалів (плакатів, листівок, буклетів та інших агітаційних матеріалів)",Друкована агітація,378023,Центральний офіс,38558365,Україна,"Оплата за брошюрн, згідно рахунку № 78 від 22 грудпя 2016р.",26008924418040,state,43960.00,Руденко Андрій Володимирович,,фізична особа
Самопоміч,"Черкаська область, Канів, вулиця Героїв Дніпра, 27, 11",53,2016-12-23,502,Витрати на розміщення зовнішньої реклами,Зовнішня реклама,378022,Центральний офіс,38558365,Україна,"Оплата за розміщенпя постера {листопад 201бр) за адресою м. Лубнп, вул. Радянська, 119 Б-102 сторона Б згідно рахунку ДЪ СФ-000152 від 01.11,2016р.",26008924418040,state,1720.00,Маслюк Вʼячеслав Анатолійович,,фізична особа
Самопоміч,"Черкаська область, Умань, вулиця Юрія Глібка, 19",53,2016-12-23,617,Витрати на розміщення зовнішньої реклами,Зовнішня реклама,378021,Центральний офіс,38558365,Україна,"Оплата за виготовлення та монтаж поліграфів пої продукції, згідпо рахунку №130 від 16.12.16р.",26008924418040,state,5250.00,Коваленко Максим Олександрович,,фізична особа
Самопоміч,"Житомирська область, Новоград-Волинський",58,2016-12-23,616,"Виготовлення друкованих матеріалів (плакатів, листівок, буклетів та інших агітаційних матеріалів)",Друкована агітація,378020,Центральний офіс,38558365,Україна,"Оплата за виготовлення флаєрів, плакатів і банеріи, згідно рахунку № 13 від 07.11.ібр",26008924418040,state,5492.71,Куценко Юрій Григорович,,фізична особа
Самопоміч,"Чернігівська область, Ніжин, вулиця Франка, 141",58,2016-12-23,612,"Виготовлення друкованих матеріалів (плакатів, листівок, буклетів та інших агітаційних матеріалів)",Друкована агітація,378019,Центральний офіс,38558365,Україна,"Оплата за ви готовлен н п поліграфічної продукції, згідно рахунку № 394-р/11846 від 16.12.16р.",26008924418040,state,11996.00,Нечваль Тетяна Вікторівна,,фізична особа
Самопоміч,"Дніпропетровська область, Кривий Ріг, Гірницький мікрорайон, 20",58,2016-12-23,534,"Виготовлення друкованих матеріалів (плакатів, листівок, буклетів та інших агітаційних матеріалів)",Друкована агітація,378018,Центральний офіс,38558365,Україна,рахунку № Р00000222 від 01.12.16р.,26008924418040,state,3080.00,Клименко Ірина Анатоліївна,,фізична особа
Самопоміч,"Сумська область, вулиця Богдана Хмельницького, 157",73,2016-12-23,522,Придбання меблів,Придбання меблів,378017,Центральний офіс,38558365,Україна,Оплата за меблі згідно рахунку №25 від 19.12.16р.,26008924418040,state,10200.00,Кривошей Петро Миколайович,,фізична особа
Самопоміч,"Закарпатська область, Ужгород, вулиця Залізнична, 4/22, 83",69,2016-12-23,519,Організація заходів та інші організаційні послуги,Організація заходів та інші організаційні послуги,378016,Центральний офіс,38558365,Україна,"Оплата за проведення трсиінгів, згідно акту пршімяшія-псредачі наданих послуг від 21.12.16р.",26008924418040,state,9500.00,Пріц Олена Миколаївна,,фізична особа
Самопоміч,"Рівненська область, Рівне, вулиця Андрія Мельника, 10",58,2016-12-23,513,"Виготовлення друкованих матеріалів (плакатів, листівок, буклетів та інших агітаційних матеріалів)",Друкована агітація,378015,Центральний офіс,38558365,Україна,"Оплата за друк і роздачу інформаційного матеріалу н кількості 30000 піт., згідно рахунку №СФ-000189 від 21.11.16р., в то.му числі ПДВ 1000 гри",26008924418040,state,6000.00,Горбатюк Тарас Григорович,,фізична особа
Самопоміч,"Івано-Франківська область, Івано-Франківськ, вулиця Кармелюка, 2",49,2016-12-23,511,Публікування матеріалів у друкованих ЗМІ,Реклама в друкованих ЗМІ,378014,Центральний офіс,38558365,Україна,"Оплата за інформаційні послуги в газеті ""Репортер"" №51 від 21.12.16р., згідно рахунку №69 від 20.12.16р.",26008924418040,state,1500.00,Горбкова Любов Дмитрівна,,фізична особа
Самопоміч,"Чернігівська область, Ніжин, вулиця Синяківська, 57",75,2016-12-23,499,Поштові послуги та поширення друкованих матеріалів,Поштові послуги та поширення друкованих матеріалів,378013,Центральний офіс,38558365,Україна,"Оплата за розповсюдження рекламних матеріалів 9000 шт., згідно рахунку №СФ-0001132 від 16.12.16р.",26008924418040,state,3150.00,Хоминець Володимир Павлович,,фізична особа
Самопоміч,"Черкаська область, Канів, вулиця Героїв Дніпра, 27, 11",53,2016-12-23,501,Витрати на розміщення зовнішньої реклами,Зовнішня реклама,378012,Центральний офіс,38558365,Україна,"Оплата за розміщення постера (жовтень 201бр) за адресою м. Лубни, вул. Радянська, 119 Б-102 сторона Б згідно рахунку № СФ-000151 від 02.10.2016р.",26008924418040,state,1720.00,Маслюк Вʼячеслав Анатолійович,,фізична особа
Самопоміч,"Київ, вулиця Васильківська, 8А, 16",58,2016-12-23,542,"Виготовлення друкованих матеріалів (плакатів, листівок, буклетів та інших агітаційних матеріалів)",Друкована агітація,378011,Центральний офіс,38558365,Україна,Оплата за єврокопверт згідно рахунку №187 від 21.12.2016р.,26008924418040,state,1988.00,Мурга Ольга Петрівна,,фізична особа
Самопоміч,"Київ, вулиця Васильківська, 8А, 16",58,2016-12-23,510,"Виготовлення друкованих матеріалів (плакатів, листівок, буклетів та інших агітаційних матеріалів)",Друкована агітація,378010,Центральний офіс,38558365,Україна,Оплата за папки брендопі згідно рахунку №188 від 21.12.2016р.,26008924418040,state,17190.00,Мурга Ольга Петрівна,,фізична особа
Самопоміч,"Київ, вулиця Васильківська, 8А, 16",58,2016-12-23,508,"Виготовлення друкованих матеріалів (плакатів, листівок, буклетів та інших агітаційних матеріалів)",Друкована агітація,378009,Центральний офіс,38558365,Україна,Оплатя за Буклет ʼДолучайтесяʼ A4 згідно рпхунку №190 від 21.12.2016р.,26008924418040,state,21261.00,Мурга Ольга Петрівна,,фізична особа
Самопоміч,"Запорізька область, Запоріжжя, вулиця Громової, 8",48,2016-12-23,504,Публікування матеріалів у мережі Інтернет,Реклама в інтернеті,378008,Центральний офіс,38558365,Україна,"Оплата за рекламно-інформаційні послуги (висвітлення інтернст), 12.2016 згідно рахунку № СФ-0093 від 1 грудня 2016р.",26008924418040,state,12000.00,Бринза Ольга Павлівна,,фізична особа
Самопоміч,"Київ, вулиця Васильківська, 8А, 16",58,2016-12-23,517,"Виготовлення друкованих матеріалів (плакатів, листівок, буклетів та інших агітаційних матеріалів)",Друкована агітація,378007,Центральний офіс,38558365,Україна,"Оплата за фласрн інформаційні згідно рахунку №191 від 21.12,2016р.",26008924418040,state,10761.00,Мурга Ольга Петрівна,,фізична особа
Самопоміч,"Київ, вулиця Васильківська, 8А, 16",58,2016-12-23,507,"Виготовлення друкованих матеріалів (плакатів, листівок, буклетів та інших агітаційних матеріалів)",Друкована агітація,378006,Центральний офіс,38558365,Україна,Оплата за буклет ʼМедичнийʼ згідно рахунку №193 під 21.12.2016р.,26008924418040,state,12975.00,Мурга Ольга Петрівна,,фізична особа
Самопоміч,"Дніпропетровська область, Дніпро́, проспект Дмитра Яворницького, 96А",74,2016-12-23,430,"Придбання канцтоварів, паперу, інших предметів і матеріалів, а також госп товари",Придбання канцтоварів та госп. товарів,378005,Центральний офіс,38558365,Україна,"Оплата за папір A4, згідно рахунку № 288/1/К від 07.12.2016 р.",26008924418040,state,10050.00,Коновалова Олена Григорівна,,фізична особа
Самопоміч,"Київ, вулиця Васильківська, 8А, 16",58,2016-12-23,544,"Виготовлення друкованих матеріалів (плакатів, листівок, буклетів та інших агітаційних матеріалів)",Друкована агітація,378004,Центральний офіс,38558365,Україна,Оплата за бланки ПП згідно рахунку №186 від 21.12.2016р.,26008924418040,state,1005.00,Мурга Ольга Петрівна,,фізична особа
Самопоміч,"Київська обл., Обухівський район, Українка, Дніпровський проспект, 16",58,2016-12-23,574,"Виготовлення друкованих матеріалів (плакатів, листівок, буклетів та інших агітаційних матеріалів)",Друкована агітація,378003,Центральний офіс,38558365,Україна,"Оплата за брошури, папки та інформаційні листівки згідно видаткової накладної№ 160032 від 15 грудня 2016р.",26008924418040,state,20280.00,Пилипенко Наталія Віталіївна,,фізична особа
Самопоміч,"Полтавська область, Лубни, вулиця Щелканова, 9",74,2016-12-23,441,"Придбання канцтоварів, паперу, інших предметів і матеріалів, а також госп товари",Придбання канцтоварів та госп. товарів,378002,Центральний офіс,38558365,Україна,"Оплата за канцтовари, згідно рахунку від 19.12.16 р.",26008924418040,state,2117.80,Чук Людмила Омелянівна,,фізична особа
Самопоміч,"Полтавська область, Лубни, вулиця Щелканова, 9",74,2016-12-23,440,"Придбання канцтоварів, паперу, інших предметів і матеріалів, а також госп товари",Придбання канцтоварів та госп. товарів,378001,Центральний офіс,38558365,Україна,"Оплата за канцтовари, згідно рахунку від 19.12.16 р.",26008924418040,state,1398.00,Чук Людмила Омелянівна,,фізична особа
Самопоміч,"Полтавська область, Лубни, вулиця Щелканова, 9",74,2016-12-23,438,"Придбання канцтоварів, паперу, інших предметів і матеріалів, а також госп товари",Придбання канцтоварів та госп. товарів,378000,Центральний офіс,38558365,Україна,"Оплата за канцтовари, згідно рахунку від 19.12.16 р.",26008924418040,state,905.00,Чук Людмила Омелянівна,,фізична особа
Самопоміч,"Запорізька область, Запоріжжя, вулиця Громової, 8",50,2016-12-23,500,Оплата ефірного часу на радіо,Реклама на радіо,377999,Центральний офіс,38558365,Україна,Оплата за рекламно-інформаційні послуги (висвітлення на радіо) згідно рахунку № СФ-0091 від 12 грудня 2016р,26008924418040,state,47000.00,Бринза Ольга Павлівна,,фізична особа
Самопоміч,"Київ, вулиця Васильківська, 8А, 16",58,2016-12-23,509,"Виготовлення друкованих матеріалів (плакатів, листівок, буклетів та інших агітаційних матеріалів)",Друкована агітація,377998,Центральний офіс,38558365,Україна,Оплата за конструкцію Ргєї5\Уя11 згідно рахунку №184 від 21.12.2016р.,26008924418040,state,3430.00,Мурга Ольга Петрівна,,фізична особа
Самопоміч,"Київ, вулиця Героїв Дніпра, 57",82,2016-12-23,578,"Гонорари, в тому числі за надані консультаційні послуги","Гонорари, в тому числі за надані консультаційні послуги",377997,Центральний офіс,38558365,Україна,"Оплата за наданий комплекту послуг зі створення інфоргафІчних картннок(10 шт.).,зг.з рах. №145 від 22.12.2016 р., зг. з дог. ЛіОР-55 від 05.12.2016 р.",26008924418040,state,15900.00,Плахотний Максим Миколайович,,фізична особа
Самопоміч,"Київська обл., Обухівський район, Українка, Дніпровський проспект, 16",58,2016-12-23,570,"Виготовлення друкованих матеріалів (плакатів, листівок, буклетів та інших агітаційних матеріалів)",Друкована агітація,377996,Центральний офіс,38558365,Україна,Оплата за інформаційні листівки та візитні картки згідно видаткової накладної № 160029 від 15 грудня 2016р.,26008924418040,state,40159.00,Пилипенко Наталія Віталіївна,,фізична особа
Самопоміч,"Київ, бульвар Ярослава Гашека, 13",69,2016-12-23,552,Організація заходів та інші організаційні послуги,Організація заходів та інші організаційні послуги,377995,Центральний офіс,38558365,Україна,Оплата за надані послуги з організації харчування (кава-брейк) па 160 людей згідно акту про надання послуг від 22 грудня 2016р.,26008924418040,state,16000.00,Курінний Дмитро Євгенович,,фізична особа
Самопоміч,"Дніпропетровська область, Дніпро́, проспект Дмитра Яворницького, 96А",74,2016-12-23,428,"Придбання канцтоварів, паперу, інших предметів і матеріалів, а також госп товари",Придбання канцтоварів та госп. товарів,377994,Центральний офіс,38558365,Україна,"Оплата за канцтовари, згідно рахунку-факзурн ЛїРФ-290/К від 13.12.2016 р. без І ІДИ",26008924418040,state,4298.82,Коновалова Олена Григорівна,,фізична особа
Самопоміч,"Київ, вулиця Васильківська, 8А, 16",58,2016-12-23,514,"Виготовлення друкованих матеріалів (плакатів, листівок, буклетів та інших агітаційних матеріалів)",Друкована агітація,377993,Центральний офіс,38558365,Україна,Оплата за конструкцію ИоІІІІр згідно рахунку №183 від 21.12.201бр.,26008924418040,state,5360.00,Мурга Ольга Петрівна,,фізична особа
Самопоміч,"Волинська область, Луцьк, Проектувальна вулиця, 9",74,2016-12-23,450,"Придбання канцтоварів, паперу, інших предметів і матеріалів, а також госп товари",Придбання канцтоварів та госп. товарів,377992,Центральний офіс,38558365,Україна,Оплата за канцелярські товари згідно рахунку №102 від 15.12.2016р.,26008924418040,state,71595.50,Шутовський Олександр Юрійович,,фізична особа
Самопоміч,Закарпатська область,73,2016-12-23,516,Придбання меблів,Придбання меблів,377991,Центральний офіс,38558365,Україна,Оплата за стільці офісні згідно накладної № 27 від 16 грудня 2016р.,26008924418040,state,6400.00,Шелевер Тетяна Іванівна,,фізична особа
Самопоміч,"Івано-Франківська область, Івано-Франківськ, вулиця Гординського, 11",53,2016-12-23,600,Витрати на розміщення зовнішньої реклами,Зовнішня реклама,377990,Центральний офіс,38558365,Україна,"Оплата за експонування та сервісне обслуговування плакатів на реклямоносінх, згідпо з Актом №Ша-0000423 від 30 листопада 2016 р. Сума 58,442,00 гри",26008924418040,state,58442.00,Шаблєвський Олександр Віталійович,2759913416,фізична особа
Самопоміч,"Івано-Франківська область, Івано-Франківськ, вулиця Гординського, 11",53,2016-12-23,464,Витрати на розміщення зовнішньої реклами,Зовнішня реклама,377989,Центральний офіс,38558365,Україна,Оплата за виготовлення постера 3x6 м згідно рахунку № Ша-0434 від 14 грудня 2016р.,26008924418040,state,590.00,Шаблєвський Олександр Віталійович,2759913416,фізична особа
Самопоміч,"Волинська область, Луцьк, Шкільна вулиця, 13",58,2016-12-23,492,"Виготовлення друкованих матеріалів (плакатів, листівок, буклетів та інших агітаційних матеріалів)",Друкована агітація,377988,Центральний офіс,38558365,Україна,Оплата за візитки та календарики згідно рахунку №125 від 22 грудня 2016р.,26008924418040,state,85900.00,Цапюк Павло Віталійович,,фізична особа
Самопоміч,"Дніпропетровська область, Нікополь",58,2016-12-23,418,"Виготовлення друкованих матеріалів (плакатів, листівок, буклетів та інших агітаційних матеріалів)",Друкована агітація,377987,Центральний офіс,38558365,Україна,Оплата за виготовлення квартальних календарів згідно рахунку № 646 від 19.12.2016р.,26008924418040,state,4000.00,Фельдман Олег Олександрович,,фізична особа
Самопоміч,"Львівська область, Львів, вулиця Володимира Великого, 69",54,2016-12-23,537,Виготовлення відеозаписів,Реклама (без класифікації),377986,Центральний офіс,38558365,Україна,Оплата за надані послуги відеозномкн та моптажу відеоролика ʼПро повітряну кульку’ згідно рахунку № 20/12-16 від 20 грудня 2016р.,26008924418040,state,80000.00,Федоришин Сергій Юрійович,,фізична особа
Самопоміч,"Черкаська область, Черкаси, вулиця Олександра Невського, 15",73,2016-12-23,604,Придбання меблів,Придбання меблів,377985,Центральний офіс,38558365,Україна,"Оплата з комплекти мелів, згідно з рахунком ЛаТА-0000092 ід 19 грудня 2016 р. Сума 23,810,00 гри",26008924418040,state,23810.00,Ткаченко Тетяна Костянтинівна,,фізична особа
Самопоміч,"Дніпропетровська область, Дніпровський район, Підгородне, вулиця Пушкіна",74,2016-12-23,420,"Придбання канцтоварів, паперу, інших предметів і матеріалів, а також госп товари",Придбання канцтоварів та госп. товарів,377984,Центральний офіс,38558365,Україна,Оплата за канцтовари та інші товари згідно з договором ДШ1 від 05.12.2016р.,26008924418040,state,9950.00,Тендітник Олена Сергіївна,,фізична особа
Самопоміч,"Дніпропетровська область, Дніпро́, вулиця Семафорна, 36",74,2016-12-23,444,"Придбання канцтоварів, паперу, інших предметів і матеріалів, а також госп товари",Придбання канцтоварів та госп. товарів,377983,Центральний офіс,38558365,Україна,"Оплата за друк баиерної сіткп, витратні матеріали та надані послуги по встановленню, згіднно рахунку As 101 ід 19.12.2016 р.",26008924418040,state,21215.50,Тендітник Ольга Петрівна,,фізична особа
Самопоміч,"Київ, бульвар Дружби Народів, 2",57,2016-12-23,485,Виготовлення брендованої продукції,"Виготовлення брендованої продукції (футболки, кепки, парасольки)",377982,Центральний офіс,38558365,Україна,Оплата за значки згідно рахунку №14122016/101 бід 14.12.2016р.,26008924418040,state,20000.00,Сощенко Вадим Сергійович,,фізична особа
Самопоміч,"Київ, вулиця Бульварно-Кудрявська, 5А",69,2016-12-23,463,Організація заходів та інші організаційні послуги,Організація заходів та інші організаційні послуги,377981,Центральний офіс,38558365,Україна,"Оплата за надання послуг з проведення тренінгіп згідно акту прннманпя-нередачі над а них послуг від 01 грудня 2016р. Сума 12,195,00 грн.",26008924418040,state,12195.00,Солтан Вікторія Ігорівна,,фізична особа
Самопоміч,"Чернігівська область, Чернігів",58,2016-12-23,466,"Виготовлення друкованих матеріалів (плакатів, листівок, буклетів та інших агітаційних матеріалів)",Друкована агітація,377980,Центральний офіс,38558365,Україна,Оплата за листівки згідно видаткової накладної As 1646 від 21 грудня 2016р.,26008924418040,state,26800.00,Сенченко Леонід Юрійович,,фізична особа
Самопоміч,"Чернівецька область, Чернівці, вулиця Південно-Кільцева, 1",57,2016-12-23,462,Виготовлення брендованої продукції,"Виготовлення брендованої продукції (футболки, кепки, парасольки)",377979,Центральний офіс,38558365,Україна,Оплата за брендволлн та таблички згідно видаткової накладної Де СА-0238 від 20 грудня 2016р.,26008924418040,state,40150.00,Седакіна Олена Петрівна,,фізична особа
Самопоміч,"Харківська область, Харків, проспект Ювілейний, 65, 83",58,2016-12-23,590,"Виготовлення друкованих матеріалів (плакатів, листівок, буклетів та інших агітаційних матеріалів)",Друкована агітація,377978,Центральний офіс,38558365,Україна,Оплатя за листівки згідно рахунку Дг 28/Н від 20 грудня 2016р.,26008924418040,state,56000.00,Руденко Андрій Володимирович,,фізична особа
Самопоміч,"Львівська область, Львів, вулиця Наукова, 96б",57,2016-12-23,468,Виготовлення брендованої продукції,"Виготовлення брендованої продукції (футболки, кепки, парасольки)",377977,Центральний офіс,38558365,Україна,Оплата за футболку поло з вишивкою згідно рахунку Дї 27/12 від 21 грудня 2016р.,26008924418040,state,99100.00,Рибай Марʼяна Олександрівна,,фізична особа
Самопоміч,"Житомирська область, Житомир",74,2016-12-23,457,"Придбання канцтоварів, паперу, інших предметів і матеріалів, а також госп товари",Придбання канцтоварів та госп. товарів,377976,Центральний офіс,38558365,Україна,"Оплата за канцтовари, згідно накладної Де ПР-136 від 21.12.2016 р.",26008924418040,state,41549.00,Прогожук Олександр Сергійович,,фізична особа
Самопоміч,"Житомирська область, Житомир",74,2016-12-23,384,"Придбання канцтоварів, паперу, інших предметів і матеріалів, а також госп товари",Придбання канцтоварів та госп. товарів,377975,Центральний офіс,38558365,Україна,Оплата за канцелярські товари згідно рахунку Де 214 від 19.12.2016р.,26008924418040,state,41549.00,Прогожук Олександр Сергійович,,фізична особа
Самопоміч,"Львівська область, Львів, вулиця Чукаріна, 2",57,2016-12-23,469,Виготовлення брендованої продукції,"Виготовлення брендованої продукції (футболки, кепки, парасольки)",377974,Центральний офіс,38558365,Україна,Оплата за флісові куртки з вишивкою згідно рахунку Д> 168 від 21 грудня 2016р.,26008924418040,state,105800.00,Пригода Ярослав Тарасович,,фізична особа
Самопоміч,"Київ, вулиця Героїв Дніпра, 57",82,2016-12-23,577,"Гонорари, в тому числі за надані консультаційні послуги","Гонорари, в тому числі за надані консультаційні послуги",377973,Центральний офіс,38558365,Україна,"Оплата за падання комплекту послуг зі створення відеоролмку з 05.12.2016 по 22.12.2016 р.,зг.з рах. ДИ44 під 22.12.2016 р., зг. з дог. ДЮР-53 від 05.12.2016 р.",26008924418040,state,53000.00,Плахотний Максим Миколайович,,фізична особа
Самопоміч,"Донецька область, Слов'янськ, вулиця Добровольського, 1",74,2016-12-23,453,"Придбання канцтоварів, паперу, інших предметів і матеріалів, а також госп товари",Придбання канцтоварів та госп. товарів,377972,Центральний офіс,38558365,Україна,"Оплата за канцтовари, згідно накладної As 278 від 22.12.2016 р.",26008924418040,state,17000.00,Підченко Денис Леонідович,,фізична особа
Самопоміч,"Донецька область, Слов'янськ, вулиця Добровольського, 1",74,2016-12-23,452,"Придбання канцтоварів, паперу, інших предметів і матеріалів, а також госп товари",Придбання канцтоварів та госп. товарів,377971,Центральний офіс,38558365,Україна,"Оплата за візитки, згідно Акту наданих послуг j\s 278 від 21.12.2016 р.",26008924418040,state,2100.00,Підченко Денис Леонідович,,фізична особа
Самопоміч,"Київська обл., Обухівський район, Українка, Дніпровський проспект, 16",58,2016-12-23,569,"Виготовлення друкованих матеріалів (плакатів, листівок, буклетів та інших агітаційних матеріалів)",Друкована агітація,377970,Центральний офіс,38558365,Україна,"Оплата за розробку макетів та виготовлення поліграфічної продукції, згідно видаткової накладної А® І60030 від 15 грудня 2016р. Сума 23,275,00 гри.",26008924418040,state,23275.00,Пилипенко Наталія Віталіївна,,фізична особа
Самопоміч,"Закарпатська область, Тячівський район, Тересва, вулиця Комарова",73,2016-12-23,603,Придбання меблів,Придбання меблів,377969,Центральний офіс,38558365,Україна,"Оплата за офісні меблі, згідно накладної №5 від 27.12.2016 р.",26008924418040,state,6500.00,Петровці Микола Іванович,,фізична особа
Самопоміч,"Закарпатська область, Тячівський район, Тересва, вулиця Комарова",73,2016-12-23,601,Придбання меблів,Придбання меблів,377968,Центральний офіс,38558365,Україна,"Оплптя за офісні меблі, згідно накладної А""4 від 20.12.2016 р.",26008924418040,state,6500.00,Петровці Микола Іванович,,фізична особа
Самопоміч,"Закарпатська область, Тячівський район, Тересва, вулиця Комарова",73,2016-12-23,461,Придбання меблів,Придбання меблів,377967,Центральний офіс,38558365,Україна,Оплата за меблі офісні згідно рахупку № 4 під 15 грудня 2016р.,26008924418040,state,6500.00,Петровці Микола Іванович,,фізична особа
Самопоміч,"Закарпатська область, Тячівський район, Тересва, вулиця Комарова",73,2016-12-23,460,Придбання меблів,Придбання меблів,377966,Центральний офіс,38558365,Україна,Оплата за меблі офісні згідно рахунку № 5 від 19 грудня 2016р.,26008924418040,state,6500.00,Петровці Микола Іванович,,фізична особа
Самопоміч,"Дніпропетровська область, Марганець",74,2016-12-23,486,"Придбання канцтоварів, паперу, інших предметів і матеріалів, а також госп товари",Придбання канцтоварів та госп. товарів,377965,Центральний офіс,38558365,Україна,Оплата за канцтовари згідпо рахупку .№2458 від 12 грудин 2016р.,26008924418040,state,19280.00,Овсянкіна Аліна Володимирівна,,фізична особа
Самопоміч,"Київ, вулиця Васильківська, 8А, 16",58,2016-12-23,515,"Виготовлення друкованих матеріалів (плакатів, листівок, буклетів та інших агітаційних матеріалів)",Друкована агітація,377964,Центральний офіс,38558365,Україна,Оплата за наліпки згідно рахунку №192 від 21.12.2016р.,26008924418040,state,392.00,Мурга Ольга Петрівна,,фізична особа
Самопоміч,"Хмельницька область, Хмельницький, вулиця Прибузька, 18",74,2016-12-23,389,"Придбання канцтоварів, паперу, інших предметів і матеріалів, а також госп товари",Придбання канцтоварів та госп. товарів,377963,Центральний офіс,38558365,Україна,Оплата за канцелярські товари згідно рахунку №705 від 14.12.2016р.,26008924418040,state,7626.45,Муляр Майя Володимирівна,,фізична особа
Самопоміч,"Івано-Франківська область, Івано-Франківськ, вулиця Українська, 26",51,2016-12-23,506,Оплата ефірного часу на ТБ,Телереклама,377962,Центральний офіс,38558365,Україна,"Оплата за послуги з виготовлення та розміщення матеріалів на телеканалі ʼКяпял-402ʼ згідно яісгу наданих послуг під 22 грудня 2016р. Сума 9,640,00 гри",26008924418040,state,9640.00,Моспанюк Оксана Анатоліївна,,фізична особа
Самопоміч,"Хмельницька область, Хмельницький, вулиця Кармелюка, 10, 120",74,2016-12-23,584,"Придбання канцтоварів, паперу, інших предметів і матеріалів, а також госп товари",Придбання канцтоварів та госп. товарів,377961,Центральний офіс,38558365,Україна,Оплата за канцтовари згідпо видаткової накладної № 47585 від 20 грудня 2016р.,26008924418040,state,45348.00,Михайлов Михайло Миколайович,,фізична особа
Самопоміч,"Полтавська область, Полтава, вулиця Панянка, 7",73,2016-12-23,328,Придбання меблів,Придбання меблів,377960,Центральний офіс,38558365,Україна,Оплата за меблі згідно рахупку № 45 від 13 грудня 2016р.,26008924418040,state,46000.00,Лисенко Сергій Георгійович,,фізична особа
Самопоміч,"Київ, бульвар Ярослава Гашека, 13",69,2016-12-23,529,Організація заходів та інші організаційні послуги,Організація заходів та інші організаційні послуги,377959,Центральний офіс,38558365,Україна,"Оплата за харчування (кава-брсик) на 150 чоловік, згідно рахунку № 1 під 14 грудня 2016р.",26008924418040,state,35995.00,Курінний Дмитро Євгенович,,фізична особа
Самопоміч,"Рівненська область, Рівне, вулиця Андрія Мельника, 25",79,2016-12-23,583,"Оренда будинків і приміщень та експлуатаційні витрати (прибирання, страхування орендованих будинків, охорона, сигналізація, ремонт, вивіз сміття, тощо)",Оренда нерухомості,377958,Центральний офіс,38558365,Україна,Оплата за оренду офісного приміщення за жовтень 2016р.,26008924418040,state,4853.00,Крутякова Ліана Феліксівна,,фізична особа
Самопоміч,"Полтавська область, Полтава",73,2016-12-23,415,Придбання меблів,Придбання меблів,377957,Центральний офіс,38558365,Україна,Оплата за стіл розкладний згідно ияклядпої під Аг 10 від 15.12.2016р.,26008924418040,state,7000.00,Крутона Наталія Сергіївна,,фізична особа
Самопоміч,"Закарпатська область, Тячівський район, Тячів, вул. Партизанська",58,2016-12-23,482,"Виготовлення друкованих матеріалів (плакатів, листівок, буклетів та інших агітаційних матеріалів)",Друкована агітація,377956,Центральний офіс,38558365,Україна,Оплата за палатки та баннерн згідно рахунку №А000109 від 09 грудня 2016р.,26008924418040,state,19420.00,Крижевський Вячеслав Євгенович,,фізична особа
Самопоміч,"Львівська область, Львів",57,2016-12-23,470,Виготовлення брендованої продукції,"Виготовлення брендованої продукції (футболки, кепки, парасольки)",377955,Центральний офіс,38558365,Україна,Оплата за футболки поло з вишивкою згідпо рахунку Хи 563 від 21 грудня 2016р.,26008924418040,state,99400.00,Коцюбинська Олена Іванівна,,фізична особа
Самопоміч,"Дніпропетровська область, Дніпро́, проспект Дмитра Яворницького, 96А",74,2016-12-23,429,"Придбання канцтоварів, паперу, інших предметів і матеріалів, а також госп товари",Придбання канцтоварів та госп. товарів,377954,Центральний офіс,38558365,Україна,"Оплата за канцтовари, згідно рахунку Х°288/К від 07.12.016 р. без ПДВ",26008924418040,state,20003.94,Коновалова Олена Григорівна,,фізична особа
Самопоміч,"Житомирська область, Бердичів, вулиця Братів Міхеєвих, 4",58,2016-12-23,456,"Виготовлення друкованих матеріалів (плакатів, листівок, буклетів та інших агітаційних матеріалів)",Друкована агітація,377953,Центральний офіс,38558365,Україна,"Оплата за плакати, банер, інформаційні аркуші та зовнішню рекламу згідно накладної X® 104 від 21.12.2016 р.",26008924418040,state,6000.00,Козіч Ігор Олексійович,,фізична особа
Самопоміч,"Житомирська область, Баранівський район, Баранівка",57,2016-12-23,607,Виготовлення брендованої продукції,"Виготовлення брендованої продукції (футболки, кепки, парасольки)",377952,Центральний офіс,38558365,Україна,"Оплата за бянерн, футболки, згідно рахунку № 223 від 21.12.2016 р.",26008924418040,state,10000.00,Кіндрук Світлана Анатоліївна,,фізична особа
Самопоміч,"Житомирська область, Баранівський район, Баранівка",69,2016-12-23,593,Організація заходів та інші організаційні послуги,Організація заходів та інші організаційні послуги,377951,Центральний офіс,38558365,Україна,Оплата за Орендовану продукцію згідно рахунку X® 223 під 21 грудня 2016р.,26008924418040,state,10000.00,Кіндрук Світлана Анатоліївна,,фізична особа
Самопоміч,"Полтавська область, Горішні Плавні, вулиця Портова, 9",53,2016-12-23,558,Витрати на розміщення зовнішньої реклами,Зовнішня реклама,377950,Центральний офіс,38558365,Україна,"Оплата за розміщення матеріалів на рекламних носіях з 01 но 20 грудня 2016р., згідно акту падання послуг від 21 грудин 2016р.",26008924418040,state,1300.00,Келембет Сергій Анатолійович,3028012332,фізична особа
Самопоміч,"Харківська область, Харків, Харківська набережна, 9",58,2016-12-23,581,"Виготовлення друкованих матеріалів (плакатів, листівок, буклетів та інших агітаційних матеріалів)",Друкована агітація,377949,Центральний офіс,38558365,Україна,Оплата за додрукарську підготовку газети ʼОбʼєднання ʼСамопомічʼ згідно рахунку Х®9 від 23 грудня 201бр,26008924418040,state,5000.00,Інайзак Світлана Вікторівна,,фізична особа
Самопоміч,"Львівська область, Самбірський район, Рудки",57,2016-12-23,471,Виготовлення брендованої продукції,"Виготовлення брендованої продукції (футболки, кепки, парасольки)",377948,Центральний офіс,38558365,Україна,Оплата за флісові куртки з вишивкою згідпо рахунку Хї158 від 21 грудня 2016р.,26008924418040,state,104650.00,Іваницький Руслан Зіновійович,,фізична особа
Самопоміч,"Львівська область, Львів, вулиця Братів Рогатинців, 9",57,2016-12-23,474,Виготовлення брендованої продукції,"Виготовлення брендованої продукції (футболки, кепки, парасольки)",377947,Центральний офіс,38558365,Україна,Оплата за футболки та куртки з вишивкою згідно рахунку № 35 від 21 грудня 201бр,26008924418040,state,103550.00,Єрусалимський Р І,,фізична особа
Самопоміч,"Запорізька область, Токмак, вулиця Шевченка, 40",73,2016-12-23,591,Придбання меблів,Придбання меблів,377946,Центральний офіс,38558365,Україна,Оплата за комплект меблів згідно накладної Хе 3 від 21 грудин 2016р.,26008924418040,state,5600.00,Єлісєєва Тамара Миколаївна,,фізична особа
Самопоміч,"Дніпропетровська область, Кривий Ріг, вулиця Саласюка, 61",53,2016-12-23,557,Витрати на розміщення зовнішньої реклами,Зовнішня реклама,377945,Центральний офіс,38558365,Україна,"Оплата за розміщення матеріалів па рекламних конструкціях з 01 по 15.12.2016р. згідно акту нядпппя послуг від 16 грудня 2016р. Сума 9,000,00 гри",26008924418040,state,9000.00,Єгорова Тетяна Григорівна,,фізична особа
Самопоміч,"Дніпропетровська область, Дніпро́, Єнісейська вулиця, 82",79,2016-12-23,447,"Оренда будинків і приміщень та експлуатаційні витрати (прибирання, страхування орендованих будинків, охорона, сигналізація, ремонт, вивіз сміття, тощо)",Оренда нерухомості,377944,Центральний офіс,38558365,Україна,"Оплата за матеріали та монтажні роботи по встановленню система охоропної енгпялізації, згідпо договору та Акту ХгОУ-74 від 05.12.2016 р. без пдв",26008924418040,state,12488.30,Елькс Олександр Ігорович,,фізична особа
Самопоміч,"Дніпропетровська область, Дніпро́, проспект Олександра Поля, 45",50,2016-12-23,331,Оплата ефірного часу на радіо,Реклама на радіо,377943,Центральний офіс,38558365,Україна,Оплата за виготовлення інформаційних .матеріалів згідно рахунку ЛЇ 7 від 13 грудня 2016р.,26008924418040,state,25000.00,Дворський Дмитро Олександрович,,фізична особа
Самопоміч,"Львівська область, Львів, вулиця Кирила Трильовського, 33",54,2016-12-23,536,Виготовлення відеозаписів,Реклама (без класифікації),377942,Центральний офіс,38558365,Україна,Оплата за надані послуги відеозйомкм та монтажу відеоролнка ʼВаза розбиваєтьсяʼ згідно рахунку № 19/12-16 від 19 грудин 2016р.,26008924418040,state,80000.00,Данилишиш Юлія Олександрівна,,фізична особа
Самопоміч,"Тернопільська область, Бережанський район, Бережани, вулиця Банкова, 4",52,2016-12-23,465,Інша реклама (без класифікації),Реклама (без класифікації),377941,Центральний офіс,38558365,Україна,Оплата за рекламні .матеріали згідно видаткової накладної№16669 від 15грудня 2016р.,26008924418040,state,15650.00,Городиський Ярослав Михайлович,,фізична особа
Самопоміч,Івано-Франківська область,69,2016-12-23,594,Організація заходів та інші організаційні послуги,Організація заходів та інші організаційні послуги,377940,Центральний офіс,38558365,Україна,"Оплата за послуги з організації заходу 04.12.2016р., згідно з договором №01/11-2016 р. від 01 листопада 2016.",26008924418040,state,25000.00,Галаса Іван Омелянович,,фізична особа
Самопоміч,"Полтавська область, Горішні Плавні, вулиця Леонова, 20",74,2016-12-23,493,"Придбання канцтоварів, паперу, інших предметів і матеріалів, а також госп товари",Придбання канцтоварів та госп. товарів,377939,Центральний офіс,38558365,Україна,Оплатп за канцтовари згідно рахунку №226 оід 21 грудня 2016р.,26008924418040,state,800.00,Вініченко Вікторія Вікторівна,,фізична особа
Самопоміч,"Запорізька область, Запоріжжя, вулиця Громової, 8",48,2016-12-23,503,Публікування матеріалів у мережі Інтернет,Реклама в інтернеті,377938,Центральний офіс,38558365,Україна,"Оплата за рекламно-інформаційні послуги (висвітлення інтернет), 11-12.2016 згідно рахунку № СФ-0092 від 25 листопада 2016р. Сума 22,000,00 гри",26008924418040,state,22000.00,Бринза Ольга Павлівна,,фізична особа
Самопоміч,"Черкаська область, Черкаси, вулиця Пацаєва, 26",69,2016-12-23,484,Організація заходів та інші організаційні послуги,Організація заходів та інші організаційні послуги,377937,Центральний офіс,38558365,Україна,"Оплата за організацію заходу за участю народних депутатів ПП ʼОбʼєднання ʼСамопомічʼ згідно рахунку №1 -15.12,16 від 15 грудня 2016р.",26008924418040,state,3950.00,Бордунос Людмила Іванівна,,фізична особа
Самопоміч,"Донецька область, Маріуполь",79,2016-12-23,386,"Оренда будинків і приміщень та експлуатаційні витрати (прибирання, страхування орендованих будинків, охорона, сигналізація, ремонт, вивіз сміття, тощо)",Оренда нерухомості,377936,Центральний офіс,38558365,Україна,"Оплата оренди офісу площею 52,0 kd. зі. за адресою: нулнця Італійська, 35, м. Маріуполь за листопад 2016р згідно договору №1 від 01.11.2016р.",26008924418040,state,2600.00,Балакірський Вадим Євгенович,,фізична особа
Самопоміч,"Житомирська область, Житомир, вулиця Князів Острозьких, 1, 230",82,2016-12-23,488,"Гонорари, в тому числі за надані консультаційні послуги","Гонорари, в тому числі за надані консультаційні послуги",377935,Центральний офіс,38558365,Україна,Оплата за розробку макету намету та банера згідно акту прнГімаїїня-нередачі наданих послуг від 19 грудня 2016р.,26008924418040,state,700.00,Ступак Олександр Васильович,,фізична особа
Самопоміч,"Житомирська область, Бердичів, Левадна вулиця, 70",74,2016-12-23,455,"Придбання канцтоварів, паперу, інших предметів і матеріалів, а також госп товари",Придбання канцтоварів та госп. товарів,377934,Центральний офіс,38558365,Україна,"Оплата за канцтовари, згідіїно накладної № Іс 12/133 від 21.12.2016 р.",26008924418040,state,4000.00,Іваненко Сергій Володимирович,,фізична особа
Самопоміч,"Київ, вулиця Бастіонна, 6",67,2016-12-23,654,"Повернення коштів, що надійшли з державного бюджету","Повернення коштів, що надійшли з державного бюджету",377514,Центральний офіс,38558365,Україна,Повернення коштів з рахунку для отримання коштів з Державного бюджету України на фінансування статутної діяльності,26008924418040,state,1866114.69,ГУ ДКСУ,20055032,державний бюджет
Самопоміч,"Київ, вулиця Магнітогорська, 1",76,2016-12-22,72,Послуги зв’язку,Послуги зв’язку,379875,Полтавська міська організація,39959676,Полтавська область,За послуги інтернету за листопад 2016 р. договір №202337/16 від 07.04.2016р. у т.ч.ПДВ 20%-41.67 UAH,26005011698005,current,250.00,"ТОВ ""Воля-кабель""",30777913,юридична особа
Самопоміч,"Одеська область, Одеса, вулиця Мала Арнаутська, 66",76,2016-12-22,38,Послуги зв’язку,Послуги зв’язку,379387,Івано-Франківська обласна організація,39927768,Івано-Франківська область,"За послуги зв ʼязку згідно рах. Же 2436106 від 30.11.2016р., вт.ч. 20% ПДВ - 8,33 грн.",26000492575,current,50.00,"ТОВ ""Інтернаціональні телекомунікації""",30109015,юридична особа
Самопоміч,"Івано-Франківська область, Івано-Франківськ",83,2016-12-22,37,"Виплати працівникам (не зарплата): лікарняні, вагітності, відрядження, компенсації ","Заробітна плата, лікарняні, вагітності, відрядження, компенсації",379347,Івано-Франківська обласна організація,39927768,Івано-Франківська область,Згідно СКРМо 0627168500 зарахування на карпирахунок відшкодування підзвітних сум,26000492575,current,554.76,Виноградник Тарас Теофілович,,фізична особа
Самопоміч,"Чернівецька область, Чернівці, Головна вулиця, 91",51,2016-12-22,358,Оплата ефірного часу на ТБ,Телереклама,378861,Центральний офіс,38558365,Україна,"Оплата за телепослугп тривалістю 83,333 хв, згідпо з рахунком №449 від 15 грудня 2016 р. в т.ч. ПДВ 5000.00 гри.",26008924418040,state,30000.00,"НТКУ ""Чернівецька регіональна дирекція""",40020724,юридична особа
Самопоміч,"Полтавська область, Полтава, вулиця Європейська, 57",75,2016-12-22,368,Поштові послуги та поширення друкованих матеріалів,Поштові послуги та поширення друкованих матеріалів,378860,Центральний офіс,38558365,Україна,Оплата за організацію перевезення відправлень згідпо рахунку № НП/7-0060619 від 20.12.201бр. в т.ч. ПДВ 9483.05 грн.,26008924418040,state,56898.30,"ТОВ ""Нова пошта""",31316718,юридична особа
Самопоміч,"Київ, вулиця Олеся Гончара, 15/3",72,2016-12-22,360,"Придбання, ремонт офісної техніки та програмного забезпечення (Бухгалтерські програми, Ліга.закон, домени)",Придбання офісної техніки та програмного забезпечення,378859,Центральний офіс,38558365,Україна,"Оплата за програмне забезпечення Microsoft Windows 10 Pro 64-bit Ukrainian lpk DVD (290 шт.), згідно з видатковою накладною №41/3662395 від 19 грудня 2016 р.",26008924418040,state,1160440.80,"Підприємство зі стопроцентним іноземним капіталом ""Орсі""",30403825,юридична особа
Самопоміч,"Херсонська область, Херсон, вулиця Перекопська, 10",51,2016-12-22,355,Оплата ефірного часу на ТБ,Телереклама,378858,Центральний офіс,38558365,Україна,"Оплата за трансляцію передач ʼСамопоміч.Країнаʼ па телеканалі філії НТКУ ʼХРД ʼСкіфіяʼ, зг. pax. №249-TV від 1б.12.201бр. в т.ч. ПДВ 3777.92 грн.",26008924418040,state,22667.50,"Філія НСТУ ""Херсонська регіональна дирекція ""Скіфія""",40020698,юридична особа
Самопоміч,"Чернігівська область, Чернігів",51,2016-12-22,414,Оплата ефірного часу на ТБ,Телереклама,378857,Центральний офіс,38558365,Україна,"Оплата за розміщення ролику на телебаченні (4000 сек), згідно з рахунком №СФ-0000155 під 20 грудня 2016 р. в т.ч. ПДВ 8000.00 грн.",26008924418040,state,48000.00,"НТКУ ""Чернігівська регіональна дирекція""",40020739,юридична особа
Самопоміч,"Львівська область, Червоноград, вулиця Будівельна, 22",58,2016-12-22,356,"Виготовлення друкованих матеріалів (плакатів, листівок, буклетів та інших агітаційних матеріалів)",Друкована агітація,378856,Центральний офіс,38558365,Україна,Оплата за друкування газети ʼСамопомічʼ 5000шт згідно акту здачі-прпимашін робіт №0128 під 19.12.2016р.,26008924418040,state,2400.00,"ТОВ ""Червоноградська міська друкарня""",35483580,юридична особа
Самопоміч,"Львівська область, Львів, Соборна площа, 12",50,2016-12-22,403,Оплата ефірного часу на радіо,Реклама на радіо,378855,Центральний офіс,38558365,Україна,Оплата за виготовлення та розміщенпя радіопрограм (інтервʼю 19.12.2016р.) згідно рахунку №563 від 19.і2.201бр. в т.ч. ПДВ 900.00 грн.,26008924418040,state,5400.00,"ТОВ ""Телерадіокомпанія Галичина""",36610255,юридична особа
Самопоміч,"Львівська область, Львів, Соборна площа, 12",50,2016-12-22,402,Оплата ефірного часу на радіо,Реклама на радіо,378854,Центральний офіс,38558365,Україна,"Оплата за виготовлення та розміщення радіопрограм (іптерп’ю 15.12.2016р.) згідно рахунку №562 під 19.12.2016р. в т.ч, ПДВ 900.00 грн.",26008924418040,state,5400.00,"ТОВ ""Телерадіокомпанія Галичина""",36610255,юридична особа
Самопоміч,"Львівська область, Львів, вулиця Джерельна, 75",68,2016-12-22,396,Соцдослідження,"Гонорари, в тому числі за надані консультаційні послуги",378853,Центральний офіс,38558365,Україна,"Оплата за аналітичні послуги, консультування та організацію соціологічних досліджень по місту Хмельницький, згідно з Договором № 20/10/16 від 20.10.2016р.",26008924418040,state,160000.00,"ТОВ ""Соціологічна агенція ""ФАМА""",39668161,юридична особа
Самопоміч,"Львівська область, Львів, вулиця Джерельна, 75",68,2016-12-22,397,Соцдослідження,"Гонорари, в тому числі за надані консультаційні послуги",378852,Центральний офіс,38558365,Україна,"Оплата за аналітичні послуги, консультування та організацію соціологічних досліджень но місту Запоріжжя, згідно з Договором № 04/11/16 від 04.11.2016р.",26008924418040,state,96000.00,"ТОВ ""Соціологічна агенція ""ФАМА""",39668161,юридична особа
Самопоміч,"Львівська область, Львів, вулиця Джерельна, 75",68,2016-12-22,393,Соцдослідження,"Гонорари, в тому числі за надані консультаційні послуги",378851,Центральний офіс,38558365,Україна,"Оплата за аналітичні послуги, консультування та організацію соціологічних досліджень по місту Черкаси, згідно з Договором № 15/11/16 від 15.11.2016р.",26008924418040,state,96000.00,"ТОВ ""Соціологічна агенція ""ФАМА""",39668161,юридична особа
Самопоміч,"Львівська область, Львів, вулиця Джерельна, 75",68,2016-12-22,392,Соцдослідження,"Гонорари, в тому числі за надані консультаційні послуги",378850,Центральний офіс,38558365,Україна,"Оплата за аналітичні послуги, консультування та організацію соціологічних досліджепь по місту Скадонськ, згідно з Договором № 09/11/16 від 09.11.2016р.",26008924418040,state,96000.00,"ТОВ ""Соціологічна агенція ""ФАМА""",39668161,юридична особа
Самопоміч,"Львівська область, Львів, вулиця Джерельна, 75",68,2016-12-22,395,Соцдослідження,"Гонорари, в тому числі за надані консультаційні послуги",378849,Центральний офіс,38558365,Україна,"Оплата за аналітичні послуги, коисультуваппя та організацію соціологічних досліджепь но місту Хмельницький, згідно з Договором № 16/11/16 під 16.11.2016р.",26008924418040,state,88300.00,"ТОВ ""Соціологічна агенція ""ФАМА""",39668161,юридична особа
Самопоміч,"Вінницька область, Вінниця, проспект Космонавтів, 23",58,2016-12-22,411,"Виготовлення друкованих матеріалів (плакатів, листівок, буклетів та інших агітаційних матеріалів)",Друкована агітація,378848,Центральний офіс,38558365,Україна,"Оплата за друк газети ʼОбʼєднання САМОПОМІЧʼ згідно рахунку № 3230 від 12.12.2016р. н т.ч, ПДВ 8510.00 грн.",26008924418040,state,51060.00,"ТОВ ""Регіна ЛТД""",13331299,юридична особа
Самопоміч,"Львівська область, Львів, вулиця Миколи Коперника, 20",74,2016-12-22,352,"Придбання канцтоварів, паперу, інших предметів і матеріалів, а також госп товари",Придбання канцтоварів та госп. товарів,378847,Центральний офіс,38558365,Україна,"Оплата за товаришами деревʼяні не лаковані зі склом, 17 шт.), згідно з рахунком №СФ-000153 від 14 грудня 2016 р. в т.ч. ПДВ 631.44 грн.",26008924418040,state,3788.62,"ТОВ ""Клейнод""",23883835,юридична особа
Самопоміч,Київ,72,2016-12-22,363,"Придбання, ремонт офісної техніки та програмного забезпечення (Бухгалтерські програми, Ліга.закон, домени)",Придбання офісної техніки та програмного забезпечення,378846,Центральний офіс,38558365,Україна,"Оплата за програмне забезпечення Microsoft Windows 8.1 Pro 64-bit Russian Ipk DVD (110 шт.), згідно з видатковою накладною №41/3677670 від 19 грудин 2016 р.",26008924418040,state,440167.20,"Підприємство зі стопроцентним іноземним капіталом ""Орсі""",30403825,юридична особа
Самопоміч,"Львівська область, Львів, вулиця Яна Матейка, 6",69,2016-12-22,359,Організація заходів та інші організаційні послуги,Організація заходів та інші організаційні послуги,378845,Центральний офіс,38558365,Україна,"Оплата за оренду конференц-залу та харчування для учаспяків заходу, згідно з рах.№1957 від 16 грудня 2016 р. в т.ч. ПДВ 5466.67 грн.",26008924418040,state,32800.00,ПАТ ТГК Дністер,13828634,юридична особа
Самопоміч,"Волинська область, Луцьк, вулиця Словацького, 9",51,2016-12-22,357,Оплата ефірного часу на ТБ,Телереклама,378844,Центральний офіс,38558365,Україна,Оплата за розміщення інформаційних матеріалів па телеканалі ʼНова Волиньʼ згідно ряхупку №590 від 19.12.2016р. нт.ч. ПДВ 1344.00 гри.,26008924418040,state,8064.00,"Філія ПАТ ""НСТУ ""Волинська регіональна дирекція""",40020530,юридична особа
Самопоміч,"Львівська область, Львів, вулиця Михайла Грушевського, 17",58,2016-12-22,361,"Виготовлення друкованих матеріалів (плакатів, листівок, буклетів та інших агітаційних матеріалів)",Друкована агітація,378843,Центральний офіс,38558365,Україна,"Оплата за друк банера, флясрів, папок, візиток, блокнотів згідно рахунку №2223 від 14.12.2016р.",26008924418040,state,10513.20,"ТОВ ""Формат-Захід""",34462135,юридична особа
Самопоміч,"Львівська область, Львів, вулиця Академіка Андрія Сахарова, 42",58,2016-12-22,381,"Виготовлення друкованих матеріалів (плакатів, листівок, буклетів та інших агітаційних матеріалів)",Друкована агітація,378842,Центральний офіс,38558365,Україна,"Оплата за інформаційні бюлстні, згідно Додатку 7 до Договору 55/2016, згідно рахунку №04/55/2016 лід 03 листопада 2016 р. в т.ч. в т.ч. ПДВ 25019.00 грн.",26008924418040,state,150114.00,"ТОВ ""Фама""",36248941,юридична особа
Самопоміч,"Херсонська область, Херсон, вулиця Торгова, 37",51,2016-12-22,334,Оплата ефірного часу на ТБ,Телереклама,378841,Центральний офіс,38558365,Україна,Оплата за виготовлення телепрограми та трансляцію її на телеканалі ʼХерсон Плюс’ згідно рахунку № 00307-к від 09 грудин 2016р.,26008924418040,state,61200.00,"ТОВ ТРК ""Херсон Плюс""",36944934,юридична особа
Самопоміч,"Львівська область, Львів, вулиця Гуцульська, 9",50,2016-12-22,401,Оплата ефірного часу на радіо,Реклама на радіо,378840,Центральний офіс,38558365,Україна,"Оплата за інформаційні матеріали в ефірі радіо ʼЛьвівська хвиляʼ згідно рахунку № СФ-0801 від 15 грудня 2016р. в т.ч, ПДВ 480.00 грп.",26008924418040,state,2880.00,"ТОВ ’Телерадіокомпанія ""Львівська хвиля""",13824151,юридична особа
Самопоміч,"Львівська область, Львів, вулиця Під Голоском",57,2016-12-22,349,Виготовлення брендованої продукції,"Виготовлення брендованої продукції (футболки, кепки, парасольки)",378839,Центральний офіс,38558365,Україна,Оплата за блокноти A4 та сумки згідно рахунку 080 від 20.12.2016р.,26008924418040,state,99700.00,"ПП ""Рекламна Агенція ""БРЕНДМГ""",39658848,юридична особа
Самопоміч,"Київська обл., Києво-Святошинський район, Вишневе, вулиця Київська, 2А",74,2016-12-22,377,"Придбання канцтоварів, паперу, інших предметів і матеріалів, а також госп товари",Придбання канцтоварів та госп. товарів,378838,Центральний офіс,38558365,Україна,Оплата за канцтовари згідно видаткової накладної№ 5-00001252 від 21 грудня 2016р. в т.ч. ПДВ 6661.84 грн.,26008924418040,state,39971.03,"ТОВ ""Папірус""",37757144,юридична особа
Самопоміч,"Київська обл., Києво-Святошинський район, Вишневе, вулиця Київська, 2А",74,2016-12-22,376,"Придбання канцтоварів, паперу, інших предметів і матеріалів, а також госп товари",Придбання канцтоварів та госп. товарів,378837,Центральний офіс,38558365,Україна,Оплата за канцелярські товари згідно видаткової накладної№ 5-0001253 від 21 грудпн 2016р. в т.ч. ПДВ 6548.46 гри.,26008924418040,state,39290.76,"ТОВ ""Папірус""",37757144,юридична особа
Самопоміч,"Київська обл., Києво-Святошинський район, Вишневе, вулиця Київська, 2А",74,2016-12-22,375,"Придбання канцтоварів, паперу, інших предметів і матеріалів, а також госп товари",Придбання канцтоварів та госп. товарів,378836,Центральний офіс,38558365,Україна,Оплата за канцелярські товари згідно видаткової накладної № 5-00001254 від 21 грудпн 2016р. в т.ч. ПДВ 5482.75 грн.,26008924418040,state,32896.48,"ТОВ ""Папірус""",37757144,юридична особа
Самопоміч,"Київська обл., Києво-Святошинський район, Вишневе, вулиця Київська, 2А",74,2016-12-22,371,"Придбання канцтоварів, паперу, інших предметів і матеріалів, а також госп товари",Придбання канцтоварів та госп. товарів,378835,Центральний офіс,38558365,Україна,"Оплата за канцелярські товари, згідно видаткової накладної №5-00001234 від 15 грудня 2016 р. в т.ч. ПДВ 5341.24 грн.",26008924418040,state,32047.44,"ТОВ ""Папірус""",37757144,юридична особа
Самопоміч,"Київська обл., Києво-Святошинський район, Вишневе, вулиця Київська, 2А",74,2016-12-22,372,"Придбання канцтоварів, паперу, інших предметів і матеріалів, а також госп товари",Придбання канцтоварів та госп. товарів,378834,Центральний офіс,38558365,Україна,"Оплата за канцелярські товари, згідно податкової пакладної №5-00001226 від І 4 грудня 2016 р. в т.ч. ПДВ 3507.19 грв.",26008924418040,state,21043.15,"ТОВ ""Папірус""",37757144,юридична особа
Самопоміч,"Київська обл., Києво-Святошинський район, Вишневе, вулиця Київська, 2А",74,2016-12-22,374,"Придбання канцтоварів, паперу, інших предметів і матеріалів, а також госп товари",Придбання канцтоварів та госп. товарів,378833,Центральний офіс,38558365,Україна,"Оплата за канцелярські товари, згідно видаткової накладпої№5-00001208 від 13 грудня 2016 р. в т.ч. ПДВ 1650.12 грн.",26008924418040,state,9900.72,"ТОВ ""Папірус""",37757144,юридична особа
Самопоміч,"Київська обл., Києво-Святошинський район, Вишневе, вулиця Київська, 2А",74,2016-12-22,373,"Придбання канцтоварів, паперу, інших предметів і матеріалів, а також госп товари",Придбання канцтоварів та госп. товарів,378832,Центральний офіс,38558365,Україна,"Оплята за канцелярські товари, згідно видаткової накладної №5-00001237 від 16 грудня 2016 р. в т.ч. ПДВ 1233.46 гри.",26008924418040,state,7400.77,"ТОВ ""Папірус""",37757144,юридична особа
Самопоміч,"Полтавська область, Полтава, вулиця Європейська, 57",75,2016-12-22,367,Поштові послуги та поширення друкованих матеріалів,Поштові послуги та поширення друкованих матеріалів,378831,Центральний офіс,38558365,Україна,Оплата за організацію перевезення відправлень згідно рахунку № НГО7-0058633 під 10.12.2016р. п т.ч. ПДВ 10312.29 грн.,26008924418040,state,61873.76,"ТОВ ""Нова пошта""",31316718,юридична особа
Самопоміч,"Івано-Франківська область, Івано-Франківськ, вулиця Незалежності, 11",49,2016-12-22,398,Публікування матеріалів у друкованих ЗМІ,Реклама в друкованих ЗМІ,378830,Центральний офіс,38558365,Україна,"Оплата за послуги з розміщення матеріалів 15.12.2016 па сторінках журпялу ʼм.ʼ, згідно з Актом №1 від 17 грудня 2016 р.",26008924418040,state,4500.00,"TOB ""М Медіа""",39331437,юридична особа
Самопоміч,"Херсонська область, Херсон, вулиця Університетська",49,2016-12-22,405,Публікування матеріалів у друкованих ЗМІ,Реклама в друкованих ЗМІ,378829,Центральний офіс,38558365,Україна,Оплата за рекламу в газеті ʼГРИВНАʼ №51 згідно рахунку № К2118 бід 12 грудня 2016р. в т.ч. ПДВ 2250.00 гри.,26008924418040,state,13500.00,"ПП ""Компроміс-медіа""",24951639,юридична особа
Самопоміч,"Львівська область, Львів, площа Ринок, 14",74,2016-12-22,408,"Придбання канцтоварів, паперу, інших предметів і матеріалів, а також госп товари",Придбання канцтоварів та госп. товарів,378828,Центральний офіс,38558365,Україна,"Оплата за книги в асортименті, згідно з видатковою накладною №ВСЛ0007996 від 13.12.2016 р.",26008924418040,state,78200.00,"ТОВ ""Видавництво Старого Лева""",33981905,юридична особа
Самопоміч,"Хмельницька область, Віньковецький район, Женишківці, вул. Ортинського, 36",56,2016-12-22,424,Виготовлення (оренда) агітаційних наметів,Виготовлення (оренда) агітаційних наметів,377933,Центральний офіс,38558365,Україна,"Оплата за намет брендовнй, згідно актут №172 від 21.12.16р.",26008924418040,state,36000.00,Матущак Юлія Сергіївна,,фізична особа
Самопоміч,"Дніпропетровська область, Дніпровський район, Підгородне, вулиця Пушкіна",74,2016-12-22,410,"Придбання канцтоварів, паперу, інших предметів і матеріалів, а також госп товари",Придбання канцтоварів та госп. товарів,377932,Центральний офіс,38558365,Україна,"Оплата за канцтовари та інші товари, згідно з договором №222/Т, згідно рахунку № 224/Т від 12 грудпн 2016р.",26008924418040,state,2029.20,Тендітник Олена Сергіївна,,фізична особа
Самопоміч,"Київ, вулиця Єреванська, 28",58,2016-12-22,354,"Виготовлення друкованих матеріалів (плакатів, листівок, буклетів та інших агітаційних матеріалів)",Друкована агітація,377931,Центральний офіс,38558365,Україна,Оплата за поліграфічні послуги (друк бланків) згідно рахунку №621 від. 15.12.2016р.,26008924418040,state,1430.00,Товстопʼятов Сергій Леонідович,,фізична особа
Самопоміч,"Дніпропетровська область, Дніпровський район, Підгородне, вулиця Пушкіна",74,2016-12-22,406,"Придбання канцтоварів, паперу, інших предметів і матеріалів, а також госп товари",Придбання канцтоварів та госп. товарів,377930,Центральний офіс,38558365,Україна,Оплата за канцтовари згідно рахунку № 222/Т від 12 грудня 2016р.,26008924418040,state,52269.00,Тендітник Олена Сергіївна,,фізична особа
Самопоміч,"Київ, вулиця Єреванська, 28",58,2016-12-22,353,"Виготовлення друкованих матеріалів (плакатів, листівок, буклетів та інших агітаційних матеріалів)",Друкована агітація,377929,Центральний офіс,38558365,Україна,Оплата за поліграфічні послуги (друк панок) згідио рахунку №620 від 15.12.2016р.,26008924418040,state,16000.00,Товстопʼятов Сергій Леонідович,,фізична особа
Самопоміч,"Дніпропетровська область, Дніпровський район, Підгородне, вулиця Пушкіна",74,2016-12-22,407,"Придбання канцтоварів, паперу, інших предметів і матеріалів, а також госп товари",Придбання канцтоварів та госп. товарів,377928,Центральний офіс,38558365,Україна,Оплата за канцтовари згідно № 223/Т від 12 грудня 2016р.,26008924418040,state,5614.00,Тендітник Олена Сергіївна,,фізична особа
Самопоміч,"Полтавська область, Лубни",73,2016-12-22,399,Придбання меблів,Придбання меблів,377927,Центральний офіс,38558365,Україна,"Оплата за стілець офісний, згідно ряхупку № 5 від 17 грудня 2016р.",26008924418040,state,3809.00,Ступка Наталія Михайлівна,,фізична особа
Самопоміч,"Львівська область, Львів, вулиця Під Голоском",57,2016-12-22,369,Виготовлення брендованої продукції,"Виготовлення брендованої продукції (футболки, кепки, парасольки)",377926,Центральний офіс,38558365,Україна,"Оплата за чашки керамічні білі, конусні згідно рахунку №0000183 від 21.12.2016р. без ПДВ",26008924418040,state,18765.00,Дулька Христина Богданівна,,фізична особа
Самопоміч,"Чернівецька область, Вижницький район, Вижниця, вулиця Українська",79,2016-12-22,404,"Оренда будинків і приміщень та експлуатаційні витрати (прибирання, страхування орендованих будинків, охорона, сигналізація, ремонт, вивіз сміття, тощо)",Оренда нерухомості,377925,Центральний офіс,38558365,Україна,"Оплата за оренду нерухомого манна в листопаді 2016 р., згідно з Актом наданих послуг від 30.11.2016 р.",26008924418040,state,8000.00,Голобуцька Марина Юріївна,,фізична особа
Самопоміч,"Рівненська область, Рівне, вулиця Академіка Грушевського, 40",74,2016-12-22,409,"Придбання канцтоварів, паперу, інших предметів і матеріалів, а також госп товари",Придбання канцтоварів та госп. товарів,377924,Центральний офіс,38558365,Україна,Оплата за канцелярські товари згідно рахунку №161211 від 12.12.2016р.,26008924418040,state,7100.00,Гетун Олег Валерійович,,фізична особа
Самопоміч,"Черкаська область, Черкаси, проспект Хіміків, 30",74,2016-12-22,400,"Придбання канцтоварів, паперу, інших предметів і матеріалів, а також госп товари",Придбання канцтоварів та госп. товарів,377923,Центральний офіс,38558365,Україна,"Оплата за канцелярські товари згідно рахунку Д""8673/23 від 21.12,2016р",26008924418040,state,9853.09,Володько Віталій Іванович,,фізична особа
Самопоміч,"Київ, Дарницький бульвар, 7, 41",82,2016-12-22,388,"Гонорари, в тому числі за надані консультаційні послуги","Гонорари, в тому числі за надані консультаційні послуги",377922,Центральний офіс,38558365,Україна,Оплата за надання консультаційних послуг в межах тематичної області згідно з рахунком 121 під 20.12.2016,26008924418040,state,136090.00,Лісовик Олександр Леонідович,,фізична особа
Самопоміч,"Київ, Дарницький бульвар, 7, 41",82,2016-12-22,387,"Гонорари, в тому числі за надані консультаційні послуги","Гонорари, в тому числі за надані консультаційні послуги",377921,Центральний офіс,38558365,Україна,Оплата за надайпя консультаційних послуг н межах тезіатнчноїобласті згідно з рахунком 122 під 21.12.2016,26008924418040,state,102200.00,Лісовик Олександр Леонідович,,фізична особа
Самопоміч,"Київ, вулиця Дружківська",79,2016-12-21,319,"Оренда будинків і приміщень та експлуатаційні витрати (прибирання, страхування орендованих будинків, охорона, сигналізація, ремонт, вивіз сміття, тощо)",Оренда нерухомості,378827,Центральний офіс,38558365,Україна,Оплата зя комунальні послуги згідио рахунку №478 бід 30.11.2016р. в т.ч. ПДВ 84.90 гри.,26008924418040,state,509.39,"ТОВ ""Агенсгво Союздрук""",38272410,юридична особа
Самопоміч,"Донецька область, Краматорськ, площа Миру, 2",51,2016-12-21,323,Оплата ефірного часу на ТБ,Телереклама,378826,Центральний офіс,38558365,Україна,Оплата за послуги з трансляції рекламного сюжету іія телеканалі згідно рахунку №0016 в т.ч. ПДВ 5000.00 грн.,26008924418040,state,30000.00,"НТКУ ""Донецька регіональна дирекція""",40020551,юридична особа
Самопоміч,"Київ, вулиця Марка Вовчка, 18А",72,2016-12-21,364,"Придбання, ремонт офісної техніки та програмного забезпечення (Бухгалтерські програми, Ліга.закон, домени)",Придбання офісної техніки та програмного забезпечення,378825,Центральний офіс,38558365,Україна,"Оплата зя миші (400 шт.) тя клавіатури (400 шт.), згідио з видатковою накладною №61/3662361 від 12 грудня 2016 р. в т.ч. ПДВ 19436.00 грн.",26008924418040,state,116616.00,"Іноземне підприємство ""Логін""",38204178,юридична особа
Самопоміч,"Рівненська область, Рівне, вулиця Котляревського, 20А",51,2016-12-21,339,Оплата ефірного часу на ТБ,Телереклама,378824,Центральний офіс,38558365,Україна,"Оплата за трансляцію на каналі РТБ інформаційних матеріалів згідпо рахунку №283 від 16 грудпя 2016 року, в т.ч. ПДВ 6666.67 гри.",26008924418040,state,40000.00,"Філія ПАТ ""НТСУ ""Рівненська регіональна дирекція""",40020656,юридична особа
Самопоміч,"Київ, вулиця Юрія Іллєнка, 42",51,2016-12-21,340,Оплата ефірного часу на ТБ,Телереклама,378823,Центральний офіс,38558365,Україна,Оплата за розміщення іпформаційннх матеріалів згідно Додатку №1 від 08.12.2016 до Договору №257 від 08.12.2016р. Рахунок №413 від 08.12.2016р.,26008924418040,state,15000.00,"НТКУ ""Львівська регіональна дирекція""",40020216,юридична особа
Самопоміч,"Запорізька область, Запоріжжя, вулиця Олександра Матросова, 24А",51,2016-12-21,341,Оплата ефірного часу на ТБ,Телереклама,378822,Центральний офіс,38558365,Україна,Оплата за розміщення відеоматеріалів па ТК Запоріжжя на нравах реклами згідно рахунку 321 від 16.12.2016р.,26008924418040,state,41472.00,"НТКУ ""Запорізька регіональна дирекція""",40020195,юридична особа
Самопоміч,"Київ, вулиця Дегтярівська, 6",74,2016-12-21,322,"Придбання канцтоварів, паперу, інших предметів і матеріалів, а також госп товари",Придбання канцтоварів та госп. товарів,378821,Центральний офіс,38558365,Україна,Оплата за кппжкову продукцію згідно рахунку № 722 від 16.12.2016р. без ПДВ,26008924418040,state,79200.00,"ТОВ ""Часопис ""Дух і літера""",30726261,юридична особа
Самопоміч,"Полтавська область, Полтава, провулок Романа Шухевича, 4",79,2016-12-21,365,"Оренда будинків і приміщень та експлуатаційні витрати (прибирання, страхування орендованих будинків, охорона, сигналізація, ремонт, вивіз сміття, тощо)",Оренда нерухомості,378820,Центральний офіс,38558365,Україна,"Оплата за орепду приміщення за грудень 2016 року, в м. Полтава згідно договору орепдн під 01.10.2016р., акту №6 від 20.12.2016р.",26008924418040,state,1161.29,"ТОВ ""РІК""",21058788,юридична особа
Самопоміч,Дніпропетровська область,48,2016-12-21,347,Публікування матеріалів у мережі Інтернет,Реклама в інтернеті,378819,Центральний офіс,38558365,Україна,Оплатя за розміщення матеріалів па інтернет ресурсі згідно Акту від 20.12.2016р.,26008924418040,state,500.00,"ТОВ ""Перша міська друкарня’",33459577,юридична особа
Самопоміч,"Київська обл., Васильківський район, Гребінки, вулиця Індустріальна",79,2016-12-21,316,"Оренда будинків і приміщень та експлуатаційні витрати (прибирання, страхування орендованих будинків, охорона, сигналізація, ремонт, вивіз сміття, тощо)",Оренда нерухомості,378818,Центральний офіс,38558365,Україна,Оплпта за оренду нежитлового приміщення зя жовтень 2016р. згідпо рахунку №34 від 31.10.2016р. в т.ч. ПДВ 381.33 грн.,26008924418040,state,2286.00,"ТОВ ""МИТЬ""",13739050,юридична особа
Самопоміч,"Київська обл., Васильківський район, Гребінки, вулиця Індустріальна",79,2016-12-21,315,"Оренда будинків і приміщень та експлуатаційні витрати (прибирання, страхування орендованих будинків, охорона, сигналізація, ремонт, вивіз сміття, тощо)",Оренда нерухомості,378817,Центральний офіс,38558365,Україна,Оплата за орепду нежитлового прпзііщеиип за листопад 2016р. згідно рахунку №40 від 30.11.201бр. в т.ч. ПДВ 381.33 гри.,26008924418040,state,2288.00,"ТОВ ""МИТЬ""",13739050,юридична особа
Самопоміч,"Київ, вулиця Дружківська",79,2016-12-21,318,"Оренда будинків і приміщень та експлуатаційні витрати (прибирання, страхування орендованих будинків, охорона, сигналізація, ремонт, вивіз сміття, тощо)",Оренда нерухомості,378816,Центральний офіс,38558365,Україна,Оплата за оренду пежитлового приміщення згідно рахунку №477 від 30.11.2016р. в т.ч. ПДВ 360.00 гри.,26008924418040,state,2160.00,"ТОВ ""Агенсгво Союздрук""",38272410,юридична особа
Самопоміч,"Полтавська область, Полтава, Зіньківська вулиця, 57",69,2016-12-21,337,Організація заходів та інші організаційні послуги,Організація заходів та інші організаційні послуги,378815,Центральний офіс,38558365,Україна,Оплата за оренду конференц-залу згідно рахунку №1416 від 14 грудня 2016р. в т.ч. ПДВ 416.67 гри.,26008924418040,state,2500.00,"ПАТ ""Полтавський автоагрегатний завод""",00232124,юридична особа
Самопоміч,"Полтавська область, Полтава, Зіньківська вулиця, 57",69,2016-12-21,336,Організація заходів та інші організаційні послуги,Організація заходів та інші організаційні послуги,378814,Центральний офіс,38558365,Україна,Оплата за оренду конференц-залу згідпо рахунку № 1415 від 11 грудня 2016р. в т.ч. ПДВ 416.67 гри.,26008924418040,state,2500.00,"ПАТ ""Полтавський автоагрегатний завод""",00232124,юридична особа
Самопоміч,"Полтавська область, Полтава, Зіньківська вулиця, 57",69,2016-12-21,335,Організація заходів та інші організаційні послуги,Організація заходів та інші організаційні послуги,378813,Центральний офіс,38558365,Україна,Оплата за оренду конференц-залу згідно рахунку №1365 від 07 грудпя 2016р. вт.ч. ПДВ 416.67 гри.,26008924418040,state,2500.00,"ПАТ ""Полтавський автоагрегатний завод""",00232124,юридична особа
Самопоміч,"Київ, вулиця Марка Вовчка, 18А",72,2016-12-21,370,"Придбання, ремонт офісної техніки та програмного забезпечення (Бухгалтерські програми, Ліга.закон, домени)",Придбання офісної техніки та програмного забезпечення,378812,Центральний офіс,38558365,Україна,Оплата за діагностику стаціонарних ПК згідно рахунку Ліі4/84542 від 8 грудня 2016р. в т.ч. ПДВ 20000.00 гри.,26008924418040,state,120000.00,"Іноземне підприємство ""Логін""",38204178,юридична особа
Самопоміч,"Івано-Франківська область, Івано-Франківськ, вулиця Михайла Грушевського, 21",51,2016-12-21,314,Оплата ефірного часу на ТБ,Телереклама,378811,Центральний офіс,38558365,Україна,Оплата за послуги з виготовлення та/або розміщення матеріалів на телеканалі ʼГаличинаʼ за листопад 2016р. згідно Акту1 від 30.11.2016р.,26008924418040,state,15360.00,"Івано-Франківське обласне телебачення ""Галичина""",13641427,юридична особа
Самопоміч,"Івано-Франківська область, Івано-Франківськ, вулиця Михайла Грушевського, 21",51,2016-12-21,313,Оплата ефірного часу на ТБ,Телереклама,378810,Центральний офіс,38558365,Україна,Оплата за послуги з виготовлення тя/або розміщення матеріалів ия телеканалі Тали чи паʼ за жовтень 2016р. згідно Акту від 07.11.2016р.,26008924418040,state,14880.00,"Івано-Франківське обласне телебачення ""Галичина""",13641427,юридична особа
Самопоміч,"Чернівецька область, Чернівці, вулиця Героїв Майдану, 31",54,2016-12-21,366,Виготовлення відеозаписів,Реклама (без класифікації),378809,Центральний офіс,38558365,Україна,Оплата за послуги з виготовлення відеоролнка ʼПривітання з Новим рокомʼ згідно рахунку Лі 122 бід 9 грудня 2016р. в т.ч. ПДВ 400.00 грн.,26008924418040,state,2400.00,"ТОВ ""ТЕЛЕРАДІОКОМПАНІЯ ""ТВА""",14260868,юридична особа
Самопоміч,"Чернівецька область, Чернівці, вулиця Героїв Майдану, 31",54,2016-12-21,324,Виготовлення відеозаписів,Реклама (без класифікації),378808,Центральний офіс,38558365,Україна,Оплата за послуги з виготовлення відеоролнка ʼПривітання з Новим роком’ згщво рахунку Лі 123 від 09 грудня 2016р. в т.ч. ПДВ 400.00 грн.,26008924418040,state,2400.00,"ТОВ ""ТЕЛЕРАДІОКОМПАНІЯ ""ТВА""",14260868,юридична особа
Самопоміч,"Сумська область, Суми, проспект Михайла Лушпи, 7",57,2016-12-21,312,Виготовлення брендованої продукції,"Виготовлення брендованої продукції (футболки, кепки, парасольки)",378807,Центральний офіс,38558365,Україна,"Оплата за мобільні стенди, прапори, баперн, фартуки агітаційні, прапорці постери, фляєри зг. рах Лі 352.",26008924418040,state,67620.00,ТОВ ’Рекламна агенція ’Апельсин-Суми’,37655260,юридична особа
Самопоміч,"Київська обл., Києво-Святошинський район, Вишневе, вулиця Київська, 2А",74,2016-12-21,345,"Придбання канцтоварів, паперу, інших предметів і матеріалів, а також госп товари",Придбання канцтоварів та госп. товарів,378806,Центральний офіс,38558365,Україна,"Оплатя за канцелярські товари, згідно видаткової накладної ЛІ5-00001247 під 19 грудня 2016 р. в т.ч. ПДВ 917.51 гри.",26008924418040,state,5505.04,"ТОВ ""Папірус""",37757144,юридична особа
Самопоміч,"Київська обл., Києво-Святошинський район, Вишневе, вулиця Київська, 2А",74,2016-12-21,346,"Придбання канцтоварів, паперу, інших предметів і матеріалів, а також госп товари",Придбання канцтоварів та госп. товарів,378805,Центральний офіс,38558365,Україна,"Оплата за канцелярські товари, згідно видаткової накладної ЛІ5-00001243 від 19 грудня 2016 р. в т.ч. ПДВ 304.92 гри.",26008924418040,state,1829.52,"ТОВ ""Папірус""",37757144,юридична особа
Самопоміч,"Київ, вулиця Звіринецька, 63",58,2016-12-21,321,"Виготовлення друкованих матеріалів (плакатів, листівок, буклетів та інших агітаційних матеріалів)",Друкована агітація,378804,Центральний офіс,38558365,Україна,Оплата за бяперта афіші інформаційні згідно рахунку ЛІ121201 від 12.12.2016р. без ПДВ,26008924418040,state,3500.00,"ТОВ ""ДЕМЕТРА СМ’",38750113,юридична особа
Самопоміч,"Львівська область, Львів, вулиця Керченська, 8",57,2016-12-21,343,Виготовлення брендованої продукції,"Виготовлення брендованої продукції (футболки, кепки, парасольки)",378803,Центральний офіс,38558365,Україна,Оплата за ручки автоматичні згідно рахунку Лі 554 бід 19.12.2016р. в т.ч. ПДВ 1860.00 гри.,26008924418040,state,11160.00,"ПП ""APT-ЛІНІЯ""",37483818,юридична особа
Самопоміч,"Закарпатська область, Ужгород, вулиця Українська, 16",74,2016-12-21,329,"Придбання канцтоварів, паперу, інших предметів і матеріалів, а також госп товари",Придбання канцтоварів та госп. товарів,377920,Центральний офіс,38558365,Україна,Оплата за канцтовари згідно рахунку № 789 від,26008924418040,state,9709.20,Рушківська Надія Євгенівна,,фізична особа
Самопоміч,"Рівненська область, Рівне, вулиця Олекси Новака, 50",53,2016-12-21,338,Витрати на розміщення зовнішньої реклами,Зовнішня реклама,377919,Центральний офіс,38558365,Україна,Оплата за рекламні послуги згідно рахунку Дʼе 3011-16/А5 від 30 листопада 2016р.,26008924418040,state,5486.25,Прокопчук Андрій Павлович,,фізична особа
Самопоміч,"Дніпропетровська область, Дніпро́, вулиця Семафорна, 36",57,2016-12-21,332,Виготовлення брендованої продукції,"Виготовлення брендованої продукції (футболки, кепки, парасольки)",377918,Центральний офіс,38558365,Україна,Оплата за футболкп з логотипом згідно рахунку № РФ-87/12 під 12 грудня 2016р.,26008924418040,state,19227.40,Тендітник Ольга Петрівна,,фізична особа
Самопоміч,"Дніпропетровська область, Нікополь",53,2016-12-21,325,Витрати на розміщення зовнішньої реклами,Зовнішня реклама,377917,Центральний офіс,38558365,Україна,Оплата за бігборд згідно рахунку Дії 109 від 12 грудин 2016р.,26008924418040,state,3000.00,Сегеда Артур Олегович,,фізична особа
Самопоміч,"Дніпропетровська область, Дніпро́, вулиця Новоселівська, 2, 115",79,2016-12-21,306,"Оренда будинків і приміщень та експлуатаційні витрати (прибирання, страхування орендованих будинків, охорона, сигналізація, ремонт, вивіз сміття, тощо)",Оренда нерухомості,377916,Центральний офіс,38558365,Україна,Оплата оренди за листопад 2016р. згідно рахунку №2 під 01.12.2016р.,26008924418040,state,20000.00,Рибянець Тетяна Сергіївна,,фізична особа
Самопоміч,"Дніпропетровська область, Дніпро́, вулиця Новоселівська, 2, 115",79,2016-12-21,305,"Оренда будинків і приміщень та експлуатаційні витрати (прибирання, страхування орендованих будинків, охорона, сигналізація, ремонт, вивіз сміття, тощо)",Оренда нерухомості,377915,Центральний офіс,38558365,Україна,Оплата ко.мупальніїх та експлуатаційних послуг за листопад 2016р. згідно рахунку №1 від 01.12.2016р.,26008924418040,state,4496.90,Рибянець Тетяна Сергіївна,,фізична особа
Самопоміч,"Хмельницька область, Славута",74,2016-12-21,330,"Придбання канцтоварів, паперу, інших предметів і матеріалів, а також госп товари",Придбання канцтоварів та госп. товарів,377914,Центральний офіс,38558365,Україна,Оплата за канцтовари згідно рахунку Де 74 від 14 грудня 2016р.,26008924418040,state,14532.31,Павлюк Ірина Степанівна,,фізична особа
Самопоміч,"Київська обл., Васильківський район, вулиця Чапаєва",73,2016-12-21,327,Придбання меблів,Придбання меблів,377913,Центральний офіс,38558365,Україна,"Оплата за офісні .меблі, згідно з рахунком Де 10 під 08 грудпя 2016 р.",26008924418040,state,7825.34,Михайленко Алла Юзефівна,,фізична особа
Самопоміч,"Київська обл., Васильківський район, вулиця Чапаєва",74,2016-12-21,326,"Придбання канцтоварів, паперу, інших предметів і матеріалів, а також госп товари",Придбання канцтоварів та госп. товарів,377912,Центральний офіс,38558365,Україна,"Оплата за канцелярську продукцію, згідно з рахунком №09 бід 08 грудня 2016 р.",26008924418040,state,7825.34,Михайленко Алла Юзефівна,,фізична особа
Самопоміч,"Хмельницька область, Хмельницький, проспект Миру, 78/1, 41",74,2016-12-21,309,"Придбання канцтоварів, паперу, інших предметів і матеріалів, а також госп товари",Придбання канцтоварів та госп. товарів,377911,Центральний офіс,38558365,Україна,Оплата за канцтовари згідно накладної Де 761 від 12.12.2016р.,26008924418040,state,7070.28,Мельник Ольга Іванівна,,фізична особа
Самопоміч,"Черкаська область, Канів, вулиця Героїв Дніпра, 27, 11",53,2016-12-21,307,Витрати на розміщення зовнішньої реклами,Зовнішня реклама,377910,Центральний офіс,38558365,Україна,Оплата за розміщення постера (жонтень) 2016р. за адресою: пл. Ярмакопа (сторона Б) згідно рахунку Alt 147 від 02.10.2016р.,26008924418040,state,500.00,Маслюк Вʼячеслав Анатолійович,,фізична особа
Самопоміч,"Черкаська область, Канів, вулиця Героїв Дніпра, 27, 11",53,2016-12-21,308,Витрати на розміщення зовнішньої реклами,Зовнішня реклама,377909,Центральний офіс,38558365,Україна,"Оплата за розміщення постера (листопад) 2016р. за адресою: пл. Ярмакова, згідно рахунку Аг 148 від 01.11.2016р.",26008924418040,state,500.00,Маслюк Вʼячеслав Анатолійович,,фізична особа
Самопоміч,"Рівненська область, Рівне, вулиця Андрія Мельника, 25",79,2016-12-21,303,"Оренда будинків і приміщень та експлуатаційні витрати (прибирання, страхування орендованих будинків, охорона, сигналізація, ремонт, вивіз сміття, тощо)",Оренда нерухомості,377908,Центральний офіс,38558365,Україна,Оплата за оренду офісного приміщення зп жовтень 2016р. згідно рахунку Аз134 від 31.10.2016р.,26008924418040,state,4853.00,Крутякова Ліана Феліксівна,,фізична особа
Самопоміч,"Київська обл., Березань, вул. Шевченків Шлях",58,2016-12-21,320,"Виготовлення друкованих матеріалів (плакатів, листівок, буклетів та інших агітаційних матеріалів)",Друкована агітація,377907,Центральний офіс,38558365,Україна,Оплата за листівки A4 та зіагнітп з новорічним вітанням згідно рахунку As 01/12 без ПДВ,26008924418040,state,6500.00,Грохольська Віра Олегівна,,фізична особа
Самопоміч,"Львівська область, Львів, вулиця Залізнична",54,2016-12-21,344,Виготовлення відеозаписів,Реклама (без класифікації),377906,Центральний офіс,38558365,Україна,"Оплата за послуги згідно Договору АЬ07/16-1 від 04.07.2016р., згідно з актом прнймашш-передачі наданих послуг під 21 грудня 2016р.",26008924418040,state,26000.00,Говда Остап Васильович,,фізична особа
Самопоміч,"Тернопільська область, Лановецький район, Ланівці, вулиця Незалежності, 34",53,2016-12-21,229,Витрати на розміщення зовнішньої реклами,Зовнішня реклама,377905,Центральний офіс,38558365,Україна,Оплата рекламних послуг по роззііщепню постерів на реклазшнх конструкціях типу біг борд(20шт)зя жовтень-лнетопяд 201броку згідно рахунку А°98 від 0І жовтня 2016р.,26008924418040,state,48000.00,Герман Ірина Тимурівна,,фізична особа
